{"text_format":"3","workbook":"xlsx","n_sheets":5,"sheets":["ALGUS","KAVANDATUD KULUD","TEGELIKUD KULUD","KULUERINEVUSED","KULUDE ANALÜÜS"],"not_rendered":{"charts":2,"images":3,"defined_names":1},"read":"whole","date_system":"1900"}

{"sheet":"ALGUS","index":0,"n_rows":8,"n_cols":2,"rows_kept":8}
[null,"TEAVE SELLE MALLI KOHTA"]
[null,"Selle ärikulude eelarve töövihiku abil saate jälgida kavandatud ja tegelikke kulusid ning kuluerinevusi."]
[null,"Sisestage ettevõtte nimi ja logo."]
[null,"Sisestage andmed töölehtede Kavandatud kulud ja Tegelikud kulud tabelitesse."]
[null,"Töölehe Kuluerinevused tabeleid ja töölehe Kuluanalüüs graafikuid värskendatakse automaatselt"]
[null,"Märkus. "]
[null,"Iga töölehe veerus A on toodud lisajuhised. See tekst on tahtlikult peidetud. Teksti eemaldamiseks valige veerg A ja seejärel käsk KUSTUTA. Teksti kuvamiseks valige veerg A ja muutke seejärel fondi värvi."]
[null,"Tabelite kohta lisateabe saamiseks vajutage tabelis tõstuklahvi (SHIFT) ja seejärel klahvi F10, valige suvand TABEL ja seejärel käsk ASETEKST."]

{"sheet":"KAVANDATUD KULUD","index":1,"n_rows":37,"n_cols":16,"rows_kept":37,"merged":[[1,10,1,12],[2,10,2,12],[3,17,12,19]]}
[{"$nulls":15}," "]
[null,"Ettevõtte nimi",{"$nulls":8},"Üksikasjalikud kulude prognoosid"]
[{"$nulls":10},"Varjustatud lahtrites on arvutatud väärtused."]
[null,"KAVANDATUD KULUD","JAAN","VEEBR","MÄRTS","APR","MAI","JUUNI","JUULI","AUG","SEPT","OKT","NOV","DETS","AASTA"]
[null,"Töötaja kulud","Jaan","Veebr","Märts","Apr","Mai","Juuni","Juuli","Aug","Sept","Okt","Nov","Dets","AASTA"]
[null,"Palk",{"v":85000,"d":"85,000.00 €"},{"v":85000,"d":"85,000.00 €"},{"v":85000,"d":"85,000.00 €"},{"v":87500,"d":"87,500.00 €"},{"v":87500,"d":"87,500.00 €"},{"v":87500,"d":"87,500.00 €"},{"v":87500,"d":"87,500.00 €"},{"v":92400,"d":"92,400.00 €"},{"v":92400,"d":"92,400.00 €"},{"v":92400,"d":"92,400.00 €"},{"v":92400,"d":"92,400.00 €"},{"v":92400,"d":"92,400.00 €"},{"$f":"SUM(C6:N6)","v":{"v":1067000,"d":"1,067,000.00 €"}}]
[null,"Soodustused",{"$f":"C6*0.27","v":{"v":22950,"d":"22,950.00 €"}},{"v":22950,"d":"22,950.00 €"},{"v":22950,"d":"22,950.00 €"},{"v":23625,"d":"23,625.00 €"},{"v":23625,"d":"23,625.00 €"},{"v":23625,"d":"23,625.00 €"},{"v":23625,"d":"23,625.00 €"},{"v":24948,"d":"24,948.00 €"},{"v":24948,"d":"24,948.00 €"},{"v":24948,"d":"24,948.00 €"},{"v":24948,"d":"24,948.00 €"},{"v":24948,"d":"24,948.00 €"},{"$f":"SUM(C7:N7)","v":{"v":288090,"d":"288,090.00 €"}}]
[null,"Vahesumma",{"$f":"SUBTOTAL(109,TöötajaKavandatud[Jaan])","v":{"v":107950,"d":"107,950.00 €"}},{"$f":"SUBTOTAL(109,TöötajaKavandatud[Veebr])","v":{"v":107950,"d":"107,950.00 €"}},{"$f":"SUBTOTAL(109,TöötajaKavandatud[Märts])","v":{"v":107950,"d":"107,950.00 €"}},{"$f":"SUBTOTAL(109,TöötajaKavandatud[Apr])","v":{"v":111125,"d":"111,125.00 €"}},{"$f":"SUBTOTAL(109,TöötajaKavandatud[Mai])","v":{"v":111125,"d":"111,125.00 €"}},{"$f":"SUBTOTAL(109,TöötajaKavandatud[Juuni])","v":{"v":111125,"d":"111,125.00 €"}},{"$f":"SUBTOTAL(109,TöötajaKavandatud[Juuli])","v":{"v":111125,"d":"111,125.00 €"}},{"$f":"SUBTOTAL(109,TöötajaKavandatud[Aug])","v":{"v":117348,"d":"117,348.00 €"}},{"$f":"SUBTOTAL(109,TöötajaKavandatud[Sept])","v":{"v":117348,"d":"117,348.00 €"}},{"$f":"SUBTOTAL(109,TöötajaKavandatud[Okt])","v":{"v":117348,"d":"117,348.00 €"}},{"$f":"SUBTOTAL(109,TöötajaKavandatud[Nov])","v":{"v":117348,"d":"117,348.00 €"}},{"$f":"SUBTOTAL(109,TöötajaKavandatud[Dets])","v":{"v":117348,"d":"117,348.00 €"}},{"$f":"SUBTOTAL(109,TöötajaKavandatud[AASTA])","v":{"v":1355090,"d":"1,355,090.00 €"}}]
[]
[null,"Kontorikulud","Jaan","Veebr","Märts","Apr","Mai","Juuni","Juuli","Aug","Sept","Okt","Nov","Dets","AASTA"]
[null,"Kontoriüür ",{"v":9800,"d":"9,800.00 €"},{"v":9800,"d":"9,800.00 €"},{"v":9800,"d":"9,800.00 €"},{"v":9800,"d":"9,800.00 €"},{"v":9800,"d":"9,800.00 €"},{"v":9800,"d":"9,800.00 €"},{"v":9800,"d":"9,800.00 €"},{"v":9800,"d":"9,800.00 €"},{"v":9800,"d":"9,800.00 €"},{"v":9800,"d":"9,800.00 €"},{"v":9800,"d":"9,800.00 €"},{"v":9800,"d":"9,800.00 €"},{"$f":"SUM(C11:N11)","v":{"v":117600,"d":"117,600.00 €"}}]
[null,"Gaas",null,{"v":400,"d":"400.00 €"},{"v":400,"d":"400.00 €"},{"v":100,"d":"100.00 €"},{"v":100,"d":"100.00 €"},{"v":100,"d":"100.00 €"},{"v":100,"d":"100.00 €"},{"v":100,"d":"100.00 €"},{"v":100,"d":"100.00 €"},{"v":100,"d":"100.00 €"},{"v":400,"d":"400.00 €"},{"v":400,"d":"400.00 €"},{"v":2300,"d":"2,300.00 €"}]
[null,"Elekter",{"v":300,"d":"300.00 €"},{"v":300,"d":"300.00 €"},{"v":300,"d":"300.00 €"},{"v":300,"d":"300.00 €"},{"v":300,"d":"300.00 €"},{"v":300,"d":"300.00 €"},{"v":300,"d":"300.00 €"},{"v":300,"d":"300.00 €"},{"v":300,"d":"300.00 €"},{"v":300,"d":"300.00 €"},{"v":300,"d":"300.00 €"},{"v":300,"d":"300.00 €"},{"v":3600,"d":"3,600.00 €"}]
[null,"Vesi",{"v":40,"d":"40.00 €"},{"v":40,"d":"40.00 €"},{"v":40,"d":"40.00 €"},{"v":40,"d":"40.00 €"},{"v":40,"d":"40.00 €"},{"v":40,"d":"40.00 €"},{"v":40,"d":"40.00 €"},{"v":40,"d":"40.00 €"},{"v":40,"d":"40.00 €"},{"v":40,"d":"40.00 €"},{"v":40,"d":"40.00 €"},{"v":40,"d":"40.00 €"},{"v":480,"d":"480.00 €"}]
[null,"Telefon",{"v":250,"d":"250.00 €"},{"v":250,"d":"250.00 €"},{"v":250,"d":"250.00 €"},{"v":250,"d":"250.00 €"},{"v":250,"d":"250.00 €"},{"v":250,"d":"250.00 €"},{"v":250,"d":"250.00 €"},{"v":250,"d":"250.00 €"},{"v":250,"d":"250.00 €"},{"v":250,"d":"250.00 €"},{"v":250,"d":"250.00 €"},{"v":250,"d":"250.00 €"},{"v":3000,"d":"3,000.00 €"}]
[null,"Interneti-ühendus",{"v":180,"d":"180.00 €"},{"v":180,"d":"180.00 €"},{"v":180,"d":"180.00 €"},{"v":180,"d":"180.00 €"},{"v":180,"d":"180.00 €"},{"v":180,"d":"180.00 €"},{"v":180,"d":"180.00 €"},{"v":180,"d":"180.00 €"},{"v":180,"d":"180.00 €"},{"v":180,"d":"180.00 €"},{"v":180,"d":"180.00 €"},{"v":180,"d":"180.00 €"},{"v":2160,"d":"2,160.00 €"}]
[null,"Kontoritarbed",{"v":200,"d":"200.00 €"},{"v":200,"d":"200.00 €"},{"v":200,"d":"200.00 €"},{"v":200,"d":"200.00 €"},{"v":200,"d":"200.00 €"},{"v":200,"d":"200.00 €"},{"v":200,"d":"200.00 €"},{"v":200,"d":"200.00 €"},{"v":200,"d":"200.00 €"},{"v":200,"d":"200.00 €"},{"v":200,"d":"200.00 €"},{"v":200,"d":"200.00 €"},{"v":2400,"d":"2,400.00 €"}]
[null,"Turvalisus",{"v":600,"d":"600.00 €"},{"v":600,"d":"600.00 €"},{"v":600,"d":"600.00 €"},{"v":600,"d":"600.00 €"},{"v":600,"d":"600.00 €"},{"v":600,"d":"600.00 €"},{"v":600,"d":"600.00 €"},{"v":600,"d":"600.00 €"},{"v":600,"d":"600.00 €"},{"v":600,"d":"600.00 €"},{"v":600,"d":"600.00 €"},{"v":600,"d":"600.00 €"},{"v":7200,"d":"7,200.00 €"}]
[null,"Vahesumma",{"$f":"SUBTOTAL(109,KontorKavandatud[Jaan])","v":{"v":11370,"d":"11,370.00 €"}},{"$f":"SUBTOTAL(109,KontorKavandatud[Veebr])","v":{"v":11770,"d":"11,770.00 €"}},{"$f":"SUBTOTAL(109,KontorKavandatud[Märts])","v":{"v":11770,"d":"11,770.00 €"}},{"$f":"SUBTOTAL(109,KontorKavandatud[Apr])","v":{"v":11470,"d":"11,470.00 €"}},{"$f":"SUBTOTAL(109,KontorKavandatud[Mai])","v":{"v":11470,"d":"11,470.00 €"}},{"$f":"SUBTOTAL(109,KontorKavandatud[Juuni])","v":{"v":11470,"d":"11,470.00 €"}},{"$f":"SUBTOTAL(109,KontorKavandatud[Juuli])","v":{"v":11470,"d":"11,470.00 €"}},{"$f":"SUBTOTAL(109,KontorKavandatud[Aug])","v":{"v":11470,"d":"11,470.00 €"}},{"$f":"SUBTOTAL(109,KontorKavandatud[Sept])","v":{"v":11470,"d":"11,470.00 €"}},{"$f":"SUBTOTAL(109,KontorKavandatud[Okt])","v":{"v":11470,"d":"11,470.00 €"}},{"$f":"SUBTOTAL(109,KontorKavandatud[Nov])","v":{"v":11770,"d":"11,770.00 €"}},{"$f":"SUBTOTAL(109,KontorKavandatud[Dets])","v":{"v":11770,"d":"11,770.00 €"}},{"$f":"SUBTOTAL(109,KontorKavandatud[AASTA])","v":{"v":138740,"d":"138,740.00 €"}}]
[]
[null,"Turunduskulud","Jaan","Veebr","Märts","Apr","Mai","Juuni","Juuli","Aug","Sept","Okt","Nov","Dets","AASTA"]
[null,"Veebilehe majutus",{"v":500,"d":"500.00 €"},{"v":500,"d":"500.00 €"},{"v":500,"d":"500.00 €"},{"v":500,"d":"500.00 €"},{"v":500,"d":"500.00 €"},{"v":500,"d":"500.00 €"},{"v":500,"d":"500.00 €"},{"v":500,"d":"500.00 €"},{"v":500,"d":"500.00 €"},{"v":500,"d":"500.00 €"},{"v":500,"d":"500.00 €"},{"v":500,"d":"500.00 €"},{"$f":"SUM(C22:N22)","v":{"v":6000,"d":"6,000.00 €"}}]
[null,"Veebisaidi värskendused",{"v":200,"d":"200.00 €"},{"v":200,"d":"200.00 €"},{"v":200,"d":"200.00 €"},{"v":200,"d":"200.00 €"},{"v":200,"d":"200.00 €"},{"v":1000,"d":"1,000.00 €"},{"v":200,"d":"200.00 €"},{"v":200,"d":"200.00 €"},{"v":200,"d":"200.00 €"},{"v":200,"d":"200.00 €"},{"v":200,"d":"200.00 €"},{"v":1000,"d":"1,000.00 €"},{"v":4000,"d":"4,000.00 €"}]
[null,"Kaasmaterjalide ettevalmistamine",{"v":5000,"d":"5,000.00 €"},{"v":0,"d":"0.00 €"},{"v":0,"d":"0.00 €"},{"v":5000,"d":"5,000.00 €"},{"v":0,"d":"0.00 €"},{"v":0,"d":"0.00 €"},{"v":5000,"d":"5,000.00 €"},{"v":0,"d":"0.00 €"},{"v":0,"d":"0.00 €"},{"v":5000,"d":"5,000.00 €"},{"v":0,"d":"0.00 €"},{"v":0,"d":"0.00 €"},{"v":20000,"d":"20,000.00 €"}]
[null,"Kaasmaterjalide printimine",{"v":200,"d":"200.00 €"},{"v":200,"d":"200.00 €"},{"v":200,"d":"200.00 €"},{"v":200,"d":"200.00 €"},{"v":200,"d":"200.00 €"},{"v":200,"d":"200.00 €"},{"v":200,"d":"200.00 €"},{"v":200,"d":"200.00 €"},{"v":200,"d":"200.00 €"},{"v":200,"d":"200.00 €"},{"v":200,"d":"200.00 €"},{"v":200,"d":"200.00 €"},{"v":2400,"d":"2,400.00 €"}]
[null,"Turundussündmused",{"v":2000,"d":"2,000.00 €"},{"v":2000,"d":"2,000.00 €"},{"v":2000,"d":"2,000.00 €"},{"v":5000,"d":"5,000.00 €"},{"v":2000,"d":"2,000.00 €"},{"v":2000,"d":"2,000.00 €"},{"v":2000,"d":"2,000.00 €"},{"v":5000,"d":"5,000.00 €"},{"v":2000,"d":"2,000.00 €"},{"v":2000,"d":"2,000.00 €"},{"v":2000,"d":"2,000.00 €"},{"v":5000,"d":"5,000.00 €"},{"v":33000,"d":"33,000.00 €"}]
[null,"Muud kulud",{"v":200,"d":"200.00 €"},{"v":200,"d":"200.00 €"},{"v":200,"d":"200.00 €"},{"v":200,"d":"200.00 €"},{"v":200,"d":"200.00 €"},{"v":200,"d":"200.00 €"},{"v":200,"d":"200.00 €"},{"v":200,"d":"200.00 €"},{"v":200,"d":"200.00 €"},{"v":200,"d":"200.00 €"},{"v":200,"d":"200.00 €"},{"v":200,"d":"200.00 €"},{"v":2400,"d":"2,400.00 €"}]
[null,"Vahesumma",{"$f":"SUBTOTAL(109,TurunduseKavandatud[Jaan])","v":{"v":8100,"d":"8,100.00 €"}},{"$f":"SUBTOTAL(109,TurunduseKavandatud[Veebr])","v":{"v":3100,"d":"3,100.00 €"}},{"$f":"SUBTOTAL(109,TurunduseKavandatud[Märts])","v":{"v":3100,"d":"3,100.00 €"}},{"$f":"SUBTOTAL(109,TurunduseKavandatud[Apr])","v":{"v":11100,"d":"11,100.00 €"}},{"$f":"SUBTOTAL(109,TurunduseKavandatud[Mai])","v":{"v":3100,"d":"3,100.00 €"}},{"$f":"SUBTOTAL(109,TurunduseKavandatud[Juuni])","v":{"v":3900,"d":"3,900.00 €"}},{"$f":"SUBTOTAL(109,TurunduseKavandatud[Juuli])","v":{"v":8100,"d":"8,100.00 €"}},{"$f":"SUBTOTAL(109,TurunduseKavandatud[Aug])","v":{"v":6100,"d":"6,100.00 €"}},{"$f":"SUBTOTAL(109,TurunduseKavandatud[Sept])","v":{"v":3100,"d":"3,100.00 €"}},{"$f":"SUBTOTAL(109,TurunduseKavandatud[Okt])","v":{"v":8100,"d":"8,100.00 €"}},{"$f":"SUBTOTAL(109,TurunduseKavandatud[Nov])","v":{"v":3100,"d":"3,100.00 €"}},{"$f":"SUBTOTAL(109,TurunduseKavandatud[Dets])","v":{"v":6900,"d":"6,900.00 €"}},{"$f":"SUBTOTAL(109,TurunduseKavandatud[AASTA])","v":{"v":67800,"d":"67,800.00 €"}}]
[]
[null,"Koolitus/reisimine","Jaan","Veebr","Märts","Apr","Mai","Juuni","Juuli","Aug","Sept","Okt","Nov","Dets","AASTA"]
[null,"Koolituskursused",{"v":2000,"d":"2,000.00 €"},{"v":2000,"d":"2,000.00 €"},{"v":2000,"d":"2,000.00 €"},{"v":2000,"d":"2,000.00 €"},{"v":2000,"d":"2,000.00 €"},{"v":2000,"d":"2,000.00 €"},{"v":2000,"d":"2,000.00 €"},{"v":2000,"d":"2,000.00 €"},{"v":2000,"d":"2,000.00 €"},{"v":2000,"d":"2,000.00 €"},{"v":2000,"d":"2,000.00 €"},{"v":2000,"d":"2,000.00 €"},{"$f":"SUM(C31:N31)","v":{"v":24000,"d":"24,000.00 €"}}]
[null,"Koolitusega seotud reisikulud",{"v":2000,"d":"2,000.00 €"},{"v":2000,"d":"2,000.00 €"},{"v":2000,"d":"2,000.00 €"},{"v":2000,"d":"2,000.00 €"},{"v":2000,"d":"2,000.00 €"},{"v":2000,"d":"2,000.00 €"},{"v":2000,"d":"2,000.00 €"},{"v":2000,"d":"2,000.00 €"},{"v":2000,"d":"2,000.00 €"},{"v":2000,"d":"2,000.00 €"},{"v":2000,"d":"2,000.00 €"},{"v":2000,"d":"2,000.00 €"},{"$f":"SUM(C32:N32)","v":{"v":24000,"d":"24,000.00 €"}}]
[null,"Vahesumma",{"$f":"SUBTOTAL(109,KoolituseJaReisiKavandatud[Jaan])","v":{"v":4000,"d":"4,000.00 €"}},{"$f":"SUBTOTAL(109,KoolituseJaReisiKavandatud[Veebr])","v":{"v":4000,"d":"4,000.00 €"}},{"$f":"SUBTOTAL(109,KoolituseJaReisiKavandatud[Märts])","v":{"v":4000,"d":"4,000.00 €"}},{"$f":"SUBTOTAL(109,KoolituseJaReisiKavandatud[Apr])","v":{"v":4000,"d":"4,000.00 €"}},{"$f":"SUBTOTAL(109,KoolituseJaReisiKavandatud[Mai])","v":{"v":4000,"d":"4,000.00 €"}},{"$f":"SUBTOTAL(109,KoolituseJaReisiKavandatud[Juuni])","v":{"v":4000,"d":"4,000.00 €"}},{"$f":"SUBTOTAL(109,KoolituseJaReisiKavandatud[Juuli])","v":{"v":4000,"d":"4,000.00 €"}},{"$f":"SUBTOTAL(109,KoolituseJaReisiKavandatud[Aug])","v":{"v":4000,"d":"4,000.00 €"}},{"$f":"SUBTOTAL(109,KoolituseJaReisiKavandatud[Sept])","v":{"v":4000,"d":"4,000.00 €"}},{"$f":"SUBTOTAL(109,KoolituseJaReisiKavandatud[Okt])","v":{"v":4000,"d":"4,000.00 €"}},{"$f":"SUBTOTAL(109,KoolituseJaReisiKavandatud[Nov])","v":{"v":4000,"d":"4,000.00 €"}},{"$f":"SUBTOTAL(109,KoolituseJaReisiKavandatud[Dets])","v":{"v":4000,"d":"4,000.00 €"}},{"$f":"SUBTOTAL(109,KoolituseJaReisiKavandatud[AASTA])","v":{"v":48000,"d":"48,000.00 €"}}]
[]
[null,"KOGUSUMMMAD","Jaan","Veebr","Märts","Apr","Mai","Juuni","Juuli","Aug","Sept","Okt","Nov","Dets","Aasta"]
[null,"Kavandatud kuu kulud",{"$f":"KoolituseJaReisiKavandatud[[#Totals],[Jaan]]+TurunduseKavandatud[[#Totals],[Jaan]]+KontorKavandatud[[#Totals],[Jaan]]+TöötajaKavandatud[[#Totals],[Jaan]]","v":{"v":131420,"d":"131,420.00 €"}},{"$f":"KoolituseJaReisiKavandatud[[#Totals],[Veebr]]+TurunduseKavandatud[[#Totals],[Veebr]]+KontorKavandatud[[#Totals],[Veebr]]+TöötajaKavandatud[[#Totals],[Veebr]]","v":{"v":126820,"d":"126,820.00 €"}},{"$f":"KoolituseJaReisiKavandatud[[#Totals],[Märts]]+TurunduseKavandatud[[#Totals],[Märts]]+KontorKavandatud[[#Totals],[Märts]]+TöötajaKavandatud[[#Totals],[Märts]]","v":{"v":126820,"d":"126,820.00 €"}},{"$f":"KoolituseJaReisiKavandatud[[#Totals],[Apr]]+TurunduseKavandatud[[#Totals],[Apr]]+KontorKavandatud[[#Totals],[Apr]]+TöötajaKavandatud[[#Totals],[Apr]]","v":{"v":137695,"d":"137,695.00 €"}},{"$f":"KoolituseJaReisiKavandatud[[#Totals],[Mai]]+TurunduseKavandatud[[#Totals],[Mai]]+KontorKavandatud[[#Totals],[Mai]]+TöötajaKavandatud[[#Totals],[Mai]]","v":{"v":129695,"d":"129,695.00 €"}},{"$f":"KoolituseJaReisiKavandatud[[#Totals],[Juuni]]+TurunduseKavandatud[[#Totals],[Juuni]]+KontorKavandatud[[#Totals],[Juuni]]+TöötajaKavandatud[[#Totals],[Juuni]]","v":{"v":130495,"d":"130,495.00 €"}},{"$f":"KoolituseJaReisiKavandatud[[#Totals],[Juuli]]+TurunduseKavandatud[[#Totals],[Juuli]]+KontorKavandatud[[#Totals],[Juuli]]+TöötajaKavandatud[[#Totals],[Juuli]]","v":{"v":134695,"d":"134,695.00 €"}},{"$f":"KoolituseJaReisiKavandatud[[#Totals],[Aug]]+TurunduseKavandatud[[#Totals],[Aug]]+KontorKavandatud[[#Totals],[Aug]]+TöötajaKavandatud[[#Totals],[Aug]]","v":{"v":138918,"d":"138,918.00 €"}},{"$f":"KoolituseJaReisiKavandatud[[#Totals],[Sept]]+TurunduseKavandatud[[#Totals],[Sept]]+KontorKavandatud[[#Totals],[Sept]]+TöötajaKavandatud[[#Totals],[Sept]]","v":{"v":135918,"d":"135,918.00 €"}},{"$f":"KoolituseJaReisiKavandatud[[#Totals],[Okt]]+TurunduseKavandatud[[#Totals],[Okt]]+KontorKavandatud[[#Totals],[Okt]]+TöötajaKavandatud[[#Totals],[Okt]]","v":{"v":140918,"d":"140,918.00 €"}},{"$f":"KoolituseJaReisiKavandatud[[#Totals],[Nov]]+TurunduseKavandatud[[#Totals],[Nov]]+KontorKavandatud[[#Totals],[Nov]]+TöötajaKavandatud[[#Totals],[Nov]]","v":{"v":136218,"d":"136,218.00 €"}},{"$f":"KoolituseJaReisiKavandatud[[#Totals],[Dets]]+TurunduseKavandatud[[#Totals],[Dets]]+KontorKavandatud[[#Totals],[Dets]]+TöötajaKavandatud[[#Totals],[Dets]]","v":{"v":140018,"d":"140,018.00 €"}},{"$f":"KoolituseJaReisiKavandatud[[#Totals],[AASTA]]+TurunduseKavandatud[[#Totals],[AASTA]]+KontorKavandatud[[#Totals],[AASTA]]+TöötajaKavandatud[[#Totals],[AASTA]]","v":{"v":1609630,"d":"1,609,630.00 €"}}]
[null,"Kuu kulud KOKKU",{"$f":"SUM($C$36:C36)","v":{"v":131420,"d":"131,420.00 €"}},{"$f":"SUM($C$36:D36)","v":{"v":258240,"d":"258,240.00 €"}},{"$f":"SUM($C$36:E36)","v":{"v":385060,"d":"385,060.00 €"}},{"$f":"SUM($C$36:F36)","v":{"v":522755,"d":"522,755.00 €"}},{"$f":"SUM($C$36:G36)","v":{"v":652450,"d":"652,450.00 €"}},{"$f":"SUM($C$36:H36)","v":{"v":782945,"d":"782,945.00 €"}},{"$f":"SUM($C$36:I36)","v":{"v":917640,"d":"917,640.00 €"}},{"$f":"SUM($C$36:J36)","v":{"v":1056558,"d":"1,056,558.00 €"}},{"$f":"SUM($C$36:K36)","v":{"v":1192476,"d":"1,192,476.00 €"}},{"$f":"SUM($C$36:L36)","v":{"v":1333394,"d":"1,333,394.00 €"}},{"$f":"SUM($C$36:M36)","v":{"v":1469612,"d":"1,469,612.00 €"}},{"$f":"SUM($C$36:N36)","v":{"v":1609630,"d":"1,609,630.00 €"}}]

{"sheet":"TEGELIKUD KULUD","index":2,"n_rows":37,"n_cols":16,"rows_kept":37,"merged":[[1,10,1,12],[2,10,2,12]]}
[{"$nulls":15}," "]
[null,{"$f":"'KAVANDATUD KULUD'!B2:D3","v":"Ettevõtte nimi"},{"$nulls":8},{"$f":"töölehe_pealkiri","v":"Üksikasjalikud kulude prognoosid"}]
[{"$nulls":10},"Varjustatud lahtrites on arvutatud väärtused."]
[null,"TEGELIKUD KULUD","JAAN","VEEBR","MÄRTS","APR","MAI","JUUNI","JUULI","AUG","SEPT","OKT","NOV","DETS","AASTA"]
[null,"Töötaja kulud","Jaan","Veebr","Märts","Apr","Mai","Juuni","Juuli","Aug","Sept","Okt","Nov","Dets","AASTA"]
[null,"Palk",{"v":85000,"d":"85,000.00 €"},{"v":85000,"d":"85,000.00 €"},{"v":85000,"d":"85,000.00 €"},{"v":88000,"d":"88,000.00 €"},{"v":88000,"d":"88,000.00 €"},{"v":88000,"d":"88,000.00 €"},{"$nulls":6},{"$f":"SUM(C6:N6)","v":{"v":519000,"d":"519,000.00 €"}}]
[null,"Soodustused",{"$f":"C6*0.27","v":{"v":22950,"d":"22,950.00 €"}},{"v":22950,"d":"22,950.00 €"},{"v":22950,"d":"22,950.00 €"},{"v":23760,"d":"23,760.00 €"},{"v":23760,"d":"23,760.00 €"},{"v":23760,"d":"23,760.00 €"},{"v":0,"d":"0.00 €"},{"v":0,"d":"0.00 €"},{"v":0,"d":"0.00 €"},{"v":0,"d":"0.00 €"},{"v":0,"d":"0.00 €"},{"v":0,"d":"0.00 €"},{"$f":"SUM(C7:N7)","v":{"v":140130,"d":"140,130.00 €"}}]
[null,"Vahesumma",{"$f":"SUBTOTAL(109,TöötajaTegelikud[Jaan])","v":{"v":107950,"d":"107,950.00 €"}},{"$f":"SUBTOTAL(109,TöötajaTegelikud[Veebr])","v":{"v":107950,"d":"107,950.00 €"}},{"$f":"SUBTOTAL(109,TöötajaTegelikud[Märts])","v":{"v":107950,"d":"107,950.00 €"}},{"$f":"SUBTOTAL(109,TöötajaTegelikud[Apr])","v":{"v":111760,"d":"111,760.00 €"}},{"$f":"SUBTOTAL(109,TöötajaTegelikud[Mai])","v":{"v":111760,"d":"111,760.00 €"}},{"$f":"SUBTOTAL(109,TöötajaTegelikud[Juuni])","v":{"v":111760,"d":"111,760.00 €"}},{"$f":"SUBTOTAL(109,TöötajaTegelikud[Juuli])","v":{"v":0,"d":"0.00 €"}},{"$f":"SUBTOTAL(109,TöötajaTegelikud[Aug])","v":{"v":0,"d":"0.00 €"}},{"$f":"SUBTOTAL(109,TöötajaTegelikud[Sept])","v":{"v":0,"d":"0.00 €"}},{"$f":"SUBTOTAL(109,TöötajaTegelikud[Okt])","v":{"v":0,"d":"0.00 €"}},{"$f":"SUBTOTAL(109,TöötajaTegelikud[Nov])","v":{"v":0,"d":"0.00 €"}},{"$f":"SUBTOTAL(109,TöötajaTegelikud[Dets])","v":{"v":0,"d":"0.00 €"}},{"$f":"SUBTOTAL(109,TöötajaTegelikud[AASTA])","v":{"v":659130,"d":"659,130.00 €"}}]
[]
[null,"Kontorikulud","Jaan","Veebr","Märts","Apr","Mai","Juuni","Juuli","Aug","Sept","Okt","Nov","Dets","AASTA"]
[null,"Kontoriüür ",{"v":9800,"d":"9,800.00 €"},{"v":9800,"d":"9,800.00 €"},{"v":9800,"d":"9,800.00 €"},{"v":9800,"d":"9,800.00 €"},{"v":9800,"d":"9,800.00 €"},{"v":9800,"d":"9,800.00 €"},{"$nulls":6},{"$f":"SUM(C11:N11)","v":{"v":58800,"d":"58,800.00 €"}}]
[null,"Gaas",{"v":4,"d":"4.00 €"},{"v":430,"d":"430.00 €"},{"v":385,"d":"385.00 €"},{"v":230,"d":"230.00 €"},{"v":87,"d":"87.00 €"},{"v":88,"d":"88.00 €"},{"$nulls":6},{"v":1224,"d":"1,224.00 €"}]
[null,"Elekter",{"v":288,"d":"288.00 €"},{"v":278,"d":"278.00 €"},{"v":268,"d":"268.00 €"},{"v":299,"d":"299.00 €"},{"v":306,"d":"306.00 €"},{"v":290,"d":"290.00 €"},{"$nulls":6},{"v":1729,"d":"1,729.00 €"}]
[null,"Vesi",{"v":35,"d":"35.00 €"},{"v":33,"d":"33.00 €"},{"v":34,"d":"34.00 €"},{"v":36,"d":"36.00 €"},{"v":34,"d":"34.00 €"},{"v":36,"d":"36.00 €"},{"$nulls":6},{"v":208,"d":"208.00 €"}]
[null,"Telefon",{"v":224,"d":"224.00 €"},{"v":235,"d":"235.00 €"},{"v":265,"d":"265.00 €"},{"v":245,"d":"245.00 €"},{"v":245,"d":"245.00 €"},{"v":220,"d":"220.00 €"},{"$nulls":6},{"v":1434,"d":"1,434.00 €"}]
[null,"Interneti-ühendus",{"v":180,"d":"180.00 €"},{"v":180,"d":"180.00 €"},{"v":180,"d":"180.00 €"},{"v":180,"d":"180.00 €"},{"v":180,"d":"180.00 €"},{"v":180,"d":"180.00 €"},{"$nulls":6},{"v":1080,"d":"1,080.00 €"}]
[null,"Kontoritarbed",{"v":256,"d":"256.00 €"},{"v":142,"d":"142.00 €"},{"v":160,"d":"160.00 €"},{"v":221,"d":"221.00 €"},{"v":256,"d":"256.00 €"},{"v":240,"d":"240.00 €"},{"$nulls":6},{"v":1275,"d":"1,275.00 €"}]
[null,"Turvalisus",{"v":600,"d":"600.00 €"},{"v":600,"d":"600.00 €"},{"v":600,"d":"600.00 €"},{"v":600,"d":"600.00 €"},{"v":600,"d":"600.00 €"},{"v":600,"d":"600.00 €"},{"$nulls":6},{"v":3600,"d":"3,600.00 €"}]
[null,"Vahesumma",{"$f":"SUBTOTAL(109,KontoriTegelikud[Jaan])","v":{"v":11387,"d":"11,387.00 €"}},{"$f":"SUBTOTAL(109,KontoriTegelikud[Veebr])","v":{"v":11698,"d":"11,698.00 €"}},{"$f":"SUBTOTAL(109,KontoriTegelikud[Märts])","v":{"v":11692,"d":"11,692.00 €"}},{"$f":"SUBTOTAL(109,KontoriTegelikud[Apr])","v":{"v":11611,"d":"11,611.00 €"}},{"$f":"SUBTOTAL(109,KontoriTegelikud[Mai])","v":{"v":11508,"d":"11,508.00 €"}},{"$f":"SUBTOTAL(109,KontoriTegelikud[Juuni])","v":{"v":11454,"d":"11,454.00 €"}},{"$f":"SUBTOTAL(109,KontoriTegelikud[Juuli])","v":{"v":0,"d":"0.00 €"}},{"$f":"SUBTOTAL(109,KontoriTegelikud[Aug])","v":{"v":0,"d":"0.00 €"}},{"$f":"SUBTOTAL(109,KontoriTegelikud[Sept])","v":{"v":0,"d":"0.00 €"}},{"$f":"SUBTOTAL(109,KontoriTegelikud[Okt])","v":{"v":0,"d":"0.00 €"}},{"$f":"SUBTOTAL(109,KontoriTegelikud[Nov])","v":{"v":0,"d":"0.00 €"}},{"$f":"SUBTOTAL(109,KontoriTegelikud[Dets])","v":{"v":0,"d":"0.00 €"}},{"$f":"SUBTOTAL(109,KontoriTegelikud[AASTA])","v":{"v":69350,"d":"69,350.00 €"}}]
[]
[null,"Turunduskulud","Jaan","Veebr","Märts","Apr","Mai","Juuni","Juuli","Aug","Sept","Okt","Nov","Dets","AASTA"]
[null,"Veebilehe majutus",{"v":500,"d":"500.00 €"},{"v":500,"d":"500.00 €"},{"v":500,"d":"500.00 €"},{"v":500,"d":"500.00 €"},{"v":500,"d":"500.00 €"},{"v":500,"d":"500.00 €"},{"$nulls":6},{"$f":"SUM(C22:N22)","v":{"v":3000,"d":"3,000.00 €"}}]
[null,"Veebisaidi värskendused",{"v":200,"d":"200.00 €"},{"v":200,"d":"200.00 €"},{"v":200,"d":"200.00 €"},{"v":200,"d":"200.00 €"},{"v":200,"d":"200.00 €"},{"v":1500,"d":"1,500.00 €"},{"$nulls":6},{"v":2500,"d":"2,500.00 €"}]
[null,"Kaasmaterjalide ettevalmistamine",{"v":4800,"d":"4,800.00 €"},{"v":0,"d":"0.00 €"},{"v":0,"d":"0.00 €"},{"v":5500,"d":"5,500.00 €"},{"v":0,"d":"0.00 €"},{"v":0,"d":"0.00 €"},{"$nulls":6},{"v":10300,"d":"10,300.00 €"}]
[null,"Kaasmaterjalide printimine",{"v":100,"d":"100.00 €"},{"v":500,"d":"500.00 €"},{"v":100,"d":"100.00 €"},{"v":100,"d":"100.00 €"},{"v":600,"d":"600.00 €"},{"v":180,"d":"180.00 €"},{"$nulls":6},{"v":1580,"d":"1,580.00 €"}]
[null,"Turundussündmused",{"v":1800,"d":"1,800.00 €"},{"v":2200,"d":"2,200.00 €"},{"v":2200,"d":"2,200.00 €"},{"v":4700,"d":"4,700.00 €"},{"v":1500,"d":"1,500.00 €"},{"v":2300,"d":"2,300.00 €"},{"$nulls":6},{"v":14700,"d":"14,700.00 €"}]
[null,"Muud kulud",{"v":145,"d":"145.00 €"},{"v":156,"d":"156.00 €"},{"v":123,"d":"123.00 €"},{"v":223,"d":"223.00 €"},{"v":187,"d":"187.00 €"},{"v":245,"d":"245.00 €"},{"$nulls":6},{"v":1079,"d":"1,079.00 €"}]
[null,"Vahesumma",{"$f":"SUBTOTAL(109,TurunduseTegelikud[Jaan])","v":{"v":7545,"d":"7,545.00 €"}},{"$f":"SUBTOTAL(109,TurunduseTegelikud[Veebr])","v":{"v":3556,"d":"3,556.00 €"}},{"$f":"SUBTOTAL(109,TurunduseTegelikud[Märts])","v":{"v":3123,"d":"3,123.00 €"}},{"$f":"SUBTOTAL(109,TurunduseTegelikud[Apr])","v":{"v":11223,"d":"11,223.00 €"}},{"$f":"SUBTOTAL(109,TurunduseTegelikud[Mai])","v":{"v":2987,"d":"2,987.00 €"}},{"$f":"SUBTOTAL(109,TurunduseTegelikud[Juuni])","v":{"v":4725,"d":"4,725.00 €"}},{"$f":"SUBTOTAL(109,TurunduseTegelikud[Juuli])","v":{"v":0,"d":"0.00 €"}},{"$f":"SUBTOTAL(109,TurunduseTegelikud[Aug])","v":{"v":0,"d":"0.00 €"}},{"$f":"SUBTOTAL(109,TurunduseTegelikud[Sept])","v":{"v":0,"d":"0.00 €"}},{"$f":"SUBTOTAL(109,TurunduseTegelikud[Okt])","v":{"v":0,"d":"0.00 €"}},{"$f":"SUBTOTAL(109,TurunduseTegelikud[Nov])","v":{"v":0,"d":"0.00 €"}},{"$f":"SUBTOTAL(109,TurunduseTegelikud[Dets])","v":{"v":0,"d":"0.00 €"}},{"$f":"SUBTOTAL(109,TurunduseTegelikud[AASTA])","v":{"v":33159,"d":"33,159.00 €"}}]
[]
[null,"Koolitus/reisimine","Jaan","Veebr","Märts","Apr","Mai","Juuni","Juuli","Aug","Sept","Okt","Nov","Dets","AASTA"]
[null,"Koolituskursused",{"v":1600,"d":"1,600.00 €"},{"v":2400,"d":"2,400.00 €"},{"v":1400,"d":"1,400.00 €"},{"v":1600,"d":"1,600.00 €"},{"v":1200,"d":"1,200.00 €"},{"v":2800,"d":"2,800.00 €"},{"$nulls":6},{"$f":"SUM(C31:N31)","v":{"v":11000,"d":"11,000.00 €"}}]
[null,"Koolitusega seotud reisikulud",{"v":1200,"d":"1,200.00 €"},{"v":2200,"d":"2,200.00 €"},{"v":1400,"d":"1,400.00 €"},{"v":1200,"d":"1,200.00 €"},{"v":800,"d":"800.00 €"},{"v":3500,"d":"3,500.00 €"},{"$nulls":6},{"$f":"SUM(C32:N32)","v":{"v":10300,"d":"10,300.00 €"}}]
[null,"Vahesumma",{"$f":"SUBTOTAL(109,KoolituseJaReisiTegelikud[Jaan])","v":{"v":2800,"d":"2,800.00 €"}},{"$f":"SUBTOTAL(109,KoolituseJaReisiTegelikud[Veebr])","v":{"v":4600,"d":"4,600.00 €"}},{"$f":"SUBTOTAL(109,KoolituseJaReisiTegelikud[Märts])","v":{"v":2800,"d":"2,800.00 €"}},{"$f":"SUBTOTAL(109,KoolituseJaReisiTegelikud[Apr])","v":{"v":2800,"d":"2,800.00 €"}},{"$f":"SUBTOTAL(109,KoolituseJaReisiTegelikud[Mai])","v":{"v":2000,"d":"2,000.00 €"}},{"$f":"SUBTOTAL(109,KoolituseJaReisiTegelikud[Juuni])","v":{"v":6300,"d":"6,300.00 €"}},{"$f":"SUBTOTAL(109,KoolituseJaReisiTegelikud[Juuli])","v":{"v":0,"d":"0.00 €"}},{"$f":"SUBTOTAL(109,KoolituseJaReisiTegelikud[Aug])","v":{"v":0,"d":"0.00 €"}},{"$f":"SUBTOTAL(109,KoolituseJaReisiTegelikud[Sept])","v":{"v":0,"d":"0.00 €"}},{"$f":"SUBTOTAL(109,KoolituseJaReisiTegelikud[Okt])","v":{"v":0,"d":"0.00 €"}},{"$f":"SUBTOTAL(109,KoolituseJaReisiTegelikud[Nov])","v":{"v":0,"d":"0.00 €"}},{"$f":"SUBTOTAL(109,KoolituseJaReisiTegelikud[Dets])","v":{"v":0,"d":"0.00 €"}},{"$f":"SUBTOTAL(109,KoolituseJaReisiTegelikud[AASTA])","v":{"v":21300,"d":"21,300.00 €"}}]
[]
[null,"Kuu kulud KOKKU","Jaan","Veebr","Märts","Apr","Mai","Juuni","Juuli","Aug","Sept","Okt","Nov","Dets","Aasta"]
[null,"Tegelikud kuu kulud",{"$f":"KoolituseJaReisiTegelikud[[#Totals],[Jaan]]+TurunduseTegelikud[[#Totals],[Jaan]]+KontoriTegelikud[[#Totals],[Jaan]]+TöötajaTegelikud[[#Totals],[Jaan]]","v":{"v":129682,"d":"129,682.00 €"}},{"$f":"KoolituseJaReisiTegelikud[[#Totals],[Veebr]]+TurunduseTegelikud[[#Totals],[Veebr]]+KontoriTegelikud[[#Totals],[Veebr]]+TöötajaTegelikud[[#Totals],[Veebr]]","v":{"v":127804,"d":"127,804.00 €"}},{"$f":"KoolituseJaReisiTegelikud[[#Totals],[Märts]]+TurunduseTegelikud[[#Totals],[Märts]]+KontoriTegelikud[[#Totals],[Märts]]+TöötajaTegelikud[[#Totals],[Märts]]","v":{"v":125565,"d":"125,565.00 €"}},{"$f":"KoolituseJaReisiTegelikud[[#Totals],[Apr]]+TurunduseTegelikud[[#Totals],[Apr]]+KontoriTegelikud[[#Totals],[Apr]]+TöötajaTegelikud[[#Totals],[Apr]]","v":{"v":137394,"d":"137,394.00 €"}},{"$f":"KoolituseJaReisiTegelikud[[#Totals],[Mai]]+TurunduseTegelikud[[#Totals],[Mai]]+KontoriTegelikud[[#Totals],[Mai]]+TöötajaTegelikud[[#Totals],[Mai]]","v":{"v":128255,"d":"128,255.00 €"}},{"$f":"KoolituseJaReisiTegelikud[[#Totals],[Juuni]]+TurunduseTegelikud[[#Totals],[Juuni]]+KontoriTegelikud[[#Totals],[Juuni]]+TöötajaTegelikud[[#Totals],[Juuni]]","v":{"v":134239,"d":"134,239.00 €"}},{"$f":"KoolituseJaReisiTegelikud[[#Totals],[Juuli]]+TurunduseTegelikud[[#Totals],[Juuli]]+KontoriTegelikud[[#Totals],[Juuli]]+TöötajaTegelikud[[#Totals],[Juuli]]","v":{"v":0,"d":"0.00 €"}},{"$f":"KoolituseJaReisiTegelikud[[#Totals],[Aug]]+TurunduseTegelikud[[#Totals],[Aug]]+KontoriTegelikud[[#Totals],[Aug]]+TöötajaTegelikud[[#Totals],[Aug]]","v":{"v":0,"d":"0.00 €"}},{"$f":"KoolituseJaReisiTegelikud[[#Totals],[Sept]]+TurunduseTegelikud[[#Totals],[Sept]]+KontoriTegelikud[[#Totals],[Sept]]+TöötajaTegelikud[[#Totals],[Sept]]","v":{"v":0,"d":"0.00 €"}},{"$f":"KoolituseJaReisiTegelikud[[#Totals],[Okt]]+TurunduseTegelikud[[#Totals],[Okt]]+KontoriTegelikud[[#Totals],[Okt]]+TöötajaTegelikud[[#Totals],[Okt]]","v":{"v":0,"d":"0.00 €"}},{"$f":"KoolituseJaReisiTegelikud[[#Totals],[Nov]]+TurunduseTegelikud[[#Totals],[Nov]]+KontoriTegelikud[[#Totals],[Nov]]+TöötajaTegelikud[[#Totals],[Nov]]","v":{"v":0,"d":"0.00 €"}},{"$f":"KoolituseJaReisiTegelikud[[#Totals],[Dets]]+TurunduseTegelikud[[#Totals],[Dets]]+KontoriTegelikud[[#Totals],[Dets]]+TöötajaTegelikud[[#Totals],[Dets]]","v":{"v":0,"d":"0.00 €"}},{"$f":"KoolituseJaReisiTegelikud[[#Totals],[AASTA]]+TurunduseTegelikud[[#Totals],[AASTA]]+KontoriTegelikud[[#Totals],[AASTA]]+TöötajaTegelikud[[#Totals],[AASTA]]","v":{"v":782939,"d":"782,939.00 €"}}]
[null,"Tegelikud kulud KOKKU",{"$f":"SUM($C$36:C36)","v":{"v":129682,"d":"129,682.00 €"}},{"$f":"SUM($C$36:D36)","v":{"v":257486,"d":"257,486.00 €"}},{"$f":"SUM($C$36:E36)","v":{"v":383051,"d":"383,051.00 €"}},{"$f":"SUM($C$36:F36)","v":{"v":520445,"d":"520,445.00 €"}},{"$f":"SUM($C$36:G36)","v":{"v":648700,"d":"648,700.00 €"}},{"$f":"SUM($C$36:H36)","v":{"v":782939,"d":"782,939.00 €"}},{"$f":"SUM($C$36:I36)","v":{"v":782939,"d":"782,939.00 €"}},{"$f":"SUM($C$36:J36)","v":{"v":782939,"d":"782,939.00 €"}},{"$f":"SUM($C$36:K36)","v":{"v":782939,"d":"782,939.00 €"}},{"$f":"SUM($C$36:L36)","v":{"v":782939,"d":"782,939.00 €"}},{"$f":"SUM($C$36:M36)","v":{"v":782939,"d":"782,939.00 €"}},{"$f":"SUM($C$36:N36)","v":{"v":782939,"d":"782,939.00 €"}}]

{"sheet":"KULUERINEVUSED","index":3,"n_rows":37,"n_cols":16,"rows_kept":37,"merged":[[1,10,1,12],[2,10,2,12]]}
[{"$nulls":15}," "]
[null,{"$f":"'KAVANDATUD KULUD'!B2:D3","v":"Ettevõtte nimi"},{"$nulls":8},{"$f":"töölehe_pealkiri","v":"Üksikasjalikud kulude prognoosid"}]
[{"$nulls":10},"Varjustatud lahtrites on arvutatud väärtused."]
[null,"KULUERINEVUSED","JAAN","VEEBR","MÄRTS","APR","MAI","JUUNI","JUULI","AUG","SEPT","OKT","NOV","DETS","AASTA"]
[null,"Töötaja kulud","Jaan","Veebr","Märts","Apr","Mai","Juuni","Juuli","Aug","Sept","Okt","Nov","Dets","AASTA"]
[null,"Palk",{"$f":"INDEX(TöötajaKavandatud[],MATCH(INDEX(TöötajaErinevused[],ROW()-ROW(TöötajaErinevused[[#Headers],[Jaan]]),1),INDEX(TöötajaKavandatud[],,1),0),MATCH(TöötajaErinevused[[#Headers],[Jaan]],TöötajaKavandatud[#Headers],0))-INDEX(TöötajaTegelikud[],MATCH(INDEX(TöötajaErinevused[],ROW()-ROW(TöötajaErinevused[[#Headers],[Jaan]]),1),INDEX(TöötajaKavandatud[],,1),0),MATCH(TöötajaErinevused[[#Headers],[Jaan]],TöötajaTegelikud[#Headers],0))","v":{"v":0,"d":"0.00 €"}},{"$f":"INDEX(TöötajaKavandatud[],MATCH(INDEX(TöötajaErinevused[],ROW()-ROW(TöötajaErinevused[[#Headers],[Veebr]]),1),INDEX(TöötajaKavandatud[],,1),0),MATCH(TöötajaErinevused[[#Headers],[Veebr]],TöötajaKavandatud[#Headers],0))-INDEX(TöötajaTegelikud[],MATCH(INDEX(TöötajaErinevused[],ROW()-ROW(TöötajaErinevused[[#Headers],[Veebr]]),1),INDEX(TöötajaKavandatud[],,1),0),MATCH(TöötajaErinevused[[#Headers],[Veebr]],TöötajaTegelikud[#Headers],0))","v":{"v":0,"d":"0.00 €"}},{"$f":"INDEX(TöötajaKavandatud[],MATCH(INDEX(TöötajaErinevused[],ROW()-ROW(TöötajaErinevused[[#Headers],[Märts]]),1),INDEX(TöötajaKavandatud[],,1),0),MATCH(TöötajaErinevused[[#Headers],[Märts]],TöötajaKavandatud[#Headers],0))-INDEX(TöötajaTegelikud[],MATCH(INDEX(TöötajaErinevused[],ROW()-ROW(TöötajaErinevused[[#Headers],[Märts]]),1),INDEX(TöötajaKavandatud[],,1),0),MATCH(TöötajaErinevused[[#Headers],[Märts]],TöötajaTegelikud[#Headers],0))","v":{"v":0,"d":"0.00 €"}},{"$f":"INDEX(TöötajaKavandatud[],MATCH(INDEX(TöötajaErinevused[],ROW()-ROW(TöötajaErinevused[[#Headers],[Apr]]),1),INDEX(TöötajaKavandatud[],,1),0),MATCH(TöötajaErinevused[[#Headers],[Apr]],TöötajaKavandatud[#Headers],0))-INDEX(TöötajaTegelikud[],MATCH(INDEX(TöötajaErinevused[],ROW()-ROW(TöötajaErinevused[[#Headers],[Apr]]),1),INDEX(TöötajaKavandatud[],,1),0),MATCH(TöötajaErinevused[[#Headers],[Apr]],TöötajaTegelikud[#Headers],0))","v":{"v":-500,"d":"-500.00 €"}},{"$f":"INDEX(TöötajaKavandatud[],MATCH(INDEX(TöötajaErinevused[],ROW()-ROW(TöötajaErinevused[[#Headers],[Mai]]),1),INDEX(TöötajaKavandatud[],,1),0),MATCH(TöötajaErinevused[[#Headers],[Mai]],TöötajaKavandatud[#Headers],0))-INDEX(TöötajaTegelikud[],MATCH(INDEX(TöötajaErinevused[],ROW()-ROW(TöötajaErinevused[[#Headers],[Mai]]),1),INDEX(TöötajaKavandatud[],,1),0),MATCH(TöötajaErinevused[[#Headers],[Mai]],TöötajaTegelikud[#Headers],0))","v":{"v":-500,"d":"-500.00 €"}},{"$f":"INDEX(TöötajaKavandatud[],MATCH(INDEX(TöötajaErinevused[],ROW()-ROW(TöötajaErinevused[[#Headers],[Juuni]]),1),INDEX(TöötajaKavandatud[],,1),0),MATCH(TöötajaErinevused[[#Headers],[Juuni]],TöötajaKavandatud[#Headers],0))-INDEX(TöötajaTegelikud[],MATCH(INDEX(TöötajaErinevused[],ROW()-ROW(TöötajaErinevused[[#Headers],[Juuni]]),1),INDEX(TöötajaKavandatud[],,1),0),MATCH(TöötajaErinevused[[#Headers],[Juuni]],TöötajaTegelikud[#Headers],0))","v":{"v":-500,"d":"-500.00 €"}},{"$f":"INDEX(TöötajaKavandatud[],MATCH(INDEX(TöötajaErinevused[],ROW()-ROW(TöötajaErinevused[[#Headers],[Juuli]]),1),INDEX(TöötajaKavandatud[],,1),0),MATCH(TöötajaErinevused[[#Headers],[Juuli]],TöötajaKavandatud[#Headers],0))-INDEX(TöötajaTegelikud[],MATCH(INDEX(TöötajaErinevused[],ROW()-ROW(TöötajaErinevused[[#Headers],[Juuli]]),1),INDEX(TöötajaKavandatud[],,1),0),MATCH(TöötajaErinevused[[#Headers],[Juuli]],TöötajaTegelikud[#Headers],0))","v":{"v":87500,"d":"87,500.00 €"}},{"$f":"INDEX(TöötajaKavandatud[],MATCH(INDEX(TöötajaErinevused[],ROW()-ROW(TöötajaErinevused[[#Headers],[Aug]]),1),INDEX(TöötajaKavandatud[],,1),0),MATCH(TöötajaErinevused[[#Headers],[Aug]],TöötajaKavandatud[#Headers],0))-INDEX(TöötajaTegelikud[],MATCH(INDEX(TöötajaErinevused[],ROW()-ROW(TöötajaErinevused[[#Headers],[Aug]]),1),INDEX(TöötajaKavandatud[],,1),0),MATCH(TöötajaErinevused[[#Headers],[Aug]],TöötajaTegelikud[#Headers],0))","v":{"v":92400,"d":"92,400.00 €"}},{"$f":"INDEX(TöötajaKavandatud[],MATCH(INDEX(TöötajaErinevused[],ROW()-ROW(TöötajaErinevused[[#Headers],[Sept]]),1),INDEX(TöötajaKavandatud[],,1),0),MATCH(TöötajaErinevused[[#Headers],[Sept]],TöötajaKavandatud[#Headers],0))-INDEX(TöötajaTegelikud[],MATCH(INDEX(TöötajaErinevused[],ROW()-ROW(TöötajaErinevused[[#Headers],[Sept]]),1),INDEX(TöötajaKavandatud[],,1),0),MATCH(TöötajaErinevused[[#Headers],[Sept]],TöötajaTegelikud[#Headers],0))","v":{"v":92400,"d":"92,400.00 €"}},{"$f":"INDEX(TöötajaKavandatud[],MATCH(INDEX(TöötajaErinevused[],ROW()-ROW(TöötajaErinevused[[#Headers],[Okt]]),1),INDEX(TöötajaKavandatud[],,1),0),MATCH(TöötajaErinevused[[#Headers],[Okt]],TöötajaKavandatud[#Headers],0))-INDEX(TöötajaTegelikud[],MATCH(INDEX(TöötajaErinevused[],ROW()-ROW(TöötajaErinevused[[#Headers],[Okt]]),1),INDEX(TöötajaKavandatud[],,1),0),MATCH(TöötajaErinevused[[#Headers],[Okt]],TöötajaTegelikud[#Headers],0))","v":{"v":92400,"d":"92,400.00 €"}},{"$f":"INDEX(TöötajaKavandatud[],MATCH(INDEX(TöötajaErinevused[],ROW()-ROW(TöötajaErinevused[[#Headers],[Nov]]),1),INDEX(TöötajaKavandatud[],,1),0),MATCH(TöötajaErinevused[[#Headers],[Nov]],TöötajaKavandatud[#Headers],0))-INDEX(TöötajaTegelikud[],MATCH(INDEX(TöötajaErinevused[],ROW()-ROW(TöötajaErinevused[[#Headers],[Nov]]),1),INDEX(TöötajaKavandatud[],,1),0),MATCH(TöötajaErinevused[[#Headers],[Nov]],TöötajaTegelikud[#Headers],0))","v":{"v":92400,"d":"92,400.00 €"}},{"$f":"INDEX(TöötajaKavandatud[],MATCH(INDEX(TöötajaErinevused[],ROW()-ROW(TöötajaErinevused[[#Headers],[Dets]]),1),INDEX(TöötajaKavandatud[],,1),0),MATCH(TöötajaErinevused[[#Headers],[Dets]],TöötajaKavandatud[#Headers],0))-INDEX(TöötajaTegelikud[],MATCH(INDEX(TöötajaErinevused[],ROW()-ROW(TöötajaErinevused[[#Headers],[Dets]]),1),INDEX(TöötajaKavandatud[],,1),0),MATCH(TöötajaErinevused[[#Headers],[Dets]],TöötajaTegelikud[#Headers],0))","v":{"v":92400,"d":"92,400.00 €"}},{"$f":"SUM(TöötajaErinevused[[#This Row],[Jaan]:[Dets]])","v":{"v":548000,"d":"548,000.00 €"}}]
[null,"Soodustused",{"$f":"INDEX(TöötajaKavandatud[],MATCH(INDEX(TöötajaErinevused[],ROW()-ROW(TöötajaErinevused[[#Headers],[Jaan]]),1),INDEX(TöötajaKavandatud[],,1),0),MATCH(TöötajaErinevused[[#Headers],[Jaan]],TöötajaKavandatud[#Headers],0))-INDEX(TöötajaTegelikud[],MATCH(INDEX(TöötajaErinevused[],ROW()-ROW(TöötajaErinevused[[#Headers],[Jaan]]),1),INDEX(TöötajaKavandatud[],,1),0),MATCH(TöötajaErinevused[[#Headers],[Jaan]],TöötajaTegelikud[#Headers],0))","v":{"v":0,"d":"0.00 €"}},{"$f":"INDEX(TöötajaKavandatud[],MATCH(INDEX(TöötajaErinevused[],ROW()-ROW(TöötajaErinevused[[#Headers],[Veebr]]),1),INDEX(TöötajaKavandatud[],,1),0),MATCH(TöötajaErinevused[[#Headers],[Veebr]],TöötajaKavandatud[#Headers],0))-INDEX(TöötajaTegelikud[],MATCH(INDEX(TöötajaErinevused[],ROW()-ROW(TöötajaErinevused[[#Headers],[Veebr]]),1),INDEX(TöötajaKavandatud[],,1),0),MATCH(TöötajaErinevused[[#Headers],[Veebr]],TöötajaTegelikud[#Headers],0))","v":{"v":0,"d":"0.00 €"}},{"$f":"INDEX(TöötajaKavandatud[],MATCH(INDEX(TöötajaErinevused[],ROW()-ROW(TöötajaErinevused[[#Headers],[Märts]]),1),INDEX(TöötajaKavandatud[],,1),0),MATCH(TöötajaErinevused[[#Headers],[Märts]],TöötajaKavandatud[#Headers],0))-INDEX(TöötajaTegelikud[],MATCH(INDEX(TöötajaErinevused[],ROW()-ROW(TöötajaErinevused[[#Headers],[Märts]]),1),INDEX(TöötajaKavandatud[],,1),0),MATCH(TöötajaErinevused[[#Headers],[Märts]],TöötajaTegelikud[#Headers],0))","v":{"v":0,"d":"0.00 €"}},{"$f":"INDEX(TöötajaKavandatud[],MATCH(INDEX(TöötajaErinevused[],ROW()-ROW(TöötajaErinevused[[#Headers],[Apr]]),1),INDEX(TöötajaKavandatud[],,1),0),MATCH(TöötajaErinevused[[#Headers],[Apr]],TöötajaKavandatud[#Headers],0))-INDEX(TöötajaTegelikud[],MATCH(INDEX(TöötajaErinevused[],ROW()-ROW(TöötajaErinevused[[#Headers],[Apr]]),1),INDEX(TöötajaKavandatud[],,1),0),MATCH(TöötajaErinevused[[#Headers],[Apr]],TöötajaTegelikud[#Headers],0))","v":{"v":-135,"d":"-135.00 €"}},{"$f":"INDEX(TöötajaKavandatud[],MATCH(INDEX(TöötajaErinevused[],ROW()-ROW(TöötajaErinevused[[#Headers],[Mai]]),1),INDEX(TöötajaKavandatud[],,1),0),MATCH(TöötajaErinevused[[#Headers],[Mai]],TöötajaKavandatud[#Headers],0))-INDEX(TöötajaTegelikud[],MATCH(INDEX(TöötajaErinevused[],ROW()-ROW(TöötajaErinevused[[#Headers],[Mai]]),1),INDEX(TöötajaKavandatud[],,1),0),MATCH(TöötajaErinevused[[#Headers],[Mai]],TöötajaTegelikud[#Headers],0))","v":{"v":-135,"d":"-135.00 €"}},{"$f":"INDEX(TöötajaKavandatud[],MATCH(INDEX(TöötajaErinevused[],ROW()-ROW(TöötajaErinevused[[#Headers],[Juuni]]),1),INDEX(TöötajaKavandatud[],,1),0),MATCH(TöötajaErinevused[[#Headers],[Juuni]],TöötajaKavandatud[#Headers],0))-INDEX(TöötajaTegelikud[],MATCH(INDEX(TöötajaErinevused[],ROW()-ROW(TöötajaErinevused[[#Headers],[Juuni]]),1),INDEX(TöötajaKavandatud[],,1),0),MATCH(TöötajaErinevused[[#Headers],[Juuni]],TöötajaTegelikud[#Headers],0))","v":{"v":-135,"d":"-135.00 €"}},{"$f":"INDEX(TöötajaKavandatud[],MATCH(INDEX(TöötajaErinevused[],ROW()-ROW(TöötajaErinevused[[#Headers],[Juuli]]),1),INDEX(TöötajaKavandatud[],,1),0),MATCH(TöötajaErinevused[[#Headers],[Juuli]],TöötajaKavandatud[#Headers],0))-INDEX(TöötajaTegelikud[],MATCH(INDEX(TöötajaErinevused[],ROW()-ROW(TöötajaErinevused[[#Headers],[Juuli]]),1),INDEX(TöötajaKavandatud[],,1),0),MATCH(TöötajaErinevused[[#Headers],[Juuli]],TöötajaTegelikud[#Headers],0))","v":{"v":23625,"d":"23,625.00 €"}},{"$f":"INDEX(TöötajaKavandatud[],MATCH(INDEX(TöötajaErinevused[],ROW()-ROW(TöötajaErinevused[[#Headers],[Aug]]),1),INDEX(TöötajaKavandatud[],,1),0),MATCH(TöötajaErinevused[[#Headers],[Aug]],TöötajaKavandatud[#Headers],0))-INDEX(TöötajaTegelikud[],MATCH(INDEX(TöötajaErinevused[],ROW()-ROW(TöötajaErinevused[[#Headers],[Aug]]),1),INDEX(TöötajaKavandatud[],,1),0),MATCH(TöötajaErinevused[[#Headers],[Aug]],TöötajaTegelikud[#Headers],0))","v":{"v":24948,"d":"24,948.00 €"}},{"$f":"INDEX(TöötajaKavandatud[],MATCH(INDEX(TöötajaErinevused[],ROW()-ROW(TöötajaErinevused[[#Headers],[Sept]]),1),INDEX(TöötajaKavandatud[],,1),0),MATCH(TöötajaErinevused[[#Headers],[Sept]],TöötajaKavandatud[#Headers],0))-INDEX(TöötajaTegelikud[],MATCH(INDEX(TöötajaErinevused[],ROW()-ROW(TöötajaErinevused[[#Headers],[Sept]]),1),INDEX(TöötajaKavandatud[],,1),0),MATCH(TöötajaErinevused[[#Headers],[Sept]],TöötajaTegelikud[#Headers],0))","v":{"v":24948,"d":"24,948.00 €"}},{"$f":"INDEX(TöötajaKavandatud[],MATCH(INDEX(TöötajaErinevused[],ROW()-ROW(TöötajaErinevused[[#Headers],[Okt]]),1),INDEX(TöötajaKavandatud[],,1),0),MATCH(TöötajaErinevused[[#Headers],[Okt]],TöötajaKavandatud[#Headers],0))-INDEX(TöötajaTegelikud[],MATCH(INDEX(TöötajaErinevused[],ROW()-ROW(TöötajaErinevused[[#Headers],[Okt]]),1),INDEX(TöötajaKavandatud[],,1),0),MATCH(TöötajaErinevused[[#Headers],[Okt]],TöötajaTegelikud[#Headers],0))","v":{"v":24948,"d":"24,948.00 €"}},{"$f":"INDEX(TöötajaKavandatud[],MATCH(INDEX(TöötajaErinevused[],ROW()-ROW(TöötajaErinevused[[#Headers],[Nov]]),1),INDEX(TöötajaKavandatud[],,1),0),MATCH(TöötajaErinevused[[#Headers],[Nov]],TöötajaKavandatud[#Headers],0))-INDEX(TöötajaTegelikud[],MATCH(INDEX(TöötajaErinevused[],ROW()-ROW(TöötajaErinevused[[#Headers],[Nov]]),1),INDEX(TöötajaKavandatud[],,1),0),MATCH(TöötajaErinevused[[#Headers],[Nov]],TöötajaTegelikud[#Headers],0))","v":{"v":24948,"d":"24,948.00 €"}},{"$f":"INDEX(TöötajaKavandatud[],MATCH(INDEX(TöötajaErinevused[],ROW()-ROW(TöötajaErinevused[[#Headers],[Dets]]),1),INDEX(TöötajaKavandatud[],,1),0),MATCH(TöötajaErinevused[[#Headers],[Dets]],TöötajaKavandatud[#Headers],0))-INDEX(TöötajaTegelikud[],MATCH(INDEX(TöötajaErinevused[],ROW()-ROW(TöötajaErinevused[[#Headers],[Dets]]),1),INDEX(TöötajaKavandatud[],,1),0),MATCH(TöötajaErinevused[[#Headers],[Dets]],TöötajaTegelikud[#Headers],0))","v":{"v":24948,"d":"24,948.00 €"}},{"$f":"SUM(TöötajaErinevused[[#This Row],[Jaan]:[Dets]])","v":{"v":147960,"d":"147,960.00 €"}}]
[null,"Vahesumma",{"$f":"SUBTOTAL(109,TöötajaErinevused[Jaan])","v":{"v":0,"d":"0.00 €"}},{"$f":"SUBTOTAL(109,TöötajaErinevused[Veebr])","v":{"v":0,"d":"0.00 €"}},{"$f":"SUBTOTAL(109,TöötajaErinevused[Märts])","v":{"v":0,"d":"0.00 €"}},{"$f":"SUBTOTAL(109,TöötajaErinevused[Apr])","v":{"v":-635,"d":"-635.00 €"}},{"$f":"SUBTOTAL(109,TöötajaErinevused[Mai])","v":{"v":-635,"d":"-635.00 €"}},{"$f":"SUBTOTAL(109,TöötajaErinevused[Juuni])","v":{"v":-635,"d":"-635.00 €"}},{"$f":"SUBTOTAL(109,TöötajaErinevused[Juuli])","v":{"v":111125,"d":"111,125.00 €"}},{"$f":"SUBTOTAL(109,TöötajaErinevused[Aug])","v":{"v":117348,"d":"117,348.00 €"}},{"$f":"SUBTOTAL(109,TöötajaErinevused[Sept])","v":{"v":117348,"d":"117,348.00 €"}},{"$f":"SUBTOTAL(109,TöötajaErinevused[Okt])","v":{"v":117348,"d":"117,348.00 €"}},{"$f":"SUBTOTAL(109,TöötajaErinevused[Nov])","v":{"v":117348,"d":"117,348.00 €"}},{"$f":"SUBTOTAL(109,TöötajaErinevused[Dets])","v":{"v":117348,"d":"117,348.00 €"}},{"$f":"SUBTOTAL(109,TöötajaErinevused[AASTA])","v":{"v":695960,"d":"695,960.00 €"}}]
[]
[null,"Kontorikulud","Jaan","Veebr","Märts","Apr","Mai","Juuni","Juuli","Aug","Sept","Okt","Nov","Dets","AASTA"]
[null,"Kontoriüür ",{"$f":"INDEX(KontorKavandatud[],MATCH(INDEX(KontoriErinevused[],ROW()-ROW(KontoriErinevused[[#Headers],[Jaan]]),1),INDEX(KontorKavandatud[],,1),0),MATCH(KontoriErinevused[[#Headers],[Jaan]],KontorKavandatud[#Headers],0))-INDEX(KontoriTegelikud[],MATCH(INDEX(KontoriErinevused[],ROW()-ROW(KontoriErinevused[[#Headers],[Jaan]]),1),INDEX(KontorKavandatud[],,1),0),MATCH(KontoriErinevused[[#Headers],[Jaan]],KontoriTegelikud[#Headers],0))","v":{"v":0,"d":"0.00 €"}},{"$f":"INDEX(KontorKavandatud[],MATCH(INDEX(KontoriErinevused[],ROW()-ROW(KontoriErinevused[[#Headers],[Veebr]]),1),INDEX(KontorKavandatud[],,1),0),MATCH(KontoriErinevused[[#Headers],[Veebr]],KontorKavandatud[#Headers],0))-INDEX(KontoriTegelikud[],MATCH(INDEX(KontoriErinevused[],ROW()-ROW(KontoriErinevused[[#Headers],[Veebr]]),1),INDEX(KontorKavandatud[],,1),0),MATCH(KontoriErinevused[[#Headers],[Veebr]],KontoriTegelikud[#Headers],0))","v":{"v":0,"d":"0.00 €"}},{"$f":"INDEX(KontorKavandatud[],MATCH(INDEX(KontoriErinevused[],ROW()-ROW(KontoriErinevused[[#Headers],[Märts]]),1),INDEX(KontorKavandatud[],,1),0),MATCH(KontoriErinevused[[#Headers],[Märts]],KontorKavandatud[#Headers],0))-INDEX(KontoriTegelikud[],MATCH(INDEX(KontoriErinevused[],ROW()-ROW(KontoriErinevused[[#Headers],[Märts]]),1),INDEX(KontorKavandatud[],,1),0),MATCH(KontoriErinevused[[#Headers],[Märts]],KontoriTegelikud[#Headers],0))","v":{"v":0,"d":"0.00 €"}},{"$f":"INDEX(KontorKavandatud[],MATCH(INDEX(KontoriErinevused[],ROW()-ROW(KontoriErinevused[[#Headers],[Apr]]),1),INDEX(KontorKavandatud[],,1),0),MATCH(KontoriErinevused[[#Headers],[Apr]],KontorKavandatud[#Headers],0))-INDEX(KontoriTegelikud[],MATCH(INDEX(KontoriErinevused[],ROW()-ROW(KontoriErinevused[[#Headers],[Apr]]),1),INDEX(KontorKavandatud[],,1),0),MATCH(KontoriErinevused[[#Headers],[Apr]],KontoriTegelikud[#Headers],0))","v":{"v":0,"d":"0.00 €"}},{"$f":"INDEX(KontorKavandatud[],MATCH(INDEX(KontoriErinevused[],ROW()-ROW(KontoriErinevused[[#Headers],[Mai]]),1),INDEX(KontorKavandatud[],,1),0),MATCH(KontoriErinevused[[#Headers],[Mai]],KontorKavandatud[#Headers],0))-INDEX(KontoriTegelikud[],MATCH(INDEX(KontoriErinevused[],ROW()-ROW(KontoriErinevused[[#Headers],[Mai]]),1),INDEX(KontorKavandatud[],,1),0),MATCH(KontoriErinevused[[#Headers],[Mai]],KontoriTegelikud[#Headers],0))","v":{"v":0,"d":"0.00 €"}},{"$f":"INDEX(KontorKavandatud[],MATCH(INDEX(KontoriErinevused[],ROW()-ROW(KontoriErinevused[[#Headers],[Juuni]]),1),INDEX(KontorKavandatud[],,1),0),MATCH(KontoriErinevused[[#Headers],[Juuni]],KontorKavandatud[#Headers],0))-INDEX(KontoriTegelikud[],MATCH(INDEX(KontoriErinevused[],ROW()-ROW(KontoriErinevused[[#Headers],[Juuni]]),1),INDEX(KontorKavandatud[],,1),0),MATCH(KontoriErinevused[[#Headers],[Juuni]],KontoriTegelikud[#Headers],0))","v":{"v":0,"d":"0.00 €"}},{"$f":"INDEX(KontorKavandatud[],MATCH(INDEX(KontoriErinevused[],ROW()-ROW(KontoriErinevused[[#Headers],[Juuli]]),1),INDEX(KontorKavandatud[],,1),0),MATCH(KontoriErinevused[[#Headers],[Juuli]],KontorKavandatud[#Headers],0))-INDEX(KontoriTegelikud[],MATCH(INDEX(KontoriErinevused[],ROW()-ROW(KontoriErinevused[[#Headers],[Juuli]]),1),INDEX(KontorKavandatud[],,1),0),MATCH(KontoriErinevused[[#Headers],[Juuli]],KontoriTegelikud[#Headers],0))","v":{"v":9800,"d":"9,800.00 €"}},{"$f":"INDEX(KontorKavandatud[],MATCH(INDEX(KontoriErinevused[],ROW()-ROW(KontoriErinevused[[#Headers],[Aug]]),1),INDEX(KontorKavandatud[],,1),0),MATCH(KontoriErinevused[[#Headers],[Aug]],KontorKavandatud[#Headers],0))-INDEX(KontoriTegelikud[],MATCH(INDEX(KontoriErinevused[],ROW()-ROW(KontoriErinevused[[#Headers],[Aug]]),1),INDEX(KontorKavandatud[],,1),0),MATCH(KontoriErinevused[[#Headers],[Aug]],KontoriTegelikud[#Headers],0))","v":{"v":9800,"d":"9,800.00 €"}},{"$f":"INDEX(KontorKavandatud[],MATCH(INDEX(KontoriErinevused[],ROW()-ROW(KontoriErinevused[[#Headers],[Sept]]),1),INDEX(KontorKavandatud[],,1),0),MATCH(KontoriErinevused[[#Headers],[Sept]],KontorKavandatud[#Headers],0))-INDEX(KontoriTegelikud[],MATCH(INDEX(KontoriErinevused[],ROW()-ROW(KontoriErinevused[[#Headers],[Sept]]),1),INDEX(KontorKavandatud[],,1),0),MATCH(KontoriErinevused[[#Headers],[Sept]],KontoriTegelikud[#Headers],0))","v":{"v":9800,"d":"9,800.00 €"}},{"$f":"INDEX(KontorKavandatud[],MATCH(INDEX(KontoriErinevused[],ROW()-ROW(KontoriErinevused[[#Headers],[Okt]]),1),INDEX(KontorKavandatud[],,1),0),MATCH(KontoriErinevused[[#Headers],[Okt]],KontorKavandatud[#Headers],0))-INDEX(KontoriTegelikud[],MATCH(INDEX(KontoriErinevused[],ROW()-ROW(KontoriErinevused[[#Headers],[Okt]]),1),INDEX(KontorKavandatud[],,1),0),MATCH(KontoriErinevused[[#Headers],[Okt]],KontoriTegelikud[#Headers],0))","v":{"v":9800,"d":"9,800.00 €"}},{"$f":"INDEX(KontorKavandatud[],MATCH(INDEX(KontoriErinevused[],ROW()-ROW(KontoriErinevused[[#Headers],[Nov]]),1),INDEX(KontorKavandatud[],,1),0),MATCH(KontoriErinevused[[#Headers],[Nov]],KontorKavandatud[#Headers],0))-INDEX(KontoriTegelikud[],MATCH(INDEX(KontoriErinevused[],ROW()-ROW(KontoriErinevused[[#Headers],[Nov]]),1),INDEX(KontorKavandatud[],,1),0),MATCH(KontoriErinevused[[#Headers],[Nov]],KontoriTegelikud[#Headers],0))","v":{"v":9800,"d":"9,800.00 €"}},{"$f":"INDEX(KontorKavandatud[],MATCH(INDEX(KontoriErinevused[],ROW()-ROW(KontoriErinevused[[#Headers],[Dets]]),1),INDEX(KontorKavandatud[],,1),0),MATCH(KontoriErinevused[[#Headers],[Dets]],KontorKavandatud[#Headers],0))-INDEX(KontoriTegelikud[],MATCH(INDEX(KontoriErinevused[],ROW()-ROW(KontoriErinevused[[#Headers],[Dets]]),1),INDEX(KontorKavandatud[],,1),0),MATCH(KontoriErinevused[[#Headers],[Dets]],KontoriTegelikud[#Headers],0))","v":{"v":9800,"d":"9,800.00 €"}},{"$f":"SUM(KontoriErinevused[[#This Row],[Jaan]:[Dets]])","v":{"v":58800,"d":"58,800.00 €"}}]
[null,"Gaas",{"$f":"INDEX(KontorKavandatud[],MATCH(INDEX(KontoriErinevused[],ROW()-ROW(KontoriErinevused[[#Headers],[Jaan]]),1),INDEX(KontorKavandatud[],,1),0),MATCH(KontoriErinevused[[#Headers],[Jaan]],KontorKavandatud[#Headers],0))-INDEX(KontoriTegelikud[],MATCH(INDEX(KontoriErinevused[],ROW()-ROW(KontoriErinevused[[#Headers],[Jaan]]),1),INDEX(KontorKavandatud[],,1),0),MATCH(KontoriErinevused[[#Headers],[Jaan]],KontoriTegelikud[#Headers],0))","v":{"v":-4,"d":"-4.00 €"}},{"$f":"INDEX(KontorKavandatud[],MATCH(INDEX(KontoriErinevused[],ROW()-ROW(KontoriErinevused[[#Headers],[Veebr]]),1),INDEX(KontorKavandatud[],,1),0),MATCH(KontoriErinevused[[#Headers],[Veebr]],KontorKavandatud[#Headers],0))-INDEX(KontoriTegelikud[],MATCH(INDEX(KontoriErinevused[],ROW()-ROW(KontoriErinevused[[#Headers],[Veebr]]),1),INDEX(KontorKavandatud[],,1),0),MATCH(KontoriErinevused[[#Headers],[Veebr]],KontoriTegelikud[#Headers],0))","v":{"v":-30,"d":"-30.00 €"}},{"$f":"INDEX(KontorKavandatud[],MATCH(INDEX(KontoriErinevused[],ROW()-ROW(KontoriErinevused[[#Headers],[Märts]]),1),INDEX(KontorKavandatud[],,1),0),MATCH(KontoriErinevused[[#Headers],[Märts]],KontorKavandatud[#Headers],0))-INDEX(KontoriTegelikud[],MATCH(INDEX(KontoriErinevused[],ROW()-ROW(KontoriErinevused[[#Headers],[Märts]]),1),INDEX(KontorKavandatud[],,1),0),MATCH(KontoriErinevused[[#Headers],[Märts]],KontoriTegelikud[#Headers],0))","v":{"v":15,"d":"15.00 €"}},{"$f":"INDEX(KontorKavandatud[],MATCH(INDEX(KontoriErinevused[],ROW()-ROW(KontoriErinevused[[#Headers],[Apr]]),1),INDEX(KontorKavandatud[],,1),0),MATCH(KontoriErinevused[[#Headers],[Apr]],KontorKavandatud[#Headers],0))-INDEX(KontoriTegelikud[],MATCH(INDEX(KontoriErinevused[],ROW()-ROW(KontoriErinevused[[#Headers],[Apr]]),1),INDEX(KontorKavandatud[],,1),0),MATCH(KontoriErinevused[[#Headers],[Apr]],KontoriTegelikud[#Headers],0))","v":{"v":-130,"d":"-130.00 €"}},{"$f":"INDEX(KontorKavandatud[],MATCH(INDEX(KontoriErinevused[],ROW()-ROW(KontoriErinevused[[#Headers],[Mai]]),1),INDEX(KontorKavandatud[],,1),0),MATCH(KontoriErinevused[[#Headers],[Mai]],KontorKavandatud[#Headers],0))-INDEX(KontoriTegelikud[],MATCH(INDEX(KontoriErinevused[],ROW()-ROW(KontoriErinevused[[#Headers],[Mai]]),1),INDEX(KontorKavandatud[],,1),0),MATCH(KontoriErinevused[[#Headers],[Mai]],KontoriTegelikud[#Headers],0))","v":{"v":13,"d":"13.00 €"}},{"$f":"INDEX(KontorKavandatud[],MATCH(INDEX(KontoriErinevused[],ROW()-ROW(KontoriErinevused[[#Headers],[Juuni]]),1),INDEX(KontorKavandatud[],,1),0),MATCH(KontoriErinevused[[#Headers],[Juuni]],KontorKavandatud[#Headers],0))-INDEX(KontoriTegelikud[],MATCH(INDEX(KontoriErinevused[],ROW()-ROW(KontoriErinevused[[#Headers],[Juuni]]),1),INDEX(KontorKavandatud[],,1),0),MATCH(KontoriErinevused[[#Headers],[Juuni]],KontoriTegelikud[#Headers],0))","v":{"v":12,"d":"12.00 €"}},{"$f":"INDEX(KontorKavandatud[],MATCH(INDEX(KontoriErinevused[],ROW()-ROW(KontoriErinevused[[#Headers],[Juuli]]),1),INDEX(KontorKavandatud[],,1),0),MATCH(KontoriErinevused[[#Headers],[Juuli]],KontorKavandatud[#Headers],0))-INDEX(KontoriTegelikud[],MATCH(INDEX(KontoriErinevused[],ROW()-ROW(KontoriErinevused[[#Headers],[Juuli]]),1),INDEX(KontorKavandatud[],,1),0),MATCH(KontoriErinevused[[#Headers],[Juuli]],KontoriTegelikud[#Headers],0))","v":{"v":100,"d":"100.00 €"}},{"$f":"INDEX(KontorKavandatud[],MATCH(INDEX(KontoriErinevused[],ROW()-ROW(KontoriErinevused[[#Headers],[Aug]]),1),INDEX(KontorKavandatud[],,1),0),MATCH(KontoriErinevused[[#Headers],[Aug]],KontorKavandatud[#Headers],0))-INDEX(KontoriTegelikud[],MATCH(INDEX(KontoriErinevused[],ROW()-ROW(KontoriErinevused[[#Headers],[Aug]]),1),INDEX(KontorKavandatud[],,1),0),MATCH(KontoriErinevused[[#Headers],[Aug]],KontoriTegelikud[#Headers],0))","v":{"v":100,"d":"100.00 €"}},{"$f":"INDEX(KontorKavandatud[],MATCH(INDEX(KontoriErinevused[],ROW()-ROW(KontoriErinevused[[#Headers],[Sept]]),1),INDEX(KontorKavandatud[],,1),0),MATCH(KontoriErinevused[[#Headers],[Sept]],KontorKavandatud[#Headers],0))-INDEX(KontoriTegelikud[],MATCH(INDEX(KontoriErinevused[],ROW()-ROW(KontoriErinevused[[#Headers],[Sept]]),1),INDEX(KontorKavandatud[],,1),0),MATCH(KontoriErinevused[[#Headers],[Sept]],KontoriTegelikud[#Headers],0))","v":{"v":100,"d":"100.00 €"}},{"$f":"INDEX(KontorKavandatud[],MATCH(INDEX(KontoriErinevused[],ROW()-ROW(KontoriErinevused[[#Headers],[Okt]]),1),INDEX(KontorKavandatud[],,1),0),MATCH(KontoriErinevused[[#Headers],[Okt]],KontorKavandatud[#Headers],0))-INDEX(KontoriTegelikud[],MATCH(INDEX(KontoriErinevused[],ROW()-ROW(KontoriErinevused[[#Headers],[Okt]]),1),INDEX(KontorKavandatud[],,1),0),MATCH(KontoriErinevused[[#Headers],[Okt]],KontoriTegelikud[#Headers],0))","v":{"v":100,"d":"100.00 €"}},{"$f":"INDEX(KontorKavandatud[],MATCH(INDEX(KontoriErinevused[],ROW()-ROW(KontoriErinevused[[#Headers],[Nov]]),1),INDEX(KontorKavandatud[],,1),0),MATCH(KontoriErinevused[[#Headers],[Nov]],KontorKavandatud[#Headers],0))-INDEX(KontoriTegelikud[],MATCH(INDEX(KontoriErinevused[],ROW()-ROW(KontoriErinevused[[#Headers],[Nov]]),1),INDEX(KontorKavandatud[],,1),0),MATCH(KontoriErinevused[[#Headers],[Nov]],KontoriTegelikud[#Headers],0))","v":{"v":400,"d":"400.00 €"}},{"$f":"INDEX(KontorKavandatud[],MATCH(INDEX(KontoriErinevused[],ROW()-ROW(KontoriErinevused[[#Headers],[Dets]]),1),INDEX(KontorKavandatud[],,1),0),MATCH(KontoriErinevused[[#Headers],[Dets]],KontorKavandatud[#Headers],0))-INDEX(KontoriTegelikud[],MATCH(INDEX(KontoriErinevused[],ROW()-ROW(KontoriErinevused[[#Headers],[Dets]]),1),INDEX(KontorKavandatud[],,1),0),MATCH(KontoriErinevused[[#Headers],[Dets]],KontoriTegelikud[#Headers],0))","v":{"v":400,"d":"400.00 €"}},{"$f":"SUM(KontoriErinevused[[#This Row],[Jaan]:[Dets]])","v":{"v":1076,"d":"1,076.00 €"}}]
[null,"Elekter",{"$f":"INDEX(KontorKavandatud[],MATCH(INDEX(KontoriErinevused[],ROW()-ROW(KontoriErinevused[[#Headers],[Jaan]]),1),INDEX(KontorKavandatud[],,1),0),MATCH(KontoriErinevused[[#Headers],[Jaan]],KontorKavandatud[#Headers],0))-INDEX(KontoriTegelikud[],MATCH(INDEX(KontoriErinevused[],ROW()-ROW(KontoriErinevused[[#Headers],[Jaan]]),1),INDEX(KontorKavandatud[],,1),0),MATCH(KontoriErinevused[[#Headers],[Jaan]],KontoriTegelikud[#Headers],0))","v":{"v":12,"d":"12.00 €"}},{"$f":"INDEX(KontorKavandatud[],MATCH(INDEX(KontoriErinevused[],ROW()-ROW(KontoriErinevused[[#Headers],[Veebr]]),1),INDEX(KontorKavandatud[],,1),0),MATCH(KontoriErinevused[[#Headers],[Veebr]],KontorKavandatud[#Headers],0))-INDEX(KontoriTegelikud[],MATCH(INDEX(KontoriErinevused[],ROW()-ROW(KontoriErinevused[[#Headers],[Veebr]]),1),INDEX(KontorKavandatud[],,1),0),MATCH(KontoriErinevused[[#Headers],[Veebr]],KontoriTegelikud[#Headers],0))","v":{"v":22,"d":"22.00 €"}},{"$f":"INDEX(KontorKavandatud[],MATCH(INDEX(KontoriErinevused[],ROW()-ROW(KontoriErinevused[[#Headers],[Märts]]),1),INDEX(KontorKavandatud[],,1),0),MATCH(KontoriErinevused[[#Headers],[Märts]],KontorKavandatud[#Headers],0))-INDEX(KontoriTegelikud[],MATCH(INDEX(KontoriErinevused[],ROW()-ROW(KontoriErinevused[[#Headers],[Märts]]),1),INDEX(KontorKavandatud[],,1),0),MATCH(KontoriErinevused[[#Headers],[Märts]],KontoriTegelikud[#Headers],0))","v":{"v":32,"d":"32.00 €"}},{"$f":"INDEX(KontorKavandatud[],MATCH(INDEX(KontoriErinevused[],ROW()-ROW(KontoriErinevused[[#Headers],[Apr]]),1),INDEX(KontorKavandatud[],,1),0),MATCH(KontoriErinevused[[#Headers],[Apr]],KontorKavandatud[#Headers],0))-INDEX(KontoriTegelikud[],MATCH(INDEX(KontoriErinevused[],ROW()-ROW(KontoriErinevused[[#Headers],[Apr]]),1),INDEX(KontorKavandatud[],,1),0),MATCH(KontoriErinevused[[#Headers],[Apr]],KontoriTegelikud[#Headers],0))","v":{"v":1,"d":"1.00 €"}},{"$f":"INDEX(KontorKavandatud[],MATCH(INDEX(KontoriErinevused[],ROW()-ROW(KontoriErinevused[[#Headers],[Mai]]),1),INDEX(KontorKavandatud[],,1),0),MATCH(KontoriErinevused[[#Headers],[Mai]],KontorKavandatud[#Headers],0))-INDEX(KontoriTegelikud[],MATCH(INDEX(KontoriErinevused[],ROW()-ROW(KontoriErinevused[[#Headers],[Mai]]),1),INDEX(KontorKavandatud[],,1),0),MATCH(KontoriErinevused[[#Headers],[Mai]],KontoriTegelikud[#Headers],0))","v":{"v":-6,"d":"-6.00 €"}},{"$f":"INDEX(KontorKavandatud[],MATCH(INDEX(KontoriErinevused[],ROW()-ROW(KontoriErinevused[[#Headers],[Juuni]]),1),INDEX(KontorKavandatud[],,1),0),MATCH(KontoriErinevused[[#Headers],[Juuni]],KontorKavandatud[#Headers],0))-INDEX(KontoriTegelikud[],MATCH(INDEX(KontoriErinevused[],ROW()-ROW(KontoriErinevused[[#Headers],[Juuni]]),1),INDEX(KontorKavandatud[],,1),0),MATCH(KontoriErinevused[[#Headers],[Juuni]],KontoriTegelikud[#Headers],0))","v":{"v":10,"d":"10.00 €"}},{"$f":"INDEX(KontorKavandatud[],MATCH(INDEX(KontoriErinevused[],ROW()-ROW(KontoriErinevused[[#Headers],[Juuli]]),1),INDEX(KontorKavandatud[],,1),0),MATCH(KontoriErinevused[[#Headers],[Juuli]],KontorKavandatud[#Headers],0))-INDEX(KontoriTegelikud[],MATCH(INDEX(KontoriErinevused[],ROW()-ROW(KontoriErinevused[[#Headers],[Juuli]]),1),INDEX(KontorKavandatud[],,1),0),MATCH(KontoriErinevused[[#Headers],[Juuli]],KontoriTegelikud[#Headers],0))","v":{"v":300,"d":"300.00 €"}},{"$f":"INDEX(KontorKavandatud[],MATCH(INDEX(KontoriErinevused[],ROW()-ROW(KontoriErinevused[[#Headers],[Aug]]),1),INDEX(KontorKavandatud[],,1),0),MATCH(KontoriErinevused[[#Headers],[Aug]],KontorKavandatud[#Headers],0))-INDEX(KontoriTegelikud[],MATCH(INDEX(KontoriErinevused[],ROW()-ROW(KontoriErinevused[[#Headers],[Aug]]),1),INDEX(KontorKavandatud[],,1),0),MATCH(KontoriErinevused[[#Headers],[Aug]],KontoriTegelikud[#Headers],0))","v":{"v":300,"d":"300.00 €"}},{"$f":"INDEX(KontorKavandatud[],MATCH(INDEX(KontoriErinevused[],ROW()-ROW(KontoriErinevused[[#Headers],[Sept]]),1),INDEX(KontorKavandatud[],,1),0),MATCH(KontoriErinevused[[#Headers],[Sept]],KontorKavandatud[#Headers],0))-INDEX(KontoriTegelikud[],MATCH(INDEX(KontoriErinevused[],ROW()-ROW(KontoriErinevused[[#Headers],[Sept]]),1),INDEX(KontorKavandatud[],,1),0),MATCH(KontoriErinevused[[#Headers],[Sept]],KontoriTegelikud[#Headers],0))","v":{"v":300,"d":"300.00 €"}},{"$f":"INDEX(KontorKavandatud[],MATCH(INDEX(KontoriErinevused[],ROW()-ROW(KontoriErinevused[[#Headers],[Okt]]),1),INDEX(KontorKavandatud[],,1),0),MATCH(KontoriErinevused[[#Headers],[Okt]],KontorKavandatud[#Headers],0))-INDEX(KontoriTegelikud[],MATCH(INDEX(KontoriErinevused[],ROW()-ROW(KontoriErinevused[[#Headers],[Okt]]),1),INDEX(KontorKavandatud[],,1),0),MATCH(KontoriErinevused[[#Headers],[Okt]],KontoriTegelikud[#Headers],0))","v":{"v":300,"d":"300.00 €"}},{"$f":"INDEX(KontorKavandatud[],MATCH(INDEX(KontoriErinevused[],ROW()-ROW(KontoriErinevused[[#Headers],[Nov]]),1),INDEX(KontorKavandatud[],,1),0),MATCH(KontoriErinevused[[#Headers],[Nov]],KontorKavandatud[#Headers],0))-INDEX(KontoriTegelikud[],MATCH(INDEX(KontoriErinevused[],ROW()-ROW(KontoriErinevused[[#Headers],[Nov]]),1),INDEX(KontorKavandatud[],,1),0),MATCH(KontoriErinevused[[#Headers],[Nov]],KontoriTegelikud[#Headers],0))","v":{"v":300,"d":"300.00 €"}},{"$f":"INDEX(KontorKavandatud[],MATCH(INDEX(KontoriErinevused[],ROW()-ROW(KontoriErinevused[[#Headers],[Dets]]),1),INDEX(KontorKavandatud[],,1),0),MATCH(KontoriErinevused[[#Headers],[Dets]],KontorKavandatud[#Headers],0))-INDEX(KontoriTegelikud[],MATCH(INDEX(KontoriErinevused[],ROW()-ROW(KontoriErinevused[[#Headers],[Dets]]),1),INDEX(KontorKavandatud[],,1),0),MATCH(KontoriErinevused[[#Headers],[Dets]],KontoriTegelikud[#Headers],0))","v":{"v":300,"d":"300.00 €"}},{"$f":"SUM(KontoriErinevused[[#This Row],[Jaan]:[Dets]])","v":{"v":1871,"d":"1,871.00 €"}}]
[null,"Vesi",{"$f":"INDEX(KontorKavandatud[],MATCH(INDEX(KontoriErinevused[],ROW()-ROW(KontoriErinevused[[#Headers],[Jaan]]),1),INDEX(KontorKavandatud[],,1),0),MATCH(KontoriErinevused[[#Headers],[Jaan]],KontorKavandatud[#Headers],0))-INDEX(KontoriTegelikud[],MATCH(INDEX(KontoriErinevused[],ROW()-ROW(KontoriErinevused[[#Headers],[Jaan]]),1),INDEX(KontorKavandatud[],,1),0),MATCH(KontoriErinevused[[#Headers],[Jaan]],KontoriTegelikud[#Headers],0))","v":{"v":5,"d":"5.00 €"}},{"$f":"INDEX(KontorKavandatud[],MATCH(INDEX(KontoriErinevused[],ROW()-ROW(KontoriErinevused[[#Headers],[Veebr]]),1),INDEX(KontorKavandatud[],,1),0),MATCH(KontoriErinevused[[#Headers],[Veebr]],KontorKavandatud[#Headers],0))-INDEX(KontoriTegelikud[],MATCH(INDEX(KontoriErinevused[],ROW()-ROW(KontoriErinevused[[#Headers],[Veebr]]),1),INDEX(KontorKavandatud[],,1),0),MATCH(KontoriErinevused[[#Headers],[Veebr]],KontoriTegelikud[#Headers],0))","v":{"v":7,"d":"7.00 €"}},{"$f":"INDEX(KontorKavandatud[],MATCH(INDEX(KontoriErinevused[],ROW()-ROW(KontoriErinevused[[#Headers],[Märts]]),1),INDEX(KontorKavandatud[],,1),0),MATCH(KontoriErinevused[[#Headers],[Märts]],KontorKavandatud[#Headers],0))-INDEX(KontoriTegelikud[],MATCH(INDEX(KontoriErinevused[],ROW()-ROW(KontoriErinevused[[#Headers],[Märts]]),1),INDEX(KontorKavandatud[],,1),0),MATCH(KontoriErinevused[[#Headers],[Märts]],KontoriTegelikud[#Headers],0))","v":{"v":6,"d":"6.00 €"}},{"$f":"INDEX(KontorKavandatud[],MATCH(INDEX(KontoriErinevused[],ROW()-ROW(KontoriErinevused[[#Headers],[Apr]]),1),INDEX(KontorKavandatud[],,1),0),MATCH(KontoriErinevused[[#Headers],[Apr]],KontorKavandatud[#Headers],0))-INDEX(KontoriTegelikud[],MATCH(INDEX(KontoriErinevused[],ROW()-ROW(KontoriErinevused[[#Headers],[Apr]]),1),INDEX(KontorKavandatud[],,1),0),MATCH(KontoriErinevused[[#Headers],[Apr]],KontoriTegelikud[#Headers],0))","v":{"v":4,"d":"4.00 €"}},{"$f":"INDEX(KontorKavandatud[],MATCH(INDEX(KontoriErinevused[],ROW()-ROW(KontoriErinevused[[#Headers],[Mai]]),1),INDEX(KontorKavandatud[],,1),0),MATCH(KontoriErinevused[[#Headers],[Mai]],KontorKavandatud[#Headers],0))-INDEX(KontoriTegelikud[],MATCH(INDEX(KontoriErinevused[],ROW()-ROW(KontoriErinevused[[#Headers],[Mai]]),1),INDEX(KontorKavandatud[],,1),0),MATCH(KontoriErinevused[[#Headers],[Mai]],KontoriTegelikud[#Headers],0))","v":{"v":6,"d":"6.00 €"}},{"$f":"INDEX(KontorKavandatud[],MATCH(INDEX(KontoriErinevused[],ROW()-ROW(KontoriErinevused[[#Headers],[Juuni]]),1),INDEX(KontorKavandatud[],,1),0),MATCH(KontoriErinevused[[#Headers],[Juuni]],KontorKavandatud[#Headers],0))-INDEX(KontoriTegelikud[],MATCH(INDEX(KontoriErinevused[],ROW()-ROW(KontoriErinevused[[#Headers],[Juuni]]),1),INDEX(KontorKavandatud[],,1),0),MATCH(KontoriErinevused[[#Headers],[Juuni]],KontoriTegelikud[#Headers],0))","v":{"v":4,"d":"4.00 €"}},{"$f":"INDEX(KontorKavandatud[],MATCH(INDEX(KontoriErinevused[],ROW()-ROW(KontoriErinevused[[#Headers],[Juuli]]),1),INDEX(KontorKavandatud[],,1),0),MATCH(KontoriErinevused[[#Headers],[Juuli]],KontorKavandatud[#Headers],0))-INDEX(KontoriTegelikud[],MATCH(INDEX(KontoriErinevused[],ROW()-ROW(KontoriErinevused[[#Headers],[Juuli]]),1),INDEX(KontorKavandatud[],,1),0),MATCH(KontoriErinevused[[#Headers],[Juuli]],KontoriTegelikud[#Headers],0))","v":{"v":40,"d":"40.00 €"}},{"$f":"INDEX(KontorKavandatud[],MATCH(INDEX(KontoriErinevused[],ROW()-ROW(KontoriErinevused[[#Headers],[Aug]]),1),INDEX(KontorKavandatud[],,1),0),MATCH(KontoriErinevused[[#Headers],[Aug]],KontorKavandatud[#Headers],0))-INDEX(KontoriTegelikud[],MATCH(INDEX(KontoriErinevused[],ROW()-ROW(KontoriErinevused[[#Headers],[Aug]]),1),INDEX(KontorKavandatud[],,1),0),MATCH(KontoriErinevused[[#Headers],[Aug]],KontoriTegelikud[#Headers],0))","v":{"v":40,"d":"40.00 €"}},{"$f":"INDEX(KontorKavandatud[],MATCH(INDEX(KontoriErinevused[],ROW()-ROW(KontoriErinevused[[#Headers],[Sept]]),1),INDEX(KontorKavandatud[],,1),0),MATCH(KontoriErinevused[[#Headers],[Sept]],KontorKavandatud[#Headers],0))-INDEX(KontoriTegelikud[],MATCH(INDEX(KontoriErinevused[],ROW()-ROW(KontoriErinevused[[#Headers],[Sept]]),1),INDEX(KontorKavandatud[],,1),0),MATCH(KontoriErinevused[[#Headers],[Sept]],KontoriTegelikud[#Headers],0))","v":{"v":40,"d":"40.00 €"}},{"$f":"INDEX(KontorKavandatud[],MATCH(INDEX(KontoriErinevused[],ROW()-ROW(KontoriErinevused[[#Headers],[Okt]]),1),INDEX(KontorKavandatud[],,1),0),MATCH(KontoriErinevused[[#Headers],[Okt]],KontorKavandatud[#Headers],0))-INDEX(KontoriTegelikud[],MATCH(INDEX(KontoriErinevused[],ROW()-ROW(KontoriErinevused[[#Headers],[Okt]]),1),INDEX(KontorKavandatud[],,1),0),MATCH(KontoriErinevused[[#Headers],[Okt]],KontoriTegelikud[#Headers],0))","v":{"v":40,"d":"40.00 €"}},{"$f":"INDEX(KontorKavandatud[],MATCH(INDEX(KontoriErinevused[],ROW()-ROW(KontoriErinevused[[#Headers],[Nov]]),1),INDEX(KontorKavandatud[],,1),0),MATCH(KontoriErinevused[[#Headers],[Nov]],KontorKavandatud[#Headers],0))-INDEX(KontoriTegelikud[],MATCH(INDEX(KontoriErinevused[],ROW()-ROW(KontoriErinevused[[#Headers],[Nov]]),1),INDEX(KontorKavandatud[],,1),0),MATCH(KontoriErinevused[[#Headers],[Nov]],KontoriTegelikud[#Headers],0))","v":{"v":40,"d":"40.00 €"}},{"$f":"INDEX(KontorKavandatud[],MATCH(INDEX(KontoriErinevused[],ROW()-ROW(KontoriErinevused[[#Headers],[Dets]]),1),INDEX(KontorKavandatud[],,1),0),MATCH(KontoriErinevused[[#Headers],[Dets]],KontorKavandatud[#Headers],0))-INDEX(KontoriTegelikud[],MATCH(INDEX(KontoriErinevused[],ROW()-ROW(KontoriErinevused[[#Headers],[Dets]]),1),INDEX(KontorKavandatud[],,1),0),MATCH(KontoriErinevused[[#Headers],[Dets]],KontoriTegelikud[#Headers],0))","v":{"v":40,"d":"40.00 €"}},{"$f":"SUM(KontoriErinevused[[#This Row],[Jaan]:[Dets]])","v":{"v":272,"d":"272.00 €"}}]
[null,"Telefon",{"$f":"INDEX(KontorKavandatud[],MATCH(INDEX(KontoriErinevused[],ROW()-ROW(KontoriErinevused[[#Headers],[Jaan]]),1),INDEX(KontorKavandatud[],,1),0),MATCH(KontoriErinevused[[#Headers],[Jaan]],KontorKavandatud[#Headers],0))-INDEX(KontoriTegelikud[],MATCH(INDEX(KontoriErinevused[],ROW()-ROW(KontoriErinevused[[#Headers],[Jaan]]),1),INDEX(KontorKavandatud[],,1),0),MATCH(KontoriErinevused[[#Headers],[Jaan]],KontoriTegelikud[#Headers],0))","v":{"v":26,"d":"26.00 €"}},{"$f":"INDEX(KontorKavandatud[],MATCH(INDEX(KontoriErinevused[],ROW()-ROW(KontoriErinevused[[#Headers],[Veebr]]),1),INDEX(KontorKavandatud[],,1),0),MATCH(KontoriErinevused[[#Headers],[Veebr]],KontorKavandatud[#Headers],0))-INDEX(KontoriTegelikud[],MATCH(INDEX(KontoriErinevused[],ROW()-ROW(KontoriErinevused[[#Headers],[Veebr]]),1),INDEX(KontorKavandatud[],,1),0),MATCH(KontoriErinevused[[#Headers],[Veebr]],KontoriTegelikud[#Headers],0))","v":{"v":15,"d":"15.00 €"}},{"$f":"INDEX(KontorKavandatud[],MATCH(INDEX(KontoriErinevused[],ROW()-ROW(KontoriErinevused[[#Headers],[Märts]]),1),INDEX(KontorKavandatud[],,1),0),MATCH(KontoriErinevused[[#Headers],[Märts]],KontorKavandatud[#Headers],0))-INDEX(KontoriTegelikud[],MATCH(INDEX(KontoriErinevused[],ROW()-ROW(KontoriErinevused[[#Headers],[Märts]]),1),INDEX(KontorKavandatud[],,1),0),MATCH(KontoriErinevused[[#Headers],[Märts]],KontoriTegelikud[#Headers],0))","v":{"v":-15,"d":"-15.00 €"}},{"$f":"INDEX(KontorKavandatud[],MATCH(INDEX(KontoriErinevused[],ROW()-ROW(KontoriErinevused[[#Headers],[Apr]]),1),INDEX(KontorKavandatud[],,1),0),MATCH(KontoriErinevused[[#Headers],[Apr]],KontorKavandatud[#Headers],0))-INDEX(KontoriTegelikud[],MATCH(INDEX(KontoriErinevused[],ROW()-ROW(KontoriErinevused[[#Headers],[Apr]]),1),INDEX(KontorKavandatud[],,1),0),MATCH(KontoriErinevused[[#Headers],[Apr]],KontoriTegelikud[#Headers],0))","v":{"v":5,"d":"5.00 €"}},{"$f":"INDEX(KontorKavandatud[],MATCH(INDEX(KontoriErinevused[],ROW()-ROW(KontoriErinevused[[#Headers],[Mai]]),1),INDEX(KontorKavandatud[],,1),0),MATCH(KontoriErinevused[[#Headers],[Mai]],KontorKavandatud[#Headers],0))-INDEX(KontoriTegelikud[],MATCH(INDEX(KontoriErinevused[],ROW()-ROW(KontoriErinevused[[#Headers],[Mai]]),1),INDEX(KontorKavandatud[],,1),0),MATCH(KontoriErinevused[[#Headers],[Mai]],KontoriTegelikud[#Headers],0))","v":{"v":5,"d":"5.00 €"}},{"$f":"INDEX(KontorKavandatud[],MATCH(INDEX(KontoriErinevused[],ROW()-ROW(KontoriErinevused[[#Headers],[Juuni]]),1),INDEX(KontorKavandatud[],,1),0),MATCH(KontoriErinevused[[#Headers],[Juuni]],KontorKavandatud[#Headers],0))-INDEX(KontoriTegelikud[],MATCH(INDEX(KontoriErinevused[],ROW()-ROW(KontoriErinevused[[#Headers],[Juuni]]),1),INDEX(KontorKavandatud[],,1),0),MATCH(KontoriErinevused[[#Headers],[Juuni]],KontoriTegelikud[#Headers],0))","v":{"v":30,"d":"30.00 €"}},{"$f":"INDEX(KontorKavandatud[],MATCH(INDEX(KontoriErinevused[],ROW()-ROW(KontoriErinevused[[#Headers],[Juuli]]),1),INDEX(KontorKavandatud[],,1),0),MATCH(KontoriErinevused[[#Headers],[Juuli]],KontorKavandatud[#Headers],0))-INDEX(KontoriTegelikud[],MATCH(INDEX(KontoriErinevused[],ROW()-ROW(KontoriErinevused[[#Headers],[Juuli]]),1),INDEX(KontorKavandatud[],,1),0),MATCH(KontoriErinevused[[#Headers],[Juuli]],KontoriTegelikud[#Headers],0))","v":{"v":250,"d":"250.00 €"}},{"$f":"INDEX(KontorKavandatud[],MATCH(INDEX(KontoriErinevused[],ROW()-ROW(KontoriErinevused[[#Headers],[Aug]]),1),INDEX(KontorKavandatud[],,1),0),MATCH(KontoriErinevused[[#Headers],[Aug]],KontorKavandatud[#Headers],0))-INDEX(KontoriTegelikud[],MATCH(INDEX(KontoriErinevused[],ROW()-ROW(KontoriErinevused[[#Headers],[Aug]]),1),INDEX(KontorKavandatud[],,1),0),MATCH(KontoriErinevused[[#Headers],[Aug]],KontoriTegelikud[#Headers],0))","v":{"v":250,"d":"250.00 €"}},{"$f":"INDEX(KontorKavandatud[],MATCH(INDEX(KontoriErinevused[],ROW()-ROW(KontoriErinevused[[#Headers],[Sept]]),1),INDEX(KontorKavandatud[],,1),0),MATCH(KontoriErinevused[[#Headers],[Sept]],KontorKavandatud[#Headers],0))-INDEX(KontoriTegelikud[],MATCH(INDEX(KontoriErinevused[],ROW()-ROW(KontoriErinevused[[#Headers],[Sept]]),1),INDEX(KontorKavandatud[],,1),0),MATCH(KontoriErinevused[[#Headers],[Sept]],KontoriTegelikud[#Headers],0))","v":{"v":250,"d":"250.00 €"}},{"$f":"INDEX(KontorKavandatud[],MATCH(INDEX(KontoriErinevused[],ROW()-ROW(KontoriErinevused[[#Headers],[Okt]]),1),INDEX(KontorKavandatud[],,1),0),MATCH(KontoriErinevused[[#Headers],[Okt]],KontorKavandatud[#Headers],0))-INDEX(KontoriTegelikud[],MATCH(INDEX(KontoriErinevused[],ROW()-ROW(KontoriErinevused[[#Headers],[Okt]]),1),INDEX(KontorKavandatud[],,1),0),MATCH(KontoriErinevused[[#Headers],[Okt]],KontoriTegelikud[#Headers],0))","v":{"v":250,"d":"250.00 €"}},{"$f":"INDEX(KontorKavandatud[],MATCH(INDEX(KontoriErinevused[],ROW()-ROW(KontoriErinevused[[#Headers],[Nov]]),1),INDEX(KontorKavandatud[],,1),0),MATCH(KontoriErinevused[[#Headers],[Nov]],KontorKavandatud[#Headers],0))-INDEX(KontoriTegelikud[],MATCH(INDEX(KontoriErinevused[],ROW()-ROW(KontoriErinevused[[#Headers],[Nov]]),1),INDEX(KontorKavandatud[],,1),0),MATCH(KontoriErinevused[[#Headers],[Nov]],KontoriTegelikud[#Headers],0))","v":{"v":250,"d":"250.00 €"}},{"$f":"INDEX(KontorKavandatud[],MATCH(INDEX(KontoriErinevused[],ROW()-ROW(KontoriErinevused[[#Headers],[Dets]]),1),INDEX(KontorKavandatud[],,1),0),MATCH(KontoriErinevused[[#Headers],[Dets]],KontorKavandatud[#Headers],0))-INDEX(KontoriTegelikud[],MATCH(INDEX(KontoriErinevused[],ROW()-ROW(KontoriErinevused[[#Headers],[Dets]]),1),INDEX(KontorKavandatud[],,1),0),MATCH(KontoriErinevused[[#Headers],[Dets]],KontoriTegelikud[#Headers],0))","v":{"v":250,"d":"250.00 €"}},{"$f":"SUM(KontoriErinevused[[#This Row],[Jaan]:[Dets]])","v":{"v":1566,"d":"1,566.00 €"}}]
[null,"Interneti-ühendus",{"$f":"INDEX(KontorKavandatud[],MATCH(INDEX(KontoriErinevused[],ROW()-ROW(KontoriErinevused[[#Headers],[Jaan]]),1),INDEX(KontorKavandatud[],,1),0),MATCH(KontoriErinevused[[#Headers],[Jaan]],KontorKavandatud[#Headers],0))-INDEX(KontoriTegelikud[],MATCH(INDEX(KontoriErinevused[],ROW()-ROW(KontoriErinevused[[#Headers],[Jaan]]),1),INDEX(KontorKavandatud[],,1),0),MATCH(KontoriErinevused[[#Headers],[Jaan]],KontoriTegelikud[#Headers],0))","v":{"v":0,"d":"0.00 €"}},{"$f":"INDEX(KontorKavandatud[],MATCH(INDEX(KontoriErinevused[],ROW()-ROW(KontoriErinevused[[#Headers],[Veebr]]),1),INDEX(KontorKavandatud[],,1),0),MATCH(KontoriErinevused[[#Headers],[Veebr]],KontorKavandatud[#Headers],0))-INDEX(KontoriTegelikud[],MATCH(INDEX(KontoriErinevused[],ROW()-ROW(KontoriErinevused[[#Headers],[Veebr]]),1),INDEX(KontorKavandatud[],,1),0),MATCH(KontoriErinevused[[#Headers],[Veebr]],KontoriTegelikud[#Headers],0))","v":{"v":0,"d":"0.00 €"}},{"$f":"INDEX(KontorKavandatud[],MATCH(INDEX(KontoriErinevused[],ROW()-ROW(KontoriErinevused[[#Headers],[Märts]]),1),INDEX(KontorKavandatud[],,1),0),MATCH(KontoriErinevused[[#Headers],[Märts]],KontorKavandatud[#Headers],0))-INDEX(KontoriTegelikud[],MATCH(INDEX(KontoriErinevused[],ROW()-ROW(KontoriErinevused[[#Headers],[Märts]]),1),INDEX(KontorKavandatud[],,1),0),MATCH(KontoriErinevused[[#Headers],[Märts]],KontoriTegelikud[#Headers],0))","v":{"v":0,"d":"0.00 €"}},{"$f":"INDEX(KontorKavandatud[],MATCH(INDEX(KontoriErinevused[],ROW()-ROW(KontoriErinevused[[#Headers],[Apr]]),1),INDEX(KontorKavandatud[],,1),0),MATCH(KontoriErinevused[[#Headers],[Apr]],KontorKavandatud[#Headers],0))-INDEX(KontoriTegelikud[],MATCH(INDEX(KontoriErinevused[],ROW()-ROW(KontoriErinevused[[#Headers],[Apr]]),1),INDEX(KontorKavandatud[],,1),0),MATCH(KontoriErinevused[[#Headers],[Apr]],KontoriTegelikud[#Headers],0))","v":{"v":0,"d":"0.00 €"}},{"$f":"INDEX(KontorKavandatud[],MATCH(INDEX(KontoriErinevused[],ROW()-ROW(KontoriErinevused[[#Headers],[Mai]]),1),INDEX(KontorKavandatud[],,1),0),MATCH(KontoriErinevused[[#Headers],[Mai]],KontorKavandatud[#Headers],0))-INDEX(KontoriTegelikud[],MATCH(INDEX(KontoriErinevused[],ROW()-ROW(KontoriErinevused[[#Headers],[Mai]]),1),INDEX(KontorKavandatud[],,1),0),MATCH(KontoriErinevused[[#Headers],[Mai]],KontoriTegelikud[#Headers],0))","v":{"v":0,"d":"0.00 €"}},{"$f":"INDEX(KontorKavandatud[],MATCH(INDEX(KontoriErinevused[],ROW()-ROW(KontoriErinevused[[#Headers],[Juuni]]),1),INDEX(KontorKavandatud[],,1),0),MATCH(KontoriErinevused[[#Headers],[Juuni]],KontorKavandatud[#Headers],0))-INDEX(KontoriTegelikud[],MATCH(INDEX(KontoriErinevused[],ROW()-ROW(KontoriErinevused[[#Headers],[Juuni]]),1),INDEX(KontorKavandatud[],,1),0),MATCH(KontoriErinevused[[#Headers],[Juuni]],KontoriTegelikud[#Headers],0))","v":{"v":0,"d":"0.00 €"}},{"$f":"INDEX(KontorKavandatud[],MATCH(INDEX(KontoriErinevused[],ROW()-ROW(KontoriErinevused[[#Headers],[Juuli]]),1),INDEX(KontorKavandatud[],,1),0),MATCH(KontoriErinevused[[#Headers],[Juuli]],KontorKavandatud[#Headers],0))-INDEX(KontoriTegelikud[],MATCH(INDEX(KontoriErinevused[],ROW()-ROW(KontoriErinevused[[#Headers],[Juuli]]),1),INDEX(KontorKavandatud[],,1),0),MATCH(KontoriErinevused[[#Headers],[Juuli]],KontoriTegelikud[#Headers],0))","v":{"v":180,"d":"180.00 €"}},{"$f":"INDEX(KontorKavandatud[],MATCH(INDEX(KontoriErinevused[],ROW()-ROW(KontoriErinevused[[#Headers],[Aug]]),1),INDEX(KontorKavandatud[],,1),0),MATCH(KontoriErinevused[[#Headers],[Aug]],KontorKavandatud[#Headers],0))-INDEX(KontoriTegelikud[],MATCH(INDEX(KontoriErinevused[],ROW()-ROW(KontoriErinevused[[#Headers],[Aug]]),1),INDEX(KontorKavandatud[],,1),0),MATCH(KontoriErinevused[[#Headers],[Aug]],KontoriTegelikud[#Headers],0))","v":{"v":180,"d":"180.00 €"}},{"$f":"INDEX(KontorKavandatud[],MATCH(INDEX(KontoriErinevused[],ROW()-ROW(KontoriErinevused[[#Headers],[Sept]]),1),INDEX(KontorKavandatud[],,1),0),MATCH(KontoriErinevused[[#Headers],[Sept]],KontorKavandatud[#Headers],0))-INDEX(KontoriTegelikud[],MATCH(INDEX(KontoriErinevused[],ROW()-ROW(KontoriErinevused[[#Headers],[Sept]]),1),INDEX(KontorKavandatud[],,1),0),MATCH(KontoriErinevused[[#Headers],[Sept]],KontoriTegelikud[#Headers],0))","v":{"v":180,"d":"180.00 €"}},{"$f":"INDEX(KontorKavandatud[],MATCH(INDEX(KontoriErinevused[],ROW()-ROW(KontoriErinevused[[#Headers],[Okt]]),1),INDEX(KontorKavandatud[],,1),0),MATCH(KontoriErinevused[[#Headers],[Okt]],KontorKavandatud[#Headers],0))-INDEX(KontoriTegelikud[],MATCH(INDEX(KontoriErinevused[],ROW()-ROW(KontoriErinevused[[#Headers],[Okt]]),1),INDEX(KontorKavandatud[],,1),0),MATCH(KontoriErinevused[[#Headers],[Okt]],KontoriTegelikud[#Headers],0))","v":{"v":180,"d":"180.00 €"}},{"$f":"INDEX(KontorKavandatud[],MATCH(INDEX(KontoriErinevused[],ROW()-ROW(KontoriErinevused[[#Headers],[Nov]]),1),INDEX(KontorKavandatud[],,1),0),MATCH(KontoriErinevused[[#Headers],[Nov]],KontorKavandatud[#Headers],0))-INDEX(KontoriTegelikud[],MATCH(INDEX(KontoriErinevused[],ROW()-ROW(KontoriErinevused[[#Headers],[Nov]]),1),INDEX(KontorKavandatud[],,1),0),MATCH(KontoriErinevused[[#Headers],[Nov]],KontoriTegelikud[#Headers],0))","v":{"v":180,"d":"180.00 €"}},{"$f":"INDEX(KontorKavandatud[],MATCH(INDEX(KontoriErinevused[],ROW()-ROW(KontoriErinevused[[#Headers],[Dets]]),1),INDEX(KontorKavandatud[],,1),0),MATCH(KontoriErinevused[[#Headers],[Dets]],KontorKavandatud[#Headers],0))-INDEX(KontoriTegelikud[],MATCH(INDEX(KontoriErinevused[],ROW()-ROW(KontoriErinevused[[#Headers],[Dets]]),1),INDEX(KontorKavandatud[],,1),0),MATCH(KontoriErinevused[[#Headers],[Dets]],KontoriTegelikud[#Headers],0))","v":{"v":180,"d":"180.00 €"}},{"$f":"SUM(KontoriErinevused[[#This Row],[Jaan]:[Dets]])","v":{"v":1080,"d":"1,080.00 €"}}]
[null,"Kontoritarbed",{"$f":"INDEX(KontorKavandatud[],MATCH(INDEX(KontoriErinevused[],ROW()-ROW(KontoriErinevused[[#Headers],[Jaan]]),1),INDEX(KontorKavandatud[],,1),0),MATCH(KontoriErinevused[[#Headers],[Jaan]],KontorKavandatud[#Headers],0))-INDEX(KontoriTegelikud[],MATCH(INDEX(KontoriErinevused[],ROW()-ROW(KontoriErinevused[[#Headers],[Jaan]]),1),INDEX(KontorKavandatud[],,1),0),MATCH(KontoriErinevused[[#Headers],[Jaan]],KontoriTegelikud[#Headers],0))","v":{"v":-56,"d":"-56.00 €"}},{"$f":"INDEX(KontorKavandatud[],MATCH(INDEX(KontoriErinevused[],ROW()-ROW(KontoriErinevused[[#Headers],[Veebr]]),1),INDEX(KontorKavandatud[],,1),0),MATCH(KontoriErinevused[[#Headers],[Veebr]],KontorKavandatud[#Headers],0))-INDEX(KontoriTegelikud[],MATCH(INDEX(KontoriErinevused[],ROW()-ROW(KontoriErinevused[[#Headers],[Veebr]]),1),INDEX(KontorKavandatud[],,1),0),MATCH(KontoriErinevused[[#Headers],[Veebr]],KontoriTegelikud[#Headers],0))","v":{"v":58,"d":"58.00 €"}},{"$f":"INDEX(KontorKavandatud[],MATCH(INDEX(KontoriErinevused[],ROW()-ROW(KontoriErinevused[[#Headers],[Märts]]),1),INDEX(KontorKavandatud[],,1),0),MATCH(KontoriErinevused[[#Headers],[Märts]],KontorKavandatud[#Headers],0))-INDEX(KontoriTegelikud[],MATCH(INDEX(KontoriErinevused[],ROW()-ROW(KontoriErinevused[[#Headers],[Märts]]),1),INDEX(KontorKavandatud[],,1),0),MATCH(KontoriErinevused[[#Headers],[Märts]],KontoriTegelikud[#Headers],0))","v":{"v":40,"d":"40.00 €"}},{"$f":"INDEX(KontorKavandatud[],MATCH(INDEX(KontoriErinevused[],ROW()-ROW(KontoriErinevused[[#Headers],[Apr]]),1),INDEX(KontorKavandatud[],,1),0),MATCH(KontoriErinevused[[#Headers],[Apr]],KontorKavandatud[#Headers],0))-INDEX(KontoriTegelikud[],MATCH(INDEX(KontoriErinevused[],ROW()-ROW(KontoriErinevused[[#Headers],[Apr]]),1),INDEX(KontorKavandatud[],,1),0),MATCH(KontoriErinevused[[#Headers],[Apr]],KontoriTegelikud[#Headers],0))","v":{"v":-21,"d":"-21.00 €"}},{"$f":"INDEX(KontorKavandatud[],MATCH(INDEX(KontoriErinevused[],ROW()-ROW(KontoriErinevused[[#Headers],[Mai]]),1),INDEX(KontorKavandatud[],,1),0),MATCH(KontoriErinevused[[#Headers],[Mai]],KontorKavandatud[#Headers],0))-INDEX(KontoriTegelikud[],MATCH(INDEX(KontoriErinevused[],ROW()-ROW(KontoriErinevused[[#Headers],[Mai]]),1),INDEX(KontorKavandatud[],,1),0),MATCH(KontoriErinevused[[#Headers],[Mai]],KontoriTegelikud[#Headers],0))","v":{"v":-56,"d":"-56.00 €"}},{"$f":"INDEX(KontorKavandatud[],MATCH(INDEX(KontoriErinevused[],ROW()-ROW(KontoriErinevused[[#Headers],[Juuni]]),1),INDEX(KontorKavandatud[],,1),0),MATCH(KontoriErinevused[[#Headers],[Juuni]],KontorKavandatud[#Headers],0))-INDEX(KontoriTegelikud[],MATCH(INDEX(KontoriErinevused[],ROW()-ROW(KontoriErinevused[[#Headers],[Juuni]]),1),INDEX(KontorKavandatud[],,1),0),MATCH(KontoriErinevused[[#Headers],[Juuni]],KontoriTegelikud[#Headers],0))","v":{"v":-40,"d":"-40.00 €"}},{"$f":"INDEX(KontorKavandatud[],MATCH(INDEX(KontoriErinevused[],ROW()-ROW(KontoriErinevused[[#Headers],[Juuli]]),1),INDEX(KontorKavandatud[],,1),0),MATCH(KontoriErinevused[[#Headers],[Juuli]],KontorKavandatud[#Headers],0))-INDEX(KontoriTegelikud[],MATCH(INDEX(KontoriErinevused[],ROW()-ROW(KontoriErinevused[[#Headers],[Juuli]]),1),INDEX(KontorKavandatud[],,1),0),MATCH(KontoriErinevused[[#Headers],[Juuli]],KontoriTegelikud[#Headers],0))","v":{"v":200,"d":"200.00 €"}},{"$f":"INDEX(KontorKavandatud[],MATCH(INDEX(KontoriErinevused[],ROW()-ROW(KontoriErinevused[[#Headers],[Aug]]),1),INDEX(KontorKavandatud[],,1),0),MATCH(KontoriErinevused[[#Headers],[Aug]],KontorKavandatud[#Headers],0))-INDEX(KontoriTegelikud[],MATCH(INDEX(KontoriErinevused[],ROW()-ROW(KontoriErinevused[[#Headers],[Aug]]),1),INDEX(KontorKavandatud[],,1),0),MATCH(KontoriErinevused[[#Headers],[Aug]],KontoriTegelikud[#Headers],0))","v":{"v":200,"d":"200.00 €"}},{"$f":"INDEX(KontorKavandatud[],MATCH(INDEX(KontoriErinevused[],ROW()-ROW(KontoriErinevused[[#Headers],[Sept]]),1),INDEX(KontorKavandatud[],,1),0),MATCH(KontoriErinevused[[#Headers],[Sept]],KontorKavandatud[#Headers],0))-INDEX(KontoriTegelikud[],MATCH(INDEX(KontoriErinevused[],ROW()-ROW(KontoriErinevused[[#Headers],[Sept]]),1),INDEX(KontorKavandatud[],,1),0),MATCH(KontoriErinevused[[#Headers],[Sept]],KontoriTegelikud[#Headers],0))","v":{"v":200,"d":"200.00 €"}},{"$f":"INDEX(KontorKavandatud[],MATCH(INDEX(KontoriErinevused[],ROW()-ROW(KontoriErinevused[[#Headers],[Okt]]),1),INDEX(KontorKavandatud[],,1),0),MATCH(KontoriErinevused[[#Headers],[Okt]],KontorKavandatud[#Headers],0))-INDEX(KontoriTegelikud[],MATCH(INDEX(KontoriErinevused[],ROW()-ROW(KontoriErinevused[[#Headers],[Okt]]),1),INDEX(KontorKavandatud[],,1),0),MATCH(KontoriErinevused[[#Headers],[Okt]],KontoriTegelikud[#Headers],0))","v":{"v":200,"d":"200.00 €"}},{"$f":"INDEX(KontorKavandatud[],MATCH(INDEX(KontoriErinevused[],ROW()-ROW(KontoriErinevused[[#Headers],[Nov]]),1),INDEX(KontorKavandatud[],,1),0),MATCH(KontoriErinevused[[#Headers],[Nov]],KontorKavandatud[#Headers],0))-INDEX(KontoriTegelikud[],MATCH(INDEX(KontoriErinevused[],ROW()-ROW(KontoriErinevused[[#Headers],[Nov]]),1),INDEX(KontorKavandatud[],,1),0),MATCH(KontoriErinevused[[#Headers],[Nov]],KontoriTegelikud[#Headers],0))","v":{"v":200,"d":"200.00 €"}},{"$f":"INDEX(KontorKavandatud[],MATCH(INDEX(KontoriErinevused[],ROW()-ROW(KontoriErinevused[[#Headers],[Dets]]),1),INDEX(KontorKavandatud[],,1),0),MATCH(KontoriErinevused[[#Headers],[Dets]],KontorKavandatud[#Headers],0))-INDEX(KontoriTegelikud[],MATCH(INDEX(KontoriErinevused[],ROW()-ROW(KontoriErinevused[[#Headers],[Dets]]),1),INDEX(KontorKavandatud[],,1),0),MATCH(KontoriErinevused[[#Headers],[Dets]],KontoriTegelikud[#Headers],0))","v":{"v":200,"d":"200.00 €"}},{"$f":"SUM(KontoriErinevused[[#This Row],[Jaan]:[Dets]])","v":{"v":1125,"d":"1,125.00 €"}}]
[null,"Turvalisus",{"$f":"INDEX(KontorKavandatud[],MATCH(INDEX(KontoriErinevused[],ROW()-ROW(KontoriErinevused[[#Headers],[Jaan]]),1),INDEX(KontorKavandatud[],,1),0),MATCH(KontoriErinevused[[#Headers],[Jaan]],KontorKavandatud[#Headers],0))-INDEX(KontoriTegelikud[],MATCH(INDEX(KontoriErinevused[],ROW()-ROW(KontoriErinevused[[#Headers],[Jaan]]),1),INDEX(KontorKavandatud[],,1),0),MATCH(KontoriErinevused[[#Headers],[Jaan]],KontoriTegelikud[#Headers],0))","v":{"v":0,"d":"0.00 €"}},{"$f":"INDEX(KontorKavandatud[],MATCH(INDEX(KontoriErinevused[],ROW()-ROW(KontoriErinevused[[#Headers],[Veebr]]),1),INDEX(KontorKavandatud[],,1),0),MATCH(KontoriErinevused[[#Headers],[Veebr]],KontorKavandatud[#Headers],0))-INDEX(KontoriTegelikud[],MATCH(INDEX(KontoriErinevused[],ROW()-ROW(KontoriErinevused[[#Headers],[Veebr]]),1),INDEX(KontorKavandatud[],,1),0),MATCH(KontoriErinevused[[#Headers],[Veebr]],KontoriTegelikud[#Headers],0))","v":{"v":0,"d":"0.00 €"}},{"$f":"INDEX(KontorKavandatud[],MATCH(INDEX(KontoriErinevused[],ROW()-ROW(KontoriErinevused[[#Headers],[Märts]]),1),INDEX(KontorKavandatud[],,1),0),MATCH(KontoriErinevused[[#Headers],[Märts]],KontorKavandatud[#Headers],0))-INDEX(KontoriTegelikud[],MATCH(INDEX(KontoriErinevused[],ROW()-ROW(KontoriErinevused[[#Headers],[Märts]]),1),INDEX(KontorKavandatud[],,1),0),MATCH(KontoriErinevused[[#Headers],[Märts]],KontoriTegelikud[#Headers],0))","v":{"v":0,"d":"0.00 €"}},{"$f":"INDEX(KontorKavandatud[],MATCH(INDEX(KontoriErinevused[],ROW()-ROW(KontoriErinevused[[#Headers],[Apr]]),1),INDEX(KontorKavandatud[],,1),0),MATCH(KontoriErinevused[[#Headers],[Apr]],KontorKavandatud[#Headers],0))-INDEX(KontoriTegelikud[],MATCH(INDEX(KontoriErinevused[],ROW()-ROW(KontoriErinevused[[#Headers],[Apr]]),1),INDEX(KontorKavandatud[],,1),0),MATCH(KontoriErinevused[[#Headers],[Apr]],KontoriTegelikud[#Headers],0))","v":{"v":0,"d":"0.00 €"}},{"$f":"INDEX(KontorKavandatud[],MATCH(INDEX(KontoriErinevused[],ROW()-ROW(KontoriErinevused[[#Headers],[Mai]]),1),INDEX(KontorKavandatud[],,1),0),MATCH(KontoriErinevused[[#Headers],[Mai]],KontorKavandatud[#Headers],0))-INDEX(KontoriTegelikud[],MATCH(INDEX(KontoriErinevused[],ROW()-ROW(KontoriErinevused[[#Headers],[Mai]]),1),INDEX(KontorKavandatud[],,1),0),MATCH(KontoriErinevused[[#Headers],[Mai]],KontoriTegelikud[#Headers],0))","v":{"v":0,"d":"0.00 €"}},{"$f":"INDEX(KontorKavandatud[],MATCH(INDEX(KontoriErinevused[],ROW()-ROW(KontoriErinevused[[#Headers],[Juuni]]),1),INDEX(KontorKavandatud[],,1),0),MATCH(KontoriErinevused[[#Headers],[Juuni]],KontorKavandatud[#Headers],0))-INDEX(KontoriTegelikud[],MATCH(INDEX(KontoriErinevused[],ROW()-ROW(KontoriErinevused[[#Headers],[Juuni]]),1),INDEX(KontorKavandatud[],,1),0),MATCH(KontoriErinevused[[#Headers],[Juuni]],KontoriTegelikud[#Headers],0))","v":{"v":0,"d":"0.00 €"}},{"$f":"INDEX(KontorKavandatud[],MATCH(INDEX(KontoriErinevused[],ROW()-ROW(KontoriErinevused[[#Headers],[Juuli]]),1),INDEX(KontorKavandatud[],,1),0),MATCH(KontoriErinevused[[#Headers],[Juuli]],KontorKavandatud[#Headers],0))-INDEX(KontoriTegelikud[],MATCH(INDEX(KontoriErinevused[],ROW()-ROW(KontoriErinevused[[#Headers],[Juuli]]),1),INDEX(KontorKavandatud[],,1),0),MATCH(KontoriErinevused[[#Headers],[Juuli]],KontoriTegelikud[#Headers],0))","v":{"v":600,"d":"600.00 €"}},{"$f":"INDEX(KontorKavandatud[],MATCH(INDEX(KontoriErinevused[],ROW()-ROW(KontoriErinevused[[#Headers],[Aug]]),1),INDEX(KontorKavandatud[],,1),0),MATCH(KontoriErinevused[[#Headers],[Aug]],KontorKavandatud[#Headers],0))-INDEX(KontoriTegelikud[],MATCH(INDEX(KontoriErinevused[],ROW()-ROW(KontoriErinevused[[#Headers],[Aug]]),1),INDEX(KontorKavandatud[],,1),0),MATCH(KontoriErinevused[[#Headers],[Aug]],KontoriTegelikud[#Headers],0))","v":{"v":600,"d":"600.00 €"}},{"$f":"INDEX(KontorKavandatud[],MATCH(INDEX(KontoriErinevused[],ROW()-ROW(KontoriErinevused[[#Headers],[Sept]]),1),INDEX(KontorKavandatud[],,1),0),MATCH(KontoriErinevused[[#Headers],[Sept]],KontorKavandatud[#Headers],0))-INDEX(KontoriTegelikud[],MATCH(INDEX(KontoriErinevused[],ROW()-ROW(KontoriErinevused[[#Headers],[Sept]]),1),INDEX(KontorKavandatud[],,1),0),MATCH(KontoriErinevused[[#Headers],[Sept]],KontoriTegelikud[#Headers],0))","v":{"v":600,"d":"600.00 €"}},{"$f":"INDEX(KontorKavandatud[],MATCH(INDEX(KontoriErinevused[],ROW()-ROW(KontoriErinevused[[#Headers],[Okt]]),1),INDEX(KontorKavandatud[],,1),0),MATCH(KontoriErinevused[[#Headers],[Okt]],KontorKavandatud[#Headers],0))-INDEX(KontoriTegelikud[],MATCH(INDEX(KontoriErinevused[],ROW()-ROW(KontoriErinevused[[#Headers],[Okt]]),1),INDEX(KontorKavandatud[],,1),0),MATCH(KontoriErinevused[[#Headers],[Okt]],KontoriTegelikud[#Headers],0))","v":{"v":600,"d":"600.00 €"}},{"$f":"INDEX(KontorKavandatud[],MATCH(INDEX(KontoriErinevused[],ROW()-ROW(KontoriErinevused[[#Headers],[Nov]]),1),INDEX(KontorKavandatud[],,1),0),MATCH(KontoriErinevused[[#Headers],[Nov]],KontorKavandatud[#Headers],0))-INDEX(KontoriTegelikud[],MATCH(INDEX(KontoriErinevused[],ROW()-ROW(KontoriErinevused[[#Headers],[Nov]]),1),INDEX(KontorKavandatud[],,1),0),MATCH(KontoriErinevused[[#Headers],[Nov]],KontoriTegelikud[#Headers],0))","v":{"v":600,"d":"600.00 €"}},{"$f":"INDEX(KontorKavandatud[],MATCH(INDEX(KontoriErinevused[],ROW()-ROW(KontoriErinevused[[#Headers],[Dets]]),1),INDEX(KontorKavandatud[],,1),0),MATCH(KontoriErinevused[[#Headers],[Dets]],KontorKavandatud[#Headers],0))-INDEX(KontoriTegelikud[],MATCH(INDEX(KontoriErinevused[],ROW()-ROW(KontoriErinevused[[#Headers],[Dets]]),1),INDEX(KontorKavandatud[],,1),0),MATCH(KontoriErinevused[[#Headers],[Dets]],KontoriTegelikud[#Headers],0))","v":{"v":600,"d":"600.00 €"}},{"$f":"SUM(KontoriErinevused[[#This Row],[Jaan]:[Dets]])","v":{"v":3600,"d":"3,600.00 €"}}]
[null,"Vahesumma",{"$f":"SUBTOTAL(109,KontoriErinevused[Jaan])","v":{"v":-17,"d":"-17.00 €"}},{"$f":"SUBTOTAL(109,KontoriErinevused[Veebr])","v":{"v":72,"d":"72.00 €"}},{"$f":"SUBTOTAL(109,KontoriErinevused[Märts])","v":{"v":78,"d":"78.00 €"}},{"$f":"SUBTOTAL(109,KontoriErinevused[Apr])","v":{"v":-141,"d":"-141.00 €"}},{"$f":"SUBTOTAL(109,KontoriErinevused[Mai])","v":{"v":-38,"d":"-38.00 €"}},{"$f":"SUBTOTAL(109,KontoriErinevused[Juuni])","v":{"v":16,"d":"16.00 €"}},{"$f":"SUBTOTAL(109,KontoriErinevused[Juuli])","v":{"v":11470,"d":"11,470.00 €"}},{"$f":"SUBTOTAL(109,KontoriErinevused[Aug])","v":{"v":11470,"d":"11,470.00 €"}},{"$f":"SUBTOTAL(109,KontoriErinevused[Sept])","v":{"v":11470,"d":"11,470.00 €"}},{"$f":"SUBTOTAL(109,KontoriErinevused[Okt])","v":{"v":11470,"d":"11,470.00 €"}},{"$f":"SUBTOTAL(109,KontoriErinevused[Nov])","v":{"v":11770,"d":"11,770.00 €"}},{"$f":"SUBTOTAL(109,KontoriErinevused[Dets])","v":{"v":11770,"d":"11,770.00 €"}},{"$f":"SUBTOTAL(109,KontoriErinevused[AASTA])","v":{"v":69390,"d":"69,390.00 €"}}]
[]
[null,"Turunduskulud","Jaan","Veebr","Märts","Apr","Mai","Juuni","Juuli","Aug","Sept","Okt","Nov","Dets","AASTA"]
[null,"Veebilehe majutus",{"$f":"INDEX(TurunduseKavandatud[],MATCH(INDEX(TurunduseErinevused[],ROW()-ROW(TurunduseErinevused[[#Headers],[Jaan]]),1),INDEX(TurunduseKavandatud[],,1),0),MATCH(TurunduseErinevused[[#Headers],[Jaan]],TurunduseKavandatud[#Headers],0))-INDEX(TurunduseTegelikud[],MATCH(INDEX(TurunduseErinevused[],ROW()-ROW(TurunduseErinevused[[#Headers],[Jaan]]),1),INDEX(TurunduseKavandatud[],,1),0),MATCH(TurunduseErinevused[[#Headers],[Jaan]],TurunduseTegelikud[#Headers],0))","v":{"v":0,"d":"0.00 €"}},{"$f":"INDEX(TurunduseKavandatud[],MATCH(INDEX(TurunduseErinevused[],ROW()-ROW(TurunduseErinevused[[#Headers],[Veebr]]),1),INDEX(TurunduseKavandatud[],,1),0),MATCH(TurunduseErinevused[[#Headers],[Veebr]],TurunduseKavandatud[#Headers],0))-INDEX(TurunduseTegelikud[],MATCH(INDEX(TurunduseErinevused[],ROW()-ROW(TurunduseErinevused[[#Headers],[Veebr]]),1),INDEX(TurunduseKavandatud[],,1),0),MATCH(TurunduseErinevused[[#Headers],[Veebr]],TurunduseTegelikud[#Headers],0))","v":{"v":0,"d":"0.00 €"}},{"$f":"INDEX(TurunduseKavandatud[],MATCH(INDEX(TurunduseErinevused[],ROW()-ROW(TurunduseErinevused[[#Headers],[Märts]]),1),INDEX(TurunduseKavandatud[],,1),0),MATCH(TurunduseErinevused[[#Headers],[Märts]],TurunduseKavandatud[#Headers],0))-INDEX(TurunduseTegelikud[],MATCH(INDEX(TurunduseErinevused[],ROW()-ROW(TurunduseErinevused[[#Headers],[Märts]]),1),INDEX(TurunduseKavandatud[],,1),0),MATCH(TurunduseErinevused[[#Headers],[Märts]],TurunduseTegelikud[#Headers],0))","v":{"v":0,"d":"0.00 €"}},{"$f":"INDEX(TurunduseKavandatud[],MATCH(INDEX(TurunduseErinevused[],ROW()-ROW(TurunduseErinevused[[#Headers],[Apr]]),1),INDEX(TurunduseKavandatud[],,1),0),MATCH(TurunduseErinevused[[#Headers],[Apr]],TurunduseKavandatud[#Headers],0))-INDEX(TurunduseTegelikud[],MATCH(INDEX(TurunduseErinevused[],ROW()-ROW(TurunduseErinevused[[#Headers],[Apr]]),1),INDEX(TurunduseKavandatud[],,1),0),MATCH(TurunduseErinevused[[#Headers],[Apr]],TurunduseTegelikud[#Headers],0))","v":{"v":0,"d":"0.00 €"}},{"$f":"INDEX(TurunduseKavandatud[],MATCH(INDEX(TurunduseErinevused[],ROW()-ROW(TurunduseErinevused[[#Headers],[Mai]]),1),INDEX(TurunduseKavandatud[],,1),0),MATCH(TurunduseErinevused[[#Headers],[Mai]],TurunduseKavandatud[#Headers],0))-INDEX(TurunduseTegelikud[],MATCH(INDEX(TurunduseErinevused[],ROW()-ROW(TurunduseErinevused[[#Headers],[Mai]]),1),INDEX(TurunduseKavandatud[],,1),0),MATCH(TurunduseErinevused[[#Headers],[Mai]],TurunduseTegelikud[#Headers],0))","v":{"v":0,"d":"0.00 €"}},{"$f":"INDEX(TurunduseKavandatud[],MATCH(INDEX(TurunduseErinevused[],ROW()-ROW(TurunduseErinevused[[#Headers],[Juuni]]),1),INDEX(TurunduseKavandatud[],,1),0),MATCH(TurunduseErinevused[[#Headers],[Juuni]],TurunduseKavandatud[#Headers],0))-INDEX(TurunduseTegelikud[],MATCH(INDEX(TurunduseErinevused[],ROW()-ROW(TurunduseErinevused[[#Headers],[Juuni]]),1),INDEX(TurunduseKavandatud[],,1),0),MATCH(TurunduseErinevused[[#Headers],[Juuni]],TurunduseTegelikud[#Headers],0))","v":{"v":0,"d":"0.00 €"}},{"$f":"INDEX(TurunduseKavandatud[],MATCH(INDEX(TurunduseErinevused[],ROW()-ROW(TurunduseErinevused[[#Headers],[Juuli]]),1),INDEX(TurunduseKavandatud[],,1),0),MATCH(TurunduseErinevused[[#Headers],[Juuli]],TurunduseKavandatud[#Headers],0))-INDEX(TurunduseTegelikud[],MATCH(INDEX(TurunduseErinevused[],ROW()-ROW(TurunduseErinevused[[#Headers],[Juuli]]),1),INDEX(TurunduseKavandatud[],,1),0),MATCH(TurunduseErinevused[[#Headers],[Juuli]],TurunduseTegelikud[#Headers],0))","v":{"v":500,"d":"500.00 €"}},{"$f":"INDEX(TurunduseKavandatud[],MATCH(INDEX(TurunduseErinevused[],ROW()-ROW(TurunduseErinevused[[#Headers],[Aug]]),1),INDEX(TurunduseKavandatud[],,1),0),MATCH(TurunduseErinevused[[#Headers],[Aug]],TurunduseKavandatud[#Headers],0))-INDEX(TurunduseTegelikud[],MATCH(INDEX(TurunduseErinevused[],ROW()-ROW(TurunduseErinevused[[#Headers],[Aug]]),1),INDEX(TurunduseKavandatud[],,1),0),MATCH(TurunduseErinevused[[#Headers],[Aug]],TurunduseTegelikud[#Headers],0))","v":{"v":500,"d":"500.00 €"}},{"$f":"INDEX(TurunduseKavandatud[],MATCH(INDEX(TurunduseErinevused[],ROW()-ROW(TurunduseErinevused[[#Headers],[Sept]]),1),INDEX(TurunduseKavandatud[],,1),0),MATCH(TurunduseErinevused[[#Headers],[Sept]],TurunduseKavandatud[#Headers],0))-INDEX(TurunduseTegelikud[],MATCH(INDEX(TurunduseErinevused[],ROW()-ROW(TurunduseErinevused[[#Headers],[Sept]]),1),INDEX(TurunduseKavandatud[],,1),0),MATCH(TurunduseErinevused[[#Headers],[Sept]],TurunduseTegelikud[#Headers],0))","v":{"v":500,"d":"500.00 €"}},{"$f":"INDEX(TurunduseKavandatud[],MATCH(INDEX(TurunduseErinevused[],ROW()-ROW(TurunduseErinevused[[#Headers],[Okt]]),1),INDEX(TurunduseKavandatud[],,1),0),MATCH(TurunduseErinevused[[#Headers],[Okt]],TurunduseKavandatud[#Headers],0))-INDEX(TurunduseTegelikud[],MATCH(INDEX(TurunduseErinevused[],ROW()-ROW(TurunduseErinevused[[#Headers],[Okt]]),1),INDEX(TurunduseKavandatud[],,1),0),MATCH(TurunduseErinevused[[#Headers],[Okt]],TurunduseTegelikud[#Headers],0))","v":{"v":500,"d":"500.00 €"}},{"$f":"INDEX(TurunduseKavandatud[],MATCH(INDEX(TurunduseErinevused[],ROW()-ROW(TurunduseErinevused[[#Headers],[Nov]]),1),INDEX(TurunduseKavandatud[],,1),0),MATCH(TurunduseErinevused[[#Headers],[Nov]],TurunduseKavandatud[#Headers],0))-INDEX(TurunduseTegelikud[],MATCH(INDEX(TurunduseErinevused[],ROW()-ROW(TurunduseErinevused[[#Headers],[Nov]]),1),INDEX(TurunduseKavandatud[],,1),0),MATCH(TurunduseErinevused[[#Headers],[Nov]],TurunduseTegelikud[#Headers],0))","v":{"v":500,"d":"500.00 €"}},{"$f":"INDEX(TurunduseKavandatud[],MATCH(INDEX(TurunduseErinevused[],ROW()-ROW(TurunduseErinevused[[#Headers],[Dets]]),1),INDEX(TurunduseKavandatud[],,1),0),MATCH(TurunduseErinevused[[#Headers],[Dets]],TurunduseKavandatud[#Headers],0))-INDEX(TurunduseTegelikud[],MATCH(INDEX(TurunduseErinevused[],ROW()-ROW(TurunduseErinevused[[#Headers],[Dets]]),1),INDEX(TurunduseKavandatud[],,1),0),MATCH(TurunduseErinevused[[#Headers],[Dets]],TurunduseTegelikud[#Headers],0))","v":{"v":500,"d":"500.00 €"}},{"$f":"SUM(TurunduseErinevused[[#This Row],[Jaan]:[Dets]])","v":{"v":3000,"d":"3,000.00 €"}}]
[null,"Veebisaidi värskendused",{"$f":"INDEX(TurunduseKavandatud[],MATCH(INDEX(TurunduseErinevused[],ROW()-ROW(TurunduseErinevused[[#Headers],[Jaan]]),1),INDEX(TurunduseKavandatud[],,1),0),MATCH(TurunduseErinevused[[#Headers],[Jaan]],TurunduseKavandatud[#Headers],0))-INDEX(TurunduseTegelikud[],MATCH(INDEX(TurunduseErinevused[],ROW()-ROW(TurunduseErinevused[[#Headers],[Jaan]]),1),INDEX(TurunduseKavandatud[],,1),0),MATCH(TurunduseErinevused[[#Headers],[Jaan]],TurunduseTegelikud[#Headers],0))","v":{"v":0,"d":"0.00 €"}},{"$f":"INDEX(TurunduseKavandatud[],MATCH(INDEX(TurunduseErinevused[],ROW()-ROW(TurunduseErinevused[[#Headers],[Veebr]]),1),INDEX(TurunduseKavandatud[],,1),0),MATCH(TurunduseErinevused[[#Headers],[Veebr]],TurunduseKavandatud[#Headers],0))-INDEX(TurunduseTegelikud[],MATCH(INDEX(TurunduseErinevused[],ROW()-ROW(TurunduseErinevused[[#Headers],[Veebr]]),1),INDEX(TurunduseKavandatud[],,1),0),MATCH(TurunduseErinevused[[#Headers],[Veebr]],TurunduseTegelikud[#Headers],0))","v":{"v":0,"d":"0.00 €"}},{"$f":"INDEX(TurunduseKavandatud[],MATCH(INDEX(TurunduseErinevused[],ROW()-ROW(TurunduseErinevused[[#Headers],[Märts]]),1),INDEX(TurunduseKavandatud[],,1),0),MATCH(TurunduseErinevused[[#Headers],[Märts]],TurunduseKavandatud[#Headers],0))-INDEX(TurunduseTegelikud[],MATCH(INDEX(TurunduseErinevused[],ROW()-ROW(TurunduseErinevused[[#Headers],[Märts]]),1),INDEX(TurunduseKavandatud[],,1),0),MATCH(TurunduseErinevused[[#Headers],[Märts]],TurunduseTegelikud[#Headers],0))","v":{"v":0,"d":"0.00 €"}},{"$f":"INDEX(TurunduseKavandatud[],MATCH(INDEX(TurunduseErinevused[],ROW()-ROW(TurunduseErinevused[[#Headers],[Apr]]),1),INDEX(TurunduseKavandatud[],,1),0),MATCH(TurunduseErinevused[[#Headers],[Apr]],TurunduseKavandatud[#Headers],0))-INDEX(TurunduseTegelikud[],MATCH(INDEX(TurunduseErinevused[],ROW()-ROW(TurunduseErinevused[[#Headers],[Apr]]),1),INDEX(TurunduseKavandatud[],,1),0),MATCH(TurunduseErinevused[[#Headers],[Apr]],TurunduseTegelikud[#Headers],0))","v":{"v":0,"d":"0.00 €"}},{"$f":"INDEX(TurunduseKavandatud[],MATCH(INDEX(TurunduseErinevused[],ROW()-ROW(TurunduseErinevused[[#Headers],[Mai]]),1),INDEX(TurunduseKavandatud[],,1),0),MATCH(TurunduseErinevused[[#Headers],[Mai]],TurunduseKavandatud[#Headers],0))-INDEX(TurunduseTegelikud[],MATCH(INDEX(TurunduseErinevused[],ROW()-ROW(TurunduseErinevused[[#Headers],[Mai]]),1),INDEX(TurunduseKavandatud[],,1),0),MATCH(TurunduseErinevused[[#Headers],[Mai]],TurunduseTegelikud[#Headers],0))","v":{"v":0,"d":"0.00 €"}},{"$f":"INDEX(TurunduseKavandatud[],MATCH(INDEX(TurunduseErinevused[],ROW()-ROW(TurunduseErinevused[[#Headers],[Juuni]]),1),INDEX(TurunduseKavandatud[],,1),0),MATCH(TurunduseErinevused[[#Headers],[Juuni]],TurunduseKavandatud[#Headers],0))-INDEX(TurunduseTegelikud[],MATCH(INDEX(TurunduseErinevused[],ROW()-ROW(TurunduseErinevused[[#Headers],[Juuni]]),1),INDEX(TurunduseKavandatud[],,1),0),MATCH(TurunduseErinevused[[#Headers],[Juuni]],TurunduseTegelikud[#Headers],0))","v":{"v":-500,"d":"-500.00 €"}},{"$f":"INDEX(TurunduseKavandatud[],MATCH(INDEX(TurunduseErinevused[],ROW()-ROW(TurunduseErinevused[[#Headers],[Juuli]]),1),INDEX(TurunduseKavandatud[],,1),0),MATCH(TurunduseErinevused[[#Headers],[Juuli]],TurunduseKavandatud[#Headers],0))-INDEX(TurunduseTegelikud[],MATCH(INDEX(TurunduseErinevused[],ROW()-ROW(TurunduseErinevused[[#Headers],[Juuli]]),1),INDEX(TurunduseKavandatud[],,1),0),MATCH(TurunduseErinevused[[#Headers],[Juuli]],TurunduseTegelikud[#Headers],0))","v":{"v":200,"d":"200.00 €"}},{"$f":"INDEX(TurunduseKavandatud[],MATCH(INDEX(TurunduseErinevused[],ROW()-ROW(TurunduseErinevused[[#Headers],[Aug]]),1),INDEX(TurunduseKavandatud[],,1),0),MATCH(TurunduseErinevused[[#Headers],[Aug]],TurunduseKavandatud[#Headers],0))-INDEX(TurunduseTegelikud[],MATCH(INDEX(TurunduseErinevused[],ROW()-ROW(TurunduseErinevused[[#Headers],[Aug]]),1),INDEX(TurunduseKavandatud[],,1),0),MATCH(TurunduseErinevused[[#Headers],[Aug]],TurunduseTegelikud[#Headers],0))","v":{"v":200,"d":"200.00 €"}},{"$f":"INDEX(TurunduseKavandatud[],MATCH(INDEX(TurunduseErinevused[],ROW()-ROW(TurunduseErinevused[[#Headers],[Sept]]),1),INDEX(TurunduseKavandatud[],,1),0),MATCH(TurunduseErinevused[[#Headers],[Sept]],TurunduseKavandatud[#Headers],0))-INDEX(TurunduseTegelikud[],MATCH(INDEX(TurunduseErinevused[],ROW()-ROW(TurunduseErinevused[[#Headers],[Sept]]),1),INDEX(TurunduseKavandatud[],,1),0),MATCH(TurunduseErinevused[[#Headers],[Sept]],TurunduseTegelikud[#Headers],0))","v":{"v":200,"d":"200.00 €"}},{"$f":"INDEX(TurunduseKavandatud[],MATCH(INDEX(TurunduseErinevused[],ROW()-ROW(TurunduseErinevused[[#Headers],[Okt]]),1),INDEX(TurunduseKavandatud[],,1),0),MATCH(TurunduseErinevused[[#Headers],[Okt]],TurunduseKavandatud[#Headers],0))-INDEX(TurunduseTegelikud[],MATCH(INDEX(TurunduseErinevused[],ROW()-ROW(TurunduseErinevused[[#Headers],[Okt]]),1),INDEX(TurunduseKavandatud[],,1),0),MATCH(TurunduseErinevused[[#Headers],[Okt]],TurunduseTegelikud[#Headers],0))","v":{"v":200,"d":"200.00 €"}},{"$f":"INDEX(TurunduseKavandatud[],MATCH(INDEX(TurunduseErinevused[],ROW()-ROW(TurunduseErinevused[[#Headers],[Nov]]),1),INDEX(TurunduseKavandatud[],,1),0),MATCH(TurunduseErinevused[[#Headers],[Nov]],TurunduseKavandatud[#Headers],0))-INDEX(TurunduseTegelikud[],MATCH(INDEX(TurunduseErinevused[],ROW()-ROW(TurunduseErinevused[[#Headers],[Nov]]),1),INDEX(TurunduseKavandatud[],,1),0),MATCH(TurunduseErinevused[[#Headers],[Nov]],TurunduseTegelikud[#Headers],0))","v":{"v":200,"d":"200.00 €"}},{"$f":"INDEX(TurunduseKavandatud[],MATCH(INDEX(TurunduseErinevused[],ROW()-ROW(TurunduseErinevused[[#Headers],[Dets]]),1),INDEX(TurunduseKavandatud[],,1),0),MATCH(TurunduseErinevused[[#Headers],[Dets]],TurunduseKavandatud[#Headers],0))-INDEX(TurunduseTegelikud[],MATCH(INDEX(TurunduseErinevused[],ROW()-ROW(TurunduseErinevused[[#Headers],[Dets]]),1),INDEX(TurunduseKavandatud[],,1),0),MATCH(TurunduseErinevused[[#Headers],[Dets]],TurunduseTegelikud[#Headers],0))","v":{"v":1000,"d":"1,000.00 €"}},{"$f":"SUM(TurunduseErinevused[[#This Row],[Jaan]:[Dets]])","v":{"v":1500,"d":"1,500.00 €"}}]
[null,"Kaasmaterjalide ettevalmistamine",{"$f":"INDEX(TurunduseKavandatud[],MATCH(INDEX(TurunduseErinevused[],ROW()-ROW(TurunduseErinevused[[#Headers],[Jaan]]),1),INDEX(TurunduseKavandatud[],,1),0),MATCH(TurunduseErinevused[[#Headers],[Jaan]],TurunduseKavandatud[#Headers],0))-INDEX(TurunduseTegelikud[],MATCH(INDEX(TurunduseErinevused[],ROW()-ROW(TurunduseErinevused[[#Headers],[Jaan]]),1),INDEX(TurunduseKavandatud[],,1),0),MATCH(TurunduseErinevused[[#Headers],[Jaan]],TurunduseTegelikud[#Headers],0))","v":{"v":200,"d":"200.00 €"}},{"$f":"INDEX(TurunduseKavandatud[],MATCH(INDEX(TurunduseErinevused[],ROW()-ROW(TurunduseErinevused[[#Headers],[Veebr]]),1),INDEX(TurunduseKavandatud[],,1),0),MATCH(TurunduseErinevused[[#Headers],[Veebr]],TurunduseKavandatud[#Headers],0))-INDEX(TurunduseTegelikud[],MATCH(INDEX(TurunduseErinevused[],ROW()-ROW(TurunduseErinevused[[#Headers],[Veebr]]),1),INDEX(TurunduseKavandatud[],,1),0),MATCH(TurunduseErinevused[[#Headers],[Veebr]],TurunduseTegelikud[#Headers],0))","v":{"v":0,"d":"0.00 €"}},{"$f":"INDEX(TurunduseKavandatud[],MATCH(INDEX(TurunduseErinevused[],ROW()-ROW(TurunduseErinevused[[#Headers],[Märts]]),1),INDEX(TurunduseKavandatud[],,1),0),MATCH(TurunduseErinevused[[#Headers],[Märts]],TurunduseKavandatud[#Headers],0))-INDEX(TurunduseTegelikud[],MATCH(INDEX(TurunduseErinevused[],ROW()-ROW(TurunduseErinevused[[#Headers],[Märts]]),1),INDEX(TurunduseKavandatud[],,1),0),MATCH(TurunduseErinevused[[#Headers],[Märts]],TurunduseTegelikud[#Headers],0))","v":{"v":0,"d":"0.00 €"}},{"$f":"INDEX(TurunduseKavandatud[],MATCH(INDEX(TurunduseErinevused[],ROW()-ROW(TurunduseErinevused[[#Headers],[Apr]]),1),INDEX(TurunduseKavandatud[],,1),0),MATCH(TurunduseErinevused[[#Headers],[Apr]],TurunduseKavandatud[#Headers],0))-INDEX(TurunduseTegelikud[],MATCH(INDEX(TurunduseErinevused[],ROW()-ROW(TurunduseErinevused[[#Headers],[Apr]]),1),INDEX(TurunduseKavandatud[],,1),0),MATCH(TurunduseErinevused[[#Headers],[Apr]],TurunduseTegelikud[#Headers],0))","v":{"v":-500,"d":"-500.00 €"}},{"$f":"INDEX(TurunduseKavandatud[],MATCH(INDEX(TurunduseErinevused[],ROW()-ROW(TurunduseErinevused[[#Headers],[Mai]]),1),INDEX(TurunduseKavandatud[],,1),0),MATCH(TurunduseErinevused[[#Headers],[Mai]],TurunduseKavandatud[#Headers],0))-INDEX(TurunduseTegelikud[],MATCH(INDEX(TurunduseErinevused[],ROW()-ROW(TurunduseErinevused[[#Headers],[Mai]]),1),INDEX(TurunduseKavandatud[],,1),0),MATCH(TurunduseErinevused[[#Headers],[Mai]],TurunduseTegelikud[#Headers],0))","v":{"v":0,"d":"0.00 €"}},{"$f":"INDEX(TurunduseKavandatud[],MATCH(INDEX(TurunduseErinevused[],ROW()-ROW(TurunduseErinevused[[#Headers],[Juuni]]),1),INDEX(TurunduseKavandatud[],,1),0),MATCH(TurunduseErinevused[[#Headers],[Juuni]],TurunduseKavandatud[#Headers],0))-INDEX(TurunduseTegelikud[],MATCH(INDEX(TurunduseErinevused[],ROW()-ROW(TurunduseErinevused[[#Headers],[Juuni]]),1),INDEX(TurunduseKavandatud[],,1),0),MATCH(TurunduseErinevused[[#Headers],[Juuni]],TurunduseTegelikud[#Headers],0))","v":{"v":0,"d":"0.00 €"}},{"$f":"INDEX(TurunduseKavandatud[],MATCH(INDEX(TurunduseErinevused[],ROW()-ROW(TurunduseErinevused[[#Headers],[Juuli]]),1),INDEX(TurunduseKavandatud[],,1),0),MATCH(TurunduseErinevused[[#Headers],[Juuli]],TurunduseKavandatud[#Headers],0))-INDEX(TurunduseTegelikud[],MATCH(INDEX(TurunduseErinevused[],ROW()-ROW(TurunduseErinevused[[#Headers],[Juuli]]),1),INDEX(TurunduseKavandatud[],,1),0),MATCH(TurunduseErinevused[[#Headers],[Juuli]],TurunduseTegelikud[#Headers],0))","v":{"v":5000,"d":"5,000.00 €"}},{"$f":"INDEX(TurunduseKavandatud[],MATCH(INDEX(TurunduseErinevused[],ROW()-ROW(TurunduseErinevused[[#Headers],[Aug]]),1),INDEX(TurunduseKavandatud[],,1),0),MATCH(TurunduseErinevused[[#Headers],[Aug]],TurunduseKavandatud[#Headers],0))-INDEX(TurunduseTegelikud[],MATCH(INDEX(TurunduseErinevused[],ROW()-ROW(TurunduseErinevused[[#Headers],[Aug]]),1),INDEX(TurunduseKavandatud[],,1),0),MATCH(TurunduseErinevused[[#Headers],[Aug]],TurunduseTegelikud[#Headers],0))","v":{"v":0,"d":"0.00 €"}},{"$f":"INDEX(TurunduseKavandatud[],MATCH(INDEX(TurunduseErinevused[],ROW()-ROW(TurunduseErinevused[[#Headers],[Sept]]),1),INDEX(TurunduseKavandatud[],,1),0),MATCH(TurunduseErinevused[[#Headers],[Sept]],TurunduseKavandatud[#Headers],0))-INDEX(TurunduseTegelikud[],MATCH(INDEX(TurunduseErinevused[],ROW()-ROW(TurunduseErinevused[[#Headers],[Sept]]),1),INDEX(TurunduseKavandatud[],,1),0),MATCH(TurunduseErinevused[[#Headers],[Sept]],TurunduseTegelikud[#Headers],0))","v":{"v":0,"d":"0.00 €"}},{"$f":"INDEX(TurunduseKavandatud[],MATCH(INDEX(TurunduseErinevused[],ROW()-ROW(TurunduseErinevused[[#Headers],[Okt]]),1),INDEX(TurunduseKavandatud[],,1),0),MATCH(TurunduseErinevused[[#Headers],[Okt]],TurunduseKavandatud[#Headers],0))-INDEX(TurunduseTegelikud[],MATCH(INDEX(TurunduseErinevused[],ROW()-ROW(TurunduseErinevused[[#Headers],[Okt]]),1),INDEX(TurunduseKavandatud[],,1),0),MATCH(TurunduseErinevused[[#Headers],[Okt]],TurunduseTegelikud[#Headers],0))","v":{"v":5000,"d":"5,000.00 €"}},{"$f":"INDEX(TurunduseKavandatud[],MATCH(INDEX(TurunduseErinevused[],ROW()-ROW(TurunduseErinevused[[#Headers],[Nov]]),1),INDEX(TurunduseKavandatud[],,1),0),MATCH(TurunduseErinevused[[#Headers],[Nov]],TurunduseKavandatud[#Headers],0))-INDEX(TurunduseTegelikud[],MATCH(INDEX(TurunduseErinevused[],ROW()-ROW(TurunduseErinevused[[#Headers],[Nov]]),1),INDEX(TurunduseKavandatud[],,1),0),MATCH(TurunduseErinevused[[#Headers],[Nov]],TurunduseTegelikud[#Headers],0))","v":{"v":0,"d":"0.00 €"}},{"$f":"INDEX(TurunduseKavandatud[],MATCH(INDEX(TurunduseErinevused[],ROW()-ROW(TurunduseErinevused[[#Headers],[Dets]]),1),INDEX(TurunduseKavandatud[],,1),0),MATCH(TurunduseErinevused[[#Headers],[Dets]],TurunduseKavandatud[#Headers],0))-INDEX(TurunduseTegelikud[],MATCH(INDEX(TurunduseErinevused[],ROW()-ROW(TurunduseErinevused[[#Headers],[Dets]]),1),INDEX(TurunduseKavandatud[],,1),0),MATCH(TurunduseErinevused[[#Headers],[Dets]],TurunduseTegelikud[#Headers],0))","v":{"v":0,"d":"0.00 €"}},{"$f":"SUM(TurunduseErinevused[[#This Row],[Jaan]:[Dets]])","v":{"v":9700,"d":"9,700.00 €"}}]
[null,"Kaasmaterjalide printimine",{"$f":"INDEX(TurunduseKavandatud[],MATCH(INDEX(TurunduseErinevused[],ROW()-ROW(TurunduseErinevused[[#Headers],[Jaan]]),1),INDEX(TurunduseKavandatud[],,1),0),MATCH(TurunduseErinevused[[#Headers],[Jaan]],TurunduseKavandatud[#Headers],0))-INDEX(TurunduseTegelikud[],MATCH(INDEX(TurunduseErinevused[],ROW()-ROW(TurunduseErinevused[[#Headers],[Jaan]]),1),INDEX(TurunduseKavandatud[],,1),0),MATCH(TurunduseErinevused[[#Headers],[Jaan]],TurunduseTegelikud[#Headers],0))","v":{"v":100,"d":"100.00 €"}},{"$f":"INDEX(TurunduseKavandatud[],MATCH(INDEX(TurunduseErinevused[],ROW()-ROW(TurunduseErinevused[[#Headers],[Veebr]]),1),INDEX(TurunduseKavandatud[],,1),0),MATCH(TurunduseErinevused[[#Headers],[Veebr]],TurunduseKavandatud[#Headers],0))-INDEX(TurunduseTegelikud[],MATCH(INDEX(TurunduseErinevused[],ROW()-ROW(TurunduseErinevused[[#Headers],[Veebr]]),1),INDEX(TurunduseKavandatud[],,1),0),MATCH(TurunduseErinevused[[#Headers],[Veebr]],TurunduseTegelikud[#Headers],0))","v":{"v":-300,"d":"-300.00 €"}},{"$f":"INDEX(TurunduseKavandatud[],MATCH(INDEX(TurunduseErinevused[],ROW()-ROW(TurunduseErinevused[[#Headers],[Märts]]),1),INDEX(TurunduseKavandatud[],,1),0),MATCH(TurunduseErinevused[[#Headers],[Märts]],TurunduseKavandatud[#Headers],0))-INDEX(TurunduseTegelikud[],MATCH(INDEX(TurunduseErinevused[],ROW()-ROW(TurunduseErinevused[[#Headers],[Märts]]),1),INDEX(TurunduseKavandatud[],,1),0),MATCH(TurunduseErinevused[[#Headers],[Märts]],TurunduseTegelikud[#Headers],0))","v":{"v":100,"d":"100.00 €"}},{"$f":"INDEX(TurunduseKavandatud[],MATCH(INDEX(TurunduseErinevused[],ROW()-ROW(TurunduseErinevused[[#Headers],[Apr]]),1),INDEX(TurunduseKavandatud[],,1),0),MATCH(TurunduseErinevused[[#Headers],[Apr]],TurunduseKavandatud[#Headers],0))-INDEX(TurunduseTegelikud[],MATCH(INDEX(TurunduseErinevused[],ROW()-ROW(TurunduseErinevused[[#Headers],[Apr]]),1),INDEX(TurunduseKavandatud[],,1),0),MATCH(TurunduseErinevused[[#Headers],[Apr]],TurunduseTegelikud[#Headers],0))","v":{"v":100,"d":"100.00 €"}},{"$f":"INDEX(TurunduseKavandatud[],MATCH(INDEX(TurunduseErinevused[],ROW()-ROW(TurunduseErinevused[[#Headers],[Mai]]),1),INDEX(TurunduseKavandatud[],,1),0),MATCH(TurunduseErinevused[[#Headers],[Mai]],TurunduseKavandatud[#Headers],0))-INDEX(TurunduseTegelikud[],MATCH(INDEX(TurunduseErinevused[],ROW()-ROW(TurunduseErinevused[[#Headers],[Mai]]),1),INDEX(TurunduseKavandatud[],,1),0),MATCH(TurunduseErinevused[[#Headers],[Mai]],TurunduseTegelikud[#Headers],0))","v":{"v":-400,"d":"-400.00 €"}},{"$f":"INDEX(TurunduseKavandatud[],MATCH(INDEX(TurunduseErinevused[],ROW()-ROW(TurunduseErinevused[[#Headers],[Juuni]]),1),INDEX(TurunduseKavandatud[],,1),0),MATCH(TurunduseErinevused[[#Headers],[Juuni]],TurunduseKavandatud[#Headers],0))-INDEX(TurunduseTegelikud[],MATCH(INDEX(TurunduseErinevused[],ROW()-ROW(TurunduseErinevused[[#Headers],[Juuni]]),1),INDEX(TurunduseKavandatud[],,1),0),MATCH(TurunduseErinevused[[#Headers],[Juuni]],TurunduseTegelikud[#Headers],0))","v":{"v":20,"d":"20.00 €"}},{"$f":"INDEX(TurunduseKavandatud[],MATCH(INDEX(TurunduseErinevused[],ROW()-ROW(TurunduseErinevused[[#Headers],[Juuli]]),1),INDEX(TurunduseKavandatud[],,1),0),MATCH(TurunduseErinevused[[#Headers],[Juuli]],TurunduseKavandatud[#Headers],0))-INDEX(TurunduseTegelikud[],MATCH(INDEX(TurunduseErinevused[],ROW()-ROW(TurunduseErinevused[[#Headers],[Juuli]]),1),INDEX(TurunduseKavandatud[],,1),0),MATCH(TurunduseErinevused[[#Headers],[Juuli]],TurunduseTegelikud[#Headers],0))","v":{"v":200,"d":"200.00 €"}},{"$f":"INDEX(TurunduseKavandatud[],MATCH(INDEX(TurunduseErinevused[],ROW()-ROW(TurunduseErinevused[[#Headers],[Aug]]),1),INDEX(TurunduseKavandatud[],,1),0),MATCH(TurunduseErinevused[[#Headers],[Aug]],TurunduseKavandatud[#Headers],0))-INDEX(TurunduseTegelikud[],MATCH(INDEX(TurunduseErinevused[],ROW()-ROW(TurunduseErinevused[[#Headers],[Aug]]),1),INDEX(TurunduseKavandatud[],,1),0),MATCH(TurunduseErinevused[[#Headers],[Aug]],TurunduseTegelikud[#Headers],0))","v":{"v":200,"d":"200.00 €"}},{"$f":"INDEX(TurunduseKavandatud[],MATCH(INDEX(TurunduseErinevused[],ROW()-ROW(TurunduseErinevused[[#Headers],[Sept]]),1),INDEX(TurunduseKavandatud[],,1),0),MATCH(TurunduseErinevused[[#Headers],[Sept]],TurunduseKavandatud[#Headers],0))-INDEX(TurunduseTegelikud[],MATCH(INDEX(TurunduseErinevused[],ROW()-ROW(TurunduseErinevused[[#Headers],[Sept]]),1),INDEX(TurunduseKavandatud[],,1),0),MATCH(TurunduseErinevused[[#Headers],[Sept]],TurunduseTegelikud[#Headers],0))","v":{"v":200,"d":"200.00 €"}},{"$f":"INDEX(TurunduseKavandatud[],MATCH(INDEX(TurunduseErinevused[],ROW()-ROW(TurunduseErinevused[[#Headers],[Okt]]),1),INDEX(TurunduseKavandatud[],,1),0),MATCH(TurunduseErinevused[[#Headers],[Okt]],TurunduseKavandatud[#Headers],0))-INDEX(TurunduseTegelikud[],MATCH(INDEX(TurunduseErinevused[],ROW()-ROW(TurunduseErinevused[[#Headers],[Okt]]),1),INDEX(TurunduseKavandatud[],,1),0),MATCH(TurunduseErinevused[[#Headers],[Okt]],TurunduseTegelikud[#Headers],0))","v":{"v":200,"d":"200.00 €"}},{"$f":"INDEX(TurunduseKavandatud[],MATCH(INDEX(TurunduseErinevused[],ROW()-ROW(TurunduseErinevused[[#Headers],[Nov]]),1),INDEX(TurunduseKavandatud[],,1),0),MATCH(TurunduseErinevused[[#Headers],[Nov]],TurunduseKavandatud[#Headers],0))-INDEX(TurunduseTegelikud[],MATCH(INDEX(TurunduseErinevused[],ROW()-ROW(TurunduseErinevused[[#Headers],[Nov]]),1),INDEX(TurunduseKavandatud[],,1),0),MATCH(TurunduseErinevused[[#Headers],[Nov]],TurunduseTegelikud[#Headers],0))","v":{"v":200,"d":"200.00 €"}},{"$f":"INDEX(TurunduseKavandatud[],MATCH(INDEX(TurunduseErinevused[],ROW()-ROW(TurunduseErinevused[[#Headers],[Dets]]),1),INDEX(TurunduseKavandatud[],,1),0),MATCH(TurunduseErinevused[[#Headers],[Dets]],TurunduseKavandatud[#Headers],0))-INDEX(TurunduseTegelikud[],MATCH(INDEX(TurunduseErinevused[],ROW()-ROW(TurunduseErinevused[[#Headers],[Dets]]),1),INDEX(TurunduseKavandatud[],,1),0),MATCH(TurunduseErinevused[[#Headers],[Dets]],TurunduseTegelikud[#Headers],0))","v":{"v":200,"d":"200.00 €"}},{"$f":"SUM(TurunduseErinevused[[#This Row],[Jaan]:[Dets]])","v":{"v":820,"d":"820.00 €"}}]
[null,"Turundussündmused",{"$f":"INDEX(TurunduseKavandatud[],MATCH(INDEX(TurunduseErinevused[],ROW()-ROW(TurunduseErinevused[[#Headers],[Jaan]]),1),INDEX(TurunduseKavandatud[],,1),0),MATCH(TurunduseErinevused[[#Headers],[Jaan]],TurunduseKavandatud[#Headers],0))-INDEX(TurunduseTegelikud[],MATCH(INDEX(TurunduseErinevused[],ROW()-ROW(TurunduseErinevused[[#Headers],[Jaan]]),1),INDEX(TurunduseKavandatud[],,1),0),MATCH(TurunduseErinevused[[#Headers],[Jaan]],TurunduseTegelikud[#Headers],0))","v":{"v":200,"d":"200.00 €"}},{"$f":"INDEX(TurunduseKavandatud[],MATCH(INDEX(TurunduseErinevused[],ROW()-ROW(TurunduseErinevused[[#Headers],[Veebr]]),1),INDEX(TurunduseKavandatud[],,1),0),MATCH(TurunduseErinevused[[#Headers],[Veebr]],TurunduseKavandatud[#Headers],0))-INDEX(TurunduseTegelikud[],MATCH(INDEX(TurunduseErinevused[],ROW()-ROW(TurunduseErinevused[[#Headers],[Veebr]]),1),INDEX(TurunduseKavandatud[],,1),0),MATCH(TurunduseErinevused[[#Headers],[Veebr]],TurunduseTegelikud[#Headers],0))","v":{"v":-200,"d":"-200.00 €"}},{"$f":"INDEX(TurunduseKavandatud[],MATCH(INDEX(TurunduseErinevused[],ROW()-ROW(TurunduseErinevused[[#Headers],[Märts]]),1),INDEX(TurunduseKavandatud[],,1),0),MATCH(TurunduseErinevused[[#Headers],[Märts]],TurunduseKavandatud[#Headers],0))-INDEX(TurunduseTegelikud[],MATCH(INDEX(TurunduseErinevused[],ROW()-ROW(TurunduseErinevused[[#Headers],[Märts]]),1),INDEX(TurunduseKavandatud[],,1),0),MATCH(TurunduseErinevused[[#Headers],[Märts]],TurunduseTegelikud[#Headers],0))","v":{"v":-200,"d":"-200.00 €"}},{"$f":"INDEX(TurunduseKavandatud[],MATCH(INDEX(TurunduseErinevused[],ROW()-ROW(TurunduseErinevused[[#Headers],[Apr]]),1),INDEX(TurunduseKavandatud[],,1),0),MATCH(TurunduseErinevused[[#Headers],[Apr]],TurunduseKavandatud[#Headers],0))-INDEX(TurunduseTegelikud[],MATCH(INDEX(TurunduseErinevused[],ROW()-ROW(TurunduseErinevused[[#Headers],[Apr]]),1),INDEX(TurunduseKavandatud[],,1),0),MATCH(TurunduseErinevused[[#Headers],[Apr]],TurunduseTegelikud[#Headers],0))","v":{"v":300,"d":"300.00 €"}},{"$f":"INDEX(TurunduseKavandatud[],MATCH(INDEX(TurunduseErinevused[],ROW()-ROW(TurunduseErinevused[[#Headers],[Mai]]),1),INDEX(TurunduseKavandatud[],,1),0),MATCH(TurunduseErinevused[[#Headers],[Mai]],TurunduseKavandatud[#Headers],0))-INDEX(TurunduseTegelikud[],MATCH(INDEX(TurunduseErinevused[],ROW()-ROW(TurunduseErinevused[[#Headers],[Mai]]),1),INDEX(TurunduseKavandatud[],,1),0),MATCH(TurunduseErinevused[[#Headers],[Mai]],TurunduseTegelikud[#Headers],0))","v":{"v":500,"d":"500.00 €"}},{"$f":"INDEX(TurunduseKavandatud[],MATCH(INDEX(TurunduseErinevused[],ROW()-ROW(TurunduseErinevused[[#Headers],[Juuni]]),1),INDEX(TurunduseKavandatud[],,1),0),MATCH(TurunduseErinevused[[#Headers],[Juuni]],TurunduseKavandatud[#Headers],0))-INDEX(TurunduseTegelikud[],MATCH(INDEX(TurunduseErinevused[],ROW()-ROW(TurunduseErinevused[[#Headers],[Juuni]]),1),INDEX(TurunduseKavandatud[],,1),0),MATCH(TurunduseErinevused[[#Headers],[Juuni]],TurunduseTegelikud[#Headers],0))","v":{"v":-300,"d":"-300.00 €"}},{"$f":"INDEX(TurunduseKavandatud[],MATCH(INDEX(TurunduseErinevused[],ROW()-ROW(TurunduseErinevused[[#Headers],[Juuli]]),1),INDEX(TurunduseKavandatud[],,1),0),MATCH(TurunduseErinevused[[#Headers],[Juuli]],TurunduseKavandatud[#Headers],0))-INDEX(TurunduseTegelikud[],MATCH(INDEX(TurunduseErinevused[],ROW()-ROW(TurunduseErinevused[[#Headers],[Juuli]]),1),INDEX(TurunduseKavandatud[],,1),0),MATCH(TurunduseErinevused[[#Headers],[Juuli]],TurunduseTegelikud[#Headers],0))","v":{"v":2000,"d":"2,000.00 €"}},{"$f":"INDEX(TurunduseKavandatud[],MATCH(INDEX(TurunduseErinevused[],ROW()-ROW(TurunduseErinevused[[#Headers],[Aug]]),1),INDEX(TurunduseKavandatud[],,1),0),MATCH(TurunduseErinevused[[#Headers],[Aug]],TurunduseKavandatud[#Headers],0))-INDEX(TurunduseTegelikud[],MATCH(INDEX(TurunduseErinevused[],ROW()-ROW(TurunduseErinevused[[#Headers],[Aug]]),1),INDEX(TurunduseKavandatud[],,1),0),MATCH(TurunduseErinevused[[#Headers],[Aug]],TurunduseTegelikud[#Headers],0))","v":{"v":5000,"d":"5,000.00 €"}},{"$f":"INDEX(TurunduseKavandatud[],MATCH(INDEX(TurunduseErinevused[],ROW()-ROW(TurunduseErinevused[[#Headers],[Sept]]),1),INDEX(TurunduseKavandatud[],,1),0),MATCH(TurunduseErinevused[[#Headers],[Sept]],TurunduseKavandatud[#Headers],0))-INDEX(TurunduseTegelikud[],MATCH(INDEX(TurunduseErinevused[],ROW()-ROW(TurunduseErinevused[[#Headers],[Sept]]),1),INDEX(TurunduseKavandatud[],,1),0),MATCH(TurunduseErinevused[[#Headers],[Sept]],TurunduseTegelikud[#Headers],0))","v":{"v":2000,"d":"2,000.00 €"}},{"$f":"INDEX(TurunduseKavandatud[],MATCH(INDEX(TurunduseErinevused[],ROW()-ROW(TurunduseErinevused[[#Headers],[Okt]]),1),INDEX(TurunduseKavandatud[],,1),0),MATCH(TurunduseErinevused[[#Headers],[Okt]],TurunduseKavandatud[#Headers],0))-INDEX(TurunduseTegelikud[],MATCH(INDEX(TurunduseErinevused[],ROW()-ROW(TurunduseErinevused[[#Headers],[Okt]]),1),INDEX(TurunduseKavandatud[],,1),0),MATCH(TurunduseErinevused[[#Headers],[Okt]],TurunduseTegelikud[#Headers],0))","v":{"v":2000,"d":"2,000.00 €"}},{"$f":"INDEX(TurunduseKavandatud[],MATCH(INDEX(TurunduseErinevused[],ROW()-ROW(TurunduseErinevused[[#Headers],[Nov]]),1),INDEX(TurunduseKavandatud[],,1),0),MATCH(TurunduseErinevused[[#Headers],[Nov]],TurunduseKavandatud[#Headers],0))-INDEX(TurunduseTegelikud[],MATCH(INDEX(TurunduseErinevused[],ROW()-ROW(TurunduseErinevused[[#Headers],[Nov]]),1),INDEX(TurunduseKavandatud[],,1),0),MATCH(TurunduseErinevused[[#Headers],[Nov]],TurunduseTegelikud[#Headers],0))","v":{"v":2000,"d":"2,000.00 €"}},{"$f":"INDEX(TurunduseKavandatud[],MATCH(INDEX(TurunduseErinevused[],ROW()-ROW(TurunduseErinevused[[#Headers],[Dets]]),1),INDEX(TurunduseKavandatud[],,1),0),MATCH(TurunduseErinevused[[#Headers],[Dets]],TurunduseKavandatud[#Headers],0))-INDEX(TurunduseTegelikud[],MATCH(INDEX(TurunduseErinevused[],ROW()-ROW(TurunduseErinevused[[#Headers],[Dets]]),1),INDEX(TurunduseKavandatud[],,1),0),MATCH(TurunduseErinevused[[#Headers],[Dets]],TurunduseTegelikud[#Headers],0))","v":{"v":5000,"d":"5,000.00 €"}},{"$f":"SUM(TurunduseErinevused[[#This Row],[Jaan]:[Dets]])","v":{"v":18300,"d":"18,300.00 €"}}]
[null,"Muud kulud",{"$f":"INDEX(TurunduseKavandatud[],MATCH(INDEX(TurunduseErinevused[],ROW()-ROW(TurunduseErinevused[[#Headers],[Jaan]]),1),INDEX(TurunduseKavandatud[],,1),0),MATCH(TurunduseErinevused[[#Headers],[Jaan]],TurunduseKavandatud[#Headers],0))-INDEX(TurunduseTegelikud[],MATCH(INDEX(TurunduseErinevused[],ROW()-ROW(TurunduseErinevused[[#Headers],[Jaan]]),1),INDEX(TurunduseKavandatud[],,1),0),MATCH(TurunduseErinevused[[#Headers],[Jaan]],TurunduseTegelikud[#Headers],0))","v":{"v":55,"d":"55.00 €"}},{"$f":"INDEX(TurunduseKavandatud[],MATCH(INDEX(TurunduseErinevused[],ROW()-ROW(TurunduseErinevused[[#Headers],[Veebr]]),1),INDEX(TurunduseKavandatud[],,1),0),MATCH(TurunduseErinevused[[#Headers],[Veebr]],TurunduseKavandatud[#Headers],0))-INDEX(TurunduseTegelikud[],MATCH(INDEX(TurunduseErinevused[],ROW()-ROW(TurunduseErinevused[[#Headers],[Veebr]]),1),INDEX(TurunduseKavandatud[],,1),0),MATCH(TurunduseErinevused[[#Headers],[Veebr]],TurunduseTegelikud[#Headers],0))","v":{"v":44,"d":"44.00 €"}},{"$f":"INDEX(TurunduseKavandatud[],MATCH(INDEX(TurunduseErinevused[],ROW()-ROW(TurunduseErinevused[[#Headers],[Märts]]),1),INDEX(TurunduseKavandatud[],,1),0),MATCH(TurunduseErinevused[[#Headers],[Märts]],TurunduseKavandatud[#Headers],0))-INDEX(TurunduseTegelikud[],MATCH(INDEX(TurunduseErinevused[],ROW()-ROW(TurunduseErinevused[[#Headers],[Märts]]),1),INDEX(TurunduseKavandatud[],,1),0),MATCH(TurunduseErinevused[[#Headers],[Märts]],TurunduseTegelikud[#Headers],0))","v":{"v":77,"d":"77.00 €"}},{"$f":"INDEX(TurunduseKavandatud[],MATCH(INDEX(TurunduseErinevused[],ROW()-ROW(TurunduseErinevused[[#Headers],[Apr]]),1),INDEX(TurunduseKavandatud[],,1),0),MATCH(TurunduseErinevused[[#Headers],[Apr]],TurunduseKavandatud[#Headers],0))-INDEX(TurunduseTegelikud[],MATCH(INDEX(TurunduseErinevused[],ROW()-ROW(TurunduseErinevused[[#Headers],[Apr]]),1),INDEX(TurunduseKavandatud[],,1),0),MATCH(TurunduseErinevused[[#Headers],[Apr]],TurunduseTegelikud[#Headers],0))","v":{"v":-23,"d":"-23.00 €"}},{"$f":"INDEX(TurunduseKavandatud[],MATCH(INDEX(TurunduseErinevused[],ROW()-ROW(TurunduseErinevused[[#Headers],[Mai]]),1),INDEX(TurunduseKavandatud[],,1),0),MATCH(TurunduseErinevused[[#Headers],[Mai]],TurunduseKavandatud[#Headers],0))-INDEX(TurunduseTegelikud[],MATCH(INDEX(TurunduseErinevused[],ROW()-ROW(TurunduseErinevused[[#Headers],[Mai]]),1),INDEX(TurunduseKavandatud[],,1),0),MATCH(TurunduseErinevused[[#Headers],[Mai]],TurunduseTegelikud[#Headers],0))","v":{"v":13,"d":"13.00 €"}},{"$f":"INDEX(TurunduseKavandatud[],MATCH(INDEX(TurunduseErinevused[],ROW()-ROW(TurunduseErinevused[[#Headers],[Juuni]]),1),INDEX(TurunduseKavandatud[],,1),0),MATCH(TurunduseErinevused[[#Headers],[Juuni]],TurunduseKavandatud[#Headers],0))-INDEX(TurunduseTegelikud[],MATCH(INDEX(TurunduseErinevused[],ROW()-ROW(TurunduseErinevused[[#Headers],[Juuni]]),1),INDEX(TurunduseKavandatud[],,1),0),MATCH(TurunduseErinevused[[#Headers],[Juuni]],TurunduseTegelikud[#Headers],0))","v":{"v":-45,"d":"-45.00 €"}},{"$f":"INDEX(TurunduseKavandatud[],MATCH(INDEX(TurunduseErinevused[],ROW()-ROW(TurunduseErinevused[[#Headers],[Juuli]]),1),INDEX(TurunduseKavandatud[],,1),0),MATCH(TurunduseErinevused[[#Headers],[Juuli]],TurunduseKavandatud[#Headers],0))-INDEX(TurunduseTegelikud[],MATCH(INDEX(TurunduseErinevused[],ROW()-ROW(TurunduseErinevused[[#Headers],[Juuli]]),1),INDEX(TurunduseKavandatud[],,1),0),MATCH(TurunduseErinevused[[#Headers],[Juuli]],TurunduseTegelikud[#Headers],0))","v":{"v":200,"d":"200.00 €"}},{"$f":"INDEX(TurunduseKavandatud[],MATCH(INDEX(TurunduseErinevused[],ROW()-ROW(TurunduseErinevused[[#Headers],[Aug]]),1),INDEX(TurunduseKavandatud[],,1),0),MATCH(TurunduseErinevused[[#Headers],[Aug]],TurunduseKavandatud[#Headers],0))-INDEX(TurunduseTegelikud[],MATCH(INDEX(TurunduseErinevused[],ROW()-ROW(TurunduseErinevused[[#Headers],[Aug]]),1),INDEX(TurunduseKavandatud[],,1),0),MATCH(TurunduseErinevused[[#Headers],[Aug]],TurunduseTegelikud[#Headers],0))","v":{"v":200,"d":"200.00 €"}},{"$f":"INDEX(TurunduseKavandatud[],MATCH(INDEX(TurunduseErinevused[],ROW()-ROW(TurunduseErinevused[[#Headers],[Sept]]),1),INDEX(TurunduseKavandatud[],,1),0),MATCH(TurunduseErinevused[[#Headers],[Sept]],TurunduseKavandatud[#Headers],0))-INDEX(TurunduseTegelikud[],MATCH(INDEX(TurunduseErinevused[],ROW()-ROW(TurunduseErinevused[[#Headers],[Sept]]),1),INDEX(TurunduseKavandatud[],,1),0),MATCH(TurunduseErinevused[[#Headers],[Sept]],TurunduseTegelikud[#Headers],0))","v":{"v":200,"d":"200.00 €"}},{"$f":"INDEX(TurunduseKavandatud[],MATCH(INDEX(TurunduseErinevused[],ROW()-ROW(TurunduseErinevused[[#Headers],[Okt]]),1),INDEX(TurunduseKavandatud[],,1),0),MATCH(TurunduseErinevused[[#Headers],[Okt]],TurunduseKavandatud[#Headers],0))-INDEX(TurunduseTegelikud[],MATCH(INDEX(TurunduseErinevused[],ROW()-ROW(TurunduseErinevused[[#Headers],[Okt]]),1),INDEX(TurunduseKavandatud[],,1),0),MATCH(TurunduseErinevused[[#Headers],[Okt]],TurunduseTegelikud[#Headers],0))","v":{"v":200,"d":"200.00 €"}},{"$f":"INDEX(TurunduseKavandatud[],MATCH(INDEX(TurunduseErinevused[],ROW()-ROW(TurunduseErinevused[[#Headers],[Nov]]),1),INDEX(TurunduseKavandatud[],,1),0),MATCH(TurunduseErinevused[[#Headers],[Nov]],TurunduseKavandatud[#Headers],0))-INDEX(TurunduseTegelikud[],MATCH(INDEX(TurunduseErinevused[],ROW()-ROW(TurunduseErinevused[[#Headers],[Nov]]),1),INDEX(TurunduseKavandatud[],,1),0),MATCH(TurunduseErinevused[[#Headers],[Nov]],TurunduseTegelikud[#Headers],0))","v":{"v":200,"d":"200.00 €"}},{"$f":"INDEX(TurunduseKavandatud[],MATCH(INDEX(TurunduseErinevused[],ROW()-ROW(TurunduseErinevused[[#Headers],[Dets]]),1),INDEX(TurunduseKavandatud[],,1),0),MATCH(TurunduseErinevused[[#Headers],[Dets]],TurunduseKavandatud[#Headers],0))-INDEX(TurunduseTegelikud[],MATCH(INDEX(TurunduseErinevused[],ROW()-ROW(TurunduseErinevused[[#Headers],[Dets]]),1),INDEX(TurunduseKavandatud[],,1),0),MATCH(TurunduseErinevused[[#Headers],[Dets]],TurunduseTegelikud[#Headers],0))","v":{"v":200,"d":"200.00 €"}},{"$f":"SUM(TurunduseErinevused[[#This Row],[Jaan]:[Dets]])","v":{"v":1321,"d":"1,321.00 €"}}]
[null,"Vahesumma",{"$f":"SUBTOTAL(109,TurunduseErinevused[Jaan])","v":{"v":555,"d":"555.00 €"}},{"$f":"SUBTOTAL(109,TurunduseErinevused[Veebr])","v":{"v":-456,"d":"-456.00 €"}},{"$f":"SUBTOTAL(109,TurunduseErinevused[Märts])","v":{"v":-23,"d":"-23.00 €"}},{"$f":"SUBTOTAL(109,TurunduseErinevused[Apr])","v":{"v":-123,"d":"-123.00 €"}},{"$f":"SUBTOTAL(109,TurunduseErinevused[Mai])","v":{"v":113,"d":"113.00 €"}},{"$f":"SUBTOTAL(109,TurunduseErinevused[Juuni])","v":{"v":-825,"d":"-825.00 €"}},{"$f":"SUBTOTAL(109,TurunduseErinevused[Juuli])","v":{"v":8100,"d":"8,100.00 €"}},{"$f":"SUBTOTAL(109,TurunduseErinevused[Aug])","v":{"v":6100,"d":"6,100.00 €"}},{"$f":"SUBTOTAL(109,TurunduseErinevused[Sept])","v":{"v":3100,"d":"3,100.00 €"}},{"$f":"SUBTOTAL(109,TurunduseErinevused[Okt])","v":{"v":8100,"d":"8,100.00 €"}},{"$f":"SUBTOTAL(109,TurunduseErinevused[Nov])","v":{"v":3100,"d":"3,100.00 €"}},{"$f":"SUBTOTAL(109,TurunduseErinevused[Dets])","v":{"v":6900,"d":"6,900.00 €"}},{"$f":"SUBTOTAL(109,TurunduseErinevused[AASTA])","v":{"v":34641,"d":"34,641.00 €"}}]
[]
[null,"Koolitus/reisimine","Jaan","Veebr","Märts","Apr","Mai","Juuni","Juuli","Aug","Sept","Okt","Nov","Dets","AASTA"]
[null,"Koolituskursused",{"$f":"INDEX(KoolituseJaReisiKavandatud[],MATCH(INDEX(KoolituseJaReisiErinevused[],ROW()-ROW(KoolituseJaReisiErinevused[[#Headers],[Jaan]]),1),INDEX(KoolituseJaReisiKavandatud[],,1),0),MATCH(KoolituseJaReisiErinevused[[#Headers],[Jaan]],KoolituseJaReisiKavandatud[#Headers],0))-INDEX(KoolituseJaReisiTegelikud[],MATCH(INDEX(KoolituseJaReisiErinevused[],ROW()-ROW(KoolituseJaReisiErinevused[[#Headers],[Jaan]]),1),INDEX(KoolituseJaReisiKavandatud[],,1),0),MATCH(KoolituseJaReisiErinevused[[#Headers],[Jaan]],KoolituseJaReisiTegelikud[#Headers],0))","v":{"v":400,"d":"400.00 €"}},{"$f":"INDEX(KoolituseJaReisiKavandatud[],MATCH(INDEX(KoolituseJaReisiErinevused[],ROW()-ROW(KoolituseJaReisiErinevused[[#Headers],[Veebr]]),1),INDEX(KoolituseJaReisiKavandatud[],,1),0),MATCH(KoolituseJaReisiErinevused[[#Headers],[Veebr]],KoolituseJaReisiKavandatud[#Headers],0))-INDEX(KoolituseJaReisiTegelikud[],MATCH(INDEX(KoolituseJaReisiErinevused[],ROW()-ROW(KoolituseJaReisiErinevused[[#Headers],[Veebr]]),1),INDEX(KoolituseJaReisiKavandatud[],,1),0),MATCH(KoolituseJaReisiErinevused[[#Headers],[Veebr]],KoolituseJaReisiTegelikud[#Headers],0))","v":{"v":-400,"d":"-400.00 €"}},{"$f":"INDEX(KoolituseJaReisiKavandatud[],MATCH(INDEX(KoolituseJaReisiErinevused[],ROW()-ROW(KoolituseJaReisiErinevused[[#Headers],[Märts]]),1),INDEX(KoolituseJaReisiKavandatud[],,1),0),MATCH(KoolituseJaReisiErinevused[[#Headers],[Märts]],KoolituseJaReisiKavandatud[#Headers],0))-INDEX(KoolituseJaReisiTegelikud[],MATCH(INDEX(KoolituseJaReisiErinevused[],ROW()-ROW(KoolituseJaReisiErinevused[[#Headers],[Märts]]),1),INDEX(KoolituseJaReisiKavandatud[],,1),0),MATCH(KoolituseJaReisiErinevused[[#Headers],[Märts]],KoolituseJaReisiTegelikud[#Headers],0))","v":{"v":600,"d":"600.00 €"}},{"$f":"INDEX(KoolituseJaReisiKavandatud[],MATCH(INDEX(KoolituseJaReisiErinevused[],ROW()-ROW(KoolituseJaReisiErinevused[[#Headers],[Apr]]),1),INDEX(KoolituseJaReisiKavandatud[],,1),0),MATCH(KoolituseJaReisiErinevused[[#Headers],[Apr]],KoolituseJaReisiKavandatud[#Headers],0))-INDEX(KoolituseJaReisiTegelikud[],MATCH(INDEX(KoolituseJaReisiErinevused[],ROW()-ROW(KoolituseJaReisiErinevused[[#Headers],[Apr]]),1),INDEX(KoolituseJaReisiKavandatud[],,1),0),MATCH(KoolituseJaReisiErinevused[[#Headers],[Apr]],KoolituseJaReisiTegelikud[#Headers],0))","v":{"v":400,"d":"400.00 €"}},{"$f":"INDEX(KoolituseJaReisiKavandatud[],MATCH(INDEX(KoolituseJaReisiErinevused[],ROW()-ROW(KoolituseJaReisiErinevused[[#Headers],[Mai]]),1),INDEX(KoolituseJaReisiKavandatud[],,1),0),MATCH(KoolituseJaReisiErinevused[[#Headers],[Mai]],KoolituseJaReisiKavandatud[#Headers],0))-INDEX(KoolituseJaReisiTegelikud[],MATCH(INDEX(KoolituseJaReisiErinevused[],ROW()-ROW(KoolituseJaReisiErinevused[[#Headers],[Mai]]),1),INDEX(KoolituseJaReisiKavandatud[],,1),0),MATCH(KoolituseJaReisiErinevused[[#Headers],[Mai]],KoolituseJaReisiTegelikud[#Headers],0))","v":{"v":800,"d":"800.00 €"}},{"$f":"INDEX(KoolituseJaReisiKavandatud[],MATCH(INDEX(KoolituseJaReisiErinevused[],ROW()-ROW(KoolituseJaReisiErinevused[[#Headers],[Juuni]]),1),INDEX(KoolituseJaReisiKavandatud[],,1),0),MATCH(KoolituseJaReisiErinevused[[#Headers],[Juuni]],KoolituseJaReisiKavandatud[#Headers],0))-INDEX(KoolituseJaReisiTegelikud[],MATCH(INDEX(KoolituseJaReisiErinevused[],ROW()-ROW(KoolituseJaReisiErinevused[[#Headers],[Juuni]]),1),INDEX(KoolituseJaReisiKavandatud[],,1),0),MATCH(KoolituseJaReisiErinevused[[#Headers],[Juuni]],KoolituseJaReisiTegelikud[#Headers],0))","v":{"v":-800,"d":"-800.00 €"}},{"$f":"INDEX(KoolituseJaReisiKavandatud[],MATCH(INDEX(KoolituseJaReisiErinevused[],ROW()-ROW(KoolituseJaReisiErinevused[[#Headers],[Juuli]]),1),INDEX(KoolituseJaReisiKavandatud[],,1),0),MATCH(KoolituseJaReisiErinevused[[#Headers],[Juuli]],KoolituseJaReisiKavandatud[#Headers],0))-INDEX(KoolituseJaReisiTegelikud[],MATCH(INDEX(KoolituseJaReisiErinevused[],ROW()-ROW(KoolituseJaReisiErinevused[[#Headers],[Juuli]]),1),INDEX(KoolituseJaReisiKavandatud[],,1),0),MATCH(KoolituseJaReisiErinevused[[#Headers],[Juuli]],KoolituseJaReisiTegelikud[#Headers],0))","v":{"v":2000,"d":"2,000.00 €"}},{"$f":"INDEX(KoolituseJaReisiKavandatud[],MATCH(INDEX(KoolituseJaReisiErinevused[],ROW()-ROW(KoolituseJaReisiErinevused[[#Headers],[Aug]]),1),INDEX(KoolituseJaReisiKavandatud[],,1),0),MATCH(KoolituseJaReisiErinevused[[#Headers],[Aug]],KoolituseJaReisiKavandatud[#Headers],0))-INDEX(KoolituseJaReisiTegelikud[],MATCH(INDEX(KoolituseJaReisiErinevused[],ROW()-ROW(KoolituseJaReisiErinevused[[#Headers],[Aug]]),1),INDEX(KoolituseJaReisiKavandatud[],,1),0),MATCH(KoolituseJaReisiErinevused[[#Headers],[Aug]],KoolituseJaReisiTegelikud[#Headers],0))","v":{"v":2000,"d":"2,000.00 €"}},{"$f":"INDEX(KoolituseJaReisiKavandatud[],MATCH(INDEX(KoolituseJaReisiErinevused[],ROW()-ROW(KoolituseJaReisiErinevused[[#Headers],[Sept]]),1),INDEX(KoolituseJaReisiKavandatud[],,1),0),MATCH(KoolituseJaReisiErinevused[[#Headers],[Sept]],KoolituseJaReisiKavandatud[#Headers],0))-INDEX(KoolituseJaReisiTegelikud[],MATCH(INDEX(KoolituseJaReisiErinevused[],ROW()-ROW(KoolituseJaReisiErinevused[[#Headers],[Sept]]),1),INDEX(KoolituseJaReisiKavandatud[],,1),0),MATCH(KoolituseJaReisiErinevused[[#Headers],[Sept]],KoolituseJaReisiTegelikud[#Headers],0))","v":{"v":2000,"d":"2,000.00 €"}},{"$f":"INDEX(KoolituseJaReisiKavandatud[],MATCH(INDEX(KoolituseJaReisiErinevused[],ROW()-ROW(KoolituseJaReisiErinevused[[#Headers],[Okt]]),1),INDEX(KoolituseJaReisiKavandatud[],,1),0),MATCH(KoolituseJaReisiErinevused[[#Headers],[Okt]],KoolituseJaReisiKavandatud[#Headers],0))-INDEX(KoolituseJaReisiTegelikud[],MATCH(INDEX(KoolituseJaReisiErinevused[],ROW()-ROW(KoolituseJaReisiErinevused[[#Headers],[Okt]]),1),INDEX(KoolituseJaReisiKavandatud[],,1),0),MATCH(KoolituseJaReisiErinevused[[#Headers],[Okt]],KoolituseJaReisiTegelikud[#Headers],0))","v":{"v":2000,"d":"2,000.00 €"}},{"$f":"INDEX(KoolituseJaReisiKavandatud[],MATCH(INDEX(KoolituseJaReisiErinevused[],ROW()-ROW(KoolituseJaReisiErinevused[[#Headers],[Nov]]),1),INDEX(KoolituseJaReisiKavandatud[],,1),0),MATCH(KoolituseJaReisiErinevused[[#Headers],[Nov]],KoolituseJaReisiKavandatud[#Headers],0))-INDEX(KoolituseJaReisiTegelikud[],MATCH(INDEX(KoolituseJaReisiErinevused[],ROW()-ROW(KoolituseJaReisiErinevused[[#Headers],[Nov]]),1),INDEX(KoolituseJaReisiKavandatud[],,1),0),MATCH(KoolituseJaReisiErinevused[[#Headers],[Nov]],KoolituseJaReisiTegelikud[#Headers],0))","v":{"v":2000,"d":"2,000.00 €"}},{"$f":"INDEX(KoolituseJaReisiKavandatud[],MATCH(INDEX(KoolituseJaReisiErinevused[],ROW()-ROW(KoolituseJaReisiErinevused[[#Headers],[Dets]]),1),INDEX(KoolituseJaReisiKavandatud[],,1),0),MATCH(KoolituseJaReisiErinevused[[#Headers],[Dets]],KoolituseJaReisiKavandatud[#Headers],0))-INDEX(KoolituseJaReisiTegelikud[],MATCH(INDEX(KoolituseJaReisiErinevused[],ROW()-ROW(KoolituseJaReisiErinevused[[#Headers],[Dets]]),1),INDEX(KoolituseJaReisiKavandatud[],,1),0),MATCH(KoolituseJaReisiErinevused[[#Headers],[Dets]],KoolituseJaReisiTegelikud[#Headers],0))","v":{"v":2000,"d":"2,000.00 €"}},{"$f":"SUM(KoolituseJaReisiErinevused[[#This Row],[Jaan]:[Dets]])","v":{"v":13000,"d":"13,000.00 €"}}]
[null,"Koolitusega seotud reisikulud",{"$f":"INDEX(KoolituseJaReisiKavandatud[],MATCH(INDEX(KoolituseJaReisiErinevused[],ROW()-ROW(KoolituseJaReisiErinevused[[#Headers],[Jaan]]),1),INDEX(KoolituseJaReisiKavandatud[],,1),0),MATCH(KoolituseJaReisiErinevused[[#Headers],[Jaan]],KoolituseJaReisiKavandatud[#Headers],0))-INDEX(KoolituseJaReisiTegelikud[],MATCH(INDEX(KoolituseJaReisiErinevused[],ROW()-ROW(KoolituseJaReisiErinevused[[#Headers],[Jaan]]),1),INDEX(KoolituseJaReisiKavandatud[],,1),0),MATCH(KoolituseJaReisiErinevused[[#Headers],[Jaan]],KoolituseJaReisiTegelikud[#Headers],0))","v":{"v":800,"d":"800.00 €"}},{"$f":"INDEX(KoolituseJaReisiKavandatud[],MATCH(INDEX(KoolituseJaReisiErinevused[],ROW()-ROW(KoolituseJaReisiErinevused[[#Headers],[Veebr]]),1),INDEX(KoolituseJaReisiKavandatud[],,1),0),MATCH(KoolituseJaReisiErinevused[[#Headers],[Veebr]],KoolituseJaReisiKavandatud[#Headers],0))-INDEX(KoolituseJaReisiTegelikud[],MATCH(INDEX(KoolituseJaReisiErinevused[],ROW()-ROW(KoolituseJaReisiErinevused[[#Headers],[Veebr]]),1),INDEX(KoolituseJaReisiKavandatud[],,1),0),MATCH(KoolituseJaReisiErinevused[[#Headers],[Veebr]],KoolituseJaReisiTegelikud[#Headers],0))","v":{"v":-200,"d":"-200.00 €"}},{"$f":"INDEX(KoolituseJaReisiKavandatud[],MATCH(INDEX(KoolituseJaReisiErinevused[],ROW()-ROW(KoolituseJaReisiErinevused[[#Headers],[Märts]]),1),INDEX(KoolituseJaReisiKavandatud[],,1),0),MATCH(KoolituseJaReisiErinevused[[#Headers],[Märts]],KoolituseJaReisiKavandatud[#Headers],0))-INDEX(KoolituseJaReisiTegelikud[],MATCH(INDEX(KoolituseJaReisiErinevused[],ROW()-ROW(KoolituseJaReisiErinevused[[#Headers],[Märts]]),1),INDEX(KoolituseJaReisiKavandatud[],,1),0),MATCH(KoolituseJaReisiErinevused[[#Headers],[Märts]],KoolituseJaReisiTegelikud[#Headers],0))","v":{"v":600,"d":"600.00 €"}},{"$f":"INDEX(KoolituseJaReisiKavandatud[],MATCH(INDEX(KoolituseJaReisiErinevused[],ROW()-ROW(KoolituseJaReisiErinevused[[#Headers],[Apr]]),1),INDEX(KoolituseJaReisiKavandatud[],,1),0),MATCH(KoolituseJaReisiErinevused[[#Headers],[Apr]],KoolituseJaReisiKavandatud[#Headers],0))-INDEX(KoolituseJaReisiTegelikud[],MATCH(INDEX(KoolituseJaReisiErinevused[],ROW()-ROW(KoolituseJaReisiErinevused[[#Headers],[Apr]]),1),INDEX(KoolituseJaReisiKavandatud[],,1),0),MATCH(KoolituseJaReisiErinevused[[#Headers],[Apr]],KoolituseJaReisiTegelikud[#Headers],0))","v":{"v":800,"d":"800.00 €"}},{"$f":"INDEX(KoolituseJaReisiKavandatud[],MATCH(INDEX(KoolituseJaReisiErinevused[],ROW()-ROW(KoolituseJaReisiErinevused[[#Headers],[Mai]]),1),INDEX(KoolituseJaReisiKavandatud[],,1),0),MATCH(KoolituseJaReisiErinevused[[#Headers],[Mai]],KoolituseJaReisiKavandatud[#Headers],0))-INDEX(KoolituseJaReisiTegelikud[],MATCH(INDEX(KoolituseJaReisiErinevused[],ROW()-ROW(KoolituseJaReisiErinevused[[#Headers],[Mai]]),1),INDEX(KoolituseJaReisiKavandatud[],,1),0),MATCH(KoolituseJaReisiErinevused[[#Headers],[Mai]],KoolituseJaReisiTegelikud[#Headers],0))","v":{"v":1200,"d":"1,200.00 €"}},{"$f":"INDEX(KoolituseJaReisiKavandatud[],MATCH(INDEX(KoolituseJaReisiErinevused[],ROW()-ROW(KoolituseJaReisiErinevused[[#Headers],[Juuni]]),1),INDEX(KoolituseJaReisiKavandatud[],,1),0),MATCH(KoolituseJaReisiErinevused[[#Headers],[Juuni]],KoolituseJaReisiKavandatud[#Headers],0))-INDEX(KoolituseJaReisiTegelikud[],MATCH(INDEX(KoolituseJaReisiErinevused[],ROW()-ROW(KoolituseJaReisiErinevused[[#Headers],[Juuni]]),1),INDEX(KoolituseJaReisiKavandatud[],,1),0),MATCH(KoolituseJaReisiErinevused[[#Headers],[Juuni]],KoolituseJaReisiTegelikud[#Headers],0))","v":{"v":-1500,"d":"-1,500.00 €"}},{"$f":"INDEX(KoolituseJaReisiKavandatud[],MATCH(INDEX(KoolituseJaReisiErinevused[],ROW()-ROW(KoolituseJaReisiErinevused[[#Headers],[Juuli]]),1),INDEX(KoolituseJaReisiKavandatud[],,1),0),MATCH(KoolituseJaReisiErinevused[[#Headers],[Juuli]],KoolituseJaReisiKavandatud[#Headers],0))-INDEX(KoolituseJaReisiTegelikud[],MATCH(INDEX(KoolituseJaReisiErinevused[],ROW()-ROW(KoolituseJaReisiErinevused[[#Headers],[Juuli]]),1),INDEX(KoolituseJaReisiKavandatud[],,1),0),MATCH(KoolituseJaReisiErinevused[[#Headers],[Juuli]],KoolituseJaReisiTegelikud[#Headers],0))","v":{"v":2000,"d":"2,000.00 €"}},{"$f":"INDEX(KoolituseJaReisiKavandatud[],MATCH(INDEX(KoolituseJaReisiErinevused[],ROW()-ROW(KoolituseJaReisiErinevused[[#Headers],[Aug]]),1),INDEX(KoolituseJaReisiKavandatud[],,1),0),MATCH(KoolituseJaReisiErinevused[[#Headers],[Aug]],KoolituseJaReisiKavandatud[#Headers],0))-INDEX(KoolituseJaReisiTegelikud[],MATCH(INDEX(KoolituseJaReisiErinevused[],ROW()-ROW(KoolituseJaReisiErinevused[[#Headers],[Aug]]),1),INDEX(KoolituseJaReisiKavandatud[],,1),0),MATCH(KoolituseJaReisiErinevused[[#Headers],[Aug]],KoolituseJaReisiTegelikud[#Headers],0))","v":{"v":2000,"d":"2,000.00 €"}},{"$f":"INDEX(KoolituseJaReisiKavandatud[],MATCH(INDEX(KoolituseJaReisiErinevused[],ROW()-ROW(KoolituseJaReisiErinevused[[#Headers],[Sept]]),1),INDEX(KoolituseJaReisiKavandatud[],,1),0),MATCH(KoolituseJaReisiErinevused[[#Headers],[Sept]],KoolituseJaReisiKavandatud[#Headers],0))-INDEX(KoolituseJaReisiTegelikud[],MATCH(INDEX(KoolituseJaReisiErinevused[],ROW()-ROW(KoolituseJaReisiErinevused[[#Headers],[Sept]]),1),INDEX(KoolituseJaReisiKavandatud[],,1),0),MATCH(KoolituseJaReisiErinevused[[#Headers],[Sept]],KoolituseJaReisiTegelikud[#Headers],0))","v":{"v":2000,"d":"2,000.00 €"}},{"$f":"INDEX(KoolituseJaReisiKavandatud[],MATCH(INDEX(KoolituseJaReisiErinevused[],ROW()-ROW(KoolituseJaReisiErinevused[[#Headers],[Okt]]),1),INDEX(KoolituseJaReisiKavandatud[],,1),0),MATCH(KoolituseJaReisiErinevused[[#Headers],[Okt]],KoolituseJaReisiKavandatud[#Headers],0))-INDEX(KoolituseJaReisiTegelikud[],MATCH(INDEX(KoolituseJaReisiErinevused[],ROW()-ROW(KoolituseJaReisiErinevused[[#Headers],[Okt]]),1),INDEX(KoolituseJaReisiKavandatud[],,1),0),MATCH(KoolituseJaReisiErinevused[[#Headers],[Okt]],KoolituseJaReisiTegelikud[#Headers],0))","v":{"v":2000,"d":"2,000.00 €"}},{"$f":"INDEX(KoolituseJaReisiKavandatud[],MATCH(INDEX(KoolituseJaReisiErinevused[],ROW()-ROW(KoolituseJaReisiErinevused[[#Headers],[Nov]]),1),INDEX(KoolituseJaReisiKavandatud[],,1),0),MATCH(KoolituseJaReisiErinevused[[#Headers],[Nov]],KoolituseJaReisiKavandatud[#Headers],0))-INDEX(KoolituseJaReisiTegelikud[],MATCH(INDEX(KoolituseJaReisiErinevused[],ROW()-ROW(KoolituseJaReisiErinevused[[#Headers],[Nov]]),1),INDEX(KoolituseJaReisiKavandatud[],,1),0),MATCH(KoolituseJaReisiErinevused[[#Headers],[Nov]],KoolituseJaReisiTegelikud[#Headers],0))","v":{"v":2000,"d":"2,000.00 €"}},{"$f":"INDEX(KoolituseJaReisiKavandatud[],MATCH(INDEX(KoolituseJaReisiErinevused[],ROW()-ROW(KoolituseJaReisiErinevused[[#Headers],[Dets]]),1),INDEX(KoolituseJaReisiKavandatud[],,1),0),MATCH(KoolituseJaReisiErinevused[[#Headers],[Dets]],KoolituseJaReisiKavandatud[#Headers],0))-INDEX(KoolituseJaReisiTegelikud[],MATCH(INDEX(KoolituseJaReisiErinevused[],ROW()-ROW(KoolituseJaReisiErinevused[[#Headers],[Dets]]),1),INDEX(KoolituseJaReisiKavandatud[],,1),0),MATCH(KoolituseJaReisiErinevused[[#Headers],[Dets]],KoolituseJaReisiTegelikud[#Headers],0))","v":{"v":2000,"d":"2,000.00 €"}},{"$f":"SUM(KoolituseJaReisiErinevused[[#This Row],[Jaan]:[Dets]])","v":{"v":13700,"d":"13,700.00 €"}}]
[null,"Vahesumma",{"$f":"SUBTOTAL(109,KoolituseJaReisiErinevused[Jaan])","v":{"v":1200,"d":"1,200.00 €"}},{"$f":"SUBTOTAL(109,KoolituseJaReisiErinevused[Veebr])","v":{"v":-600,"d":"-600.00 €"}},{"$f":"SUBTOTAL(109,KoolituseJaReisiErinevused[Märts])","v":{"v":1200,"d":"1,200.00 €"}},{"$f":"SUBTOTAL(109,KoolituseJaReisiErinevused[Apr])","v":{"v":1200,"d":"1,200.00 €"}},{"$f":"SUBTOTAL(109,KoolituseJaReisiErinevused[Mai])","v":{"v":2000,"d":"2,000.00 €"}},{"$f":"SUBTOTAL(109,KoolituseJaReisiErinevused[Juuni])","v":{"v":-2300,"d":"-2,300.00 €"}},{"$f":"SUBTOTAL(109,KoolituseJaReisiErinevused[Juuli])","v":{"v":4000,"d":"4,000.00 €"}},{"$f":"SUBTOTAL(109,KoolituseJaReisiErinevused[Aug])","v":{"v":4000,"d":"4,000.00 €"}},{"$f":"SUBTOTAL(109,KoolituseJaReisiErinevused[Sept])","v":{"v":4000,"d":"4,000.00 €"}},{"$f":"SUBTOTAL(109,KoolituseJaReisiErinevused[Okt])","v":{"v":4000,"d":"4,000.00 €"}},{"$f":"SUBTOTAL(109,KoolituseJaReisiErinevused[Nov])","v":{"v":4000,"d":"4,000.00 €"}},{"$f":"SUBTOTAL(109,KoolituseJaReisiErinevused[Dets])","v":{"v":4000,"d":"4,000.00 €"}},{"$f":"SUBTOTAL(109,KoolituseJaReisiErinevused[AASTA])","v":{"v":26700,"d":"26,700.00 €"}}]
[]
[null,"KOGUSUMMMAD","Jaan","Veebr","Märts","Apr","Mai","Juuni","Juuli","Aug","Sept","Okt","Nov","Dets","Aasta"]
[null,"Tegelikud kuu kulud",{"$f":"KoolituseJaReisiErinevused[[#Totals],[Jaan]]+TurunduseErinevused[[#Totals],[Jaan]]+KontoriErinevused[[#Totals],[Jaan]]+TöötajaErinevused[[#Totals],[Jaan]]","v":{"v":1738,"d":"1,738.00 €"}},{"$f":"KoolituseJaReisiErinevused[[#Totals],[Veebr]]+TurunduseErinevused[[#Totals],[Veebr]]+KontoriErinevused[[#Totals],[Veebr]]+TöötajaErinevused[[#Totals],[Veebr]]","v":{"v":-984,"d":"-984.00 €"}},{"$f":"KoolituseJaReisiErinevused[[#Totals],[Märts]]+TurunduseErinevused[[#Totals],[Märts]]+KontoriErinevused[[#Totals],[Märts]]+TöötajaErinevused[[#Totals],[Märts]]","v":{"v":1255,"d":"1,255.00 €"}},{"$f":"KoolituseJaReisiErinevused[[#Totals],[Apr]]+TurunduseErinevused[[#Totals],[Apr]]+KontoriErinevused[[#Totals],[Apr]]+TöötajaErinevused[[#Totals],[Apr]]","v":{"v":301,"d":"301.00 €"}},{"$f":"KoolituseJaReisiErinevused[[#Totals],[Mai]]+TurunduseErinevused[[#Totals],[Mai]]+KontoriErinevused[[#Totals],[Mai]]+TöötajaErinevused[[#Totals],[Mai]]","v":{"v":1440,"d":"1,440.00 €"}},{"$f":"KoolituseJaReisiErinevused[[#Totals],[Juuni]]+TurunduseErinevused[[#Totals],[Juuni]]+KontoriErinevused[[#Totals],[Juuni]]+TöötajaErinevused[[#Totals],[Juuni]]","v":{"v":-3744,"d":"-3,744.00 €"}},{"$f":"KoolituseJaReisiErinevused[[#Totals],[Juuli]]+TurunduseErinevused[[#Totals],[Juuli]]+KontoriErinevused[[#Totals],[Juuli]]+TöötajaErinevused[[#Totals],[Juuli]]","v":{"v":134695,"d":"134,695.00 €"}},{"$f":"KoolituseJaReisiErinevused[[#Totals],[Aug]]+TurunduseErinevused[[#Totals],[Aug]]+KontoriErinevused[[#Totals],[Aug]]+TöötajaErinevused[[#Totals],[Aug]]","v":{"v":138918,"d":"138,918.00 €"}},{"$f":"KoolituseJaReisiErinevused[[#Totals],[Sept]]+TurunduseErinevused[[#Totals],[Sept]]+KontoriErinevused[[#Totals],[Sept]]+TöötajaErinevused[[#Totals],[Sept]]","v":{"v":135918,"d":"135,918.00 €"}},{"$f":"KoolituseJaReisiErinevused[[#Totals],[Okt]]+TurunduseErinevused[[#Totals],[Okt]]+KontoriErinevused[[#Totals],[Okt]]+TöötajaErinevused[[#Totals],[Okt]]","v":{"v":140918,"d":"140,918.00 €"}},{"$f":"KoolituseJaReisiErinevused[[#Totals],[Nov]]+TurunduseErinevused[[#Totals],[Nov]]+KontoriErinevused[[#Totals],[Nov]]+TöötajaErinevused[[#Totals],[Nov]]","v":{"v":136218,"d":"136,218.00 €"}},{"$f":"KoolituseJaReisiErinevused[[#Totals],[Dets]]+TurunduseErinevused[[#Totals],[Dets]]+KontoriErinevused[[#Totals],[Dets]]+TöötajaErinevused[[#Totals],[Dets]]","v":{"v":140018,"d":"140,018.00 €"}},{"$f":"KoolituseJaReisiErinevused[[#Totals],[AASTA]]+TurunduseErinevused[[#Totals],[AASTA]]+KontoriErinevused[[#Totals],[AASTA]]+TöötajaErinevused[[#Totals],[AASTA]]","v":{"v":826691,"d":"826,691.00 €"}}]
[null,"Tegelikud kulud KOKKU",{"$f":"SUM($C$36:C36)","v":{"v":1738,"d":"1,738.00 €"}},{"$f":"SUM($C$36:D36)","v":{"v":754,"d":"754.00 €"}},{"$f":"SUM($C$36:E36)","v":{"v":2009,"d":"2,009.00 €"}},{"$f":"SUM($C$36:F36)","v":{"v":2310,"d":"2,310.00 €"}},{"$f":"SUM($C$36:G36)","v":{"v":3750,"d":"3,750.00 €"}},{"$f":"SUM($C$36:H36)","v":{"v":6,"d":"6.00 €"}},{"$f":"SUM($C$36:I36)","v":{"v":134701,"d":"134,701.00 €"}},{"$f":"SUM($C$36:J36)","v":{"v":273619,"d":"273,619.00 €"}},{"$f":"SUM($C$36:K36)","v":{"v":409537,"d":"409,537.00 €"}},{"$f":"SUM($C$36:L36)","v":{"v":550455,"d":"550,455.00 €"}},{"$f":"SUM($C$36:M36)","v":{"v":686673,"d":"686,673.00 €"}},{"$f":"SUM($C$36:N36)","v":{"v":826691,"d":"826,691.00 €"}}]

{"sheet":"KULUDE ANALÜÜS","index":4,"n_rows":10,"n_cols":16,"rows_kept":10,"merged":[[2,4,2,6],[11,1,11,5]]}
[{"$nulls":6}," ",{"$nulls":8}," "]
[null,{"$f":"'KAVANDATUD KULUD'!B2:D3","v":"Ettevõtte nimi"}]
[{"$nulls":4},{"$f":"töölehe_pealkiri","v":"Üksikasjalikud kulude prognoosid"}]
[]
[null,"Kulukategooria","Kavandatud kulud","Tegelikud kulud","Kuluerinevused","Erinevuse protsent"]
[null,"Töötaja kulud",{"$f":"TöötajaKavandatud[[#Totals],[AASTA]]","v":{"v":1355090,"d":"1,355,090.00 €"}},{"$f":"TöötajaTegelikud[[#Totals],[AASTA]]","v":{"v":659130,"d":"659,130.00 €"}},{"$f":"C6-D6","v":{"v":695960,"d":"695,960.00 €"}},{"$f":"E6/C6","v":{"v":0.5135895032802249,"d":"51%"}}]
[null,{"$f":"'KAVANDATUD KULUD'!B10","v":"Kontorikulud"},{"$f":"KontorKavandatud[[#Totals],[AASTA]]","v":{"v":138740,"d":"138,740.00 €"}},{"$f":"KontoriTegelikud[[#Totals],[AASTA]]","v":{"v":69350,"d":"69,350.00 €"}},{"$f":"C7-D7","v":{"v":69390,"d":"69,390.00 €"}},{"$f":"E7/C7","v":{"v":0.5001441545336601,"d":"50%"}}]
[null,{"$f":"'KAVANDATUD KULUD'!B21","v":"Turunduskulud"},{"$f":"TurunduseKavandatud[[#Totals],[AASTA]]","v":{"v":67800,"d":"67,800.00 €"}},{"$f":"TurunduseTegelikud[[#Totals],[AASTA]]","v":{"v":33159,"d":"33,159.00 €"}},{"$f":"C8-D8","v":{"v":34641,"d":"34,641.00 €"}},{"$f":"E8/C8","v":{"v":0.510929203539823,"d":"51%"}}]
[null,{"$f":"'KAVANDATUD KULUD'!B30","v":"Koolitus/reisimine"},{"$f":"KoolituseJaReisiKavandatud[[#Totals],[AASTA]]","v":{"v":48000,"d":"48,000.00 €"}},{"$f":"KoolituseJaReisiTegelikud[[#Totals],[AASTA]]","v":{"v":21300,"d":"21,300.00 €"}},{"$f":"C9-D9","v":{"v":26700,"d":"26,700.00 €"}},{"$f":"E9/C9","v":{"v":0.55625,"d":"56%"}}]
[null,{"$f":"'KAVANDATUD KULUD'!B35","v":"KOGUSUMMMAD"},{"$f":"'KAVANDATUD KULUD'!O36","v":{"v":1609630,"d":"1,609,630.00 €"}},{"$f":"'TEGELIKUD KULUD'!O36","v":{"v":782939,"d":"782,939.00 €"}},{"$f":"C10-D10","v":{"v":826691,"d":"826,691.00 €"}},{"$f":"E10/C10","v":{"v":0.5135907009685455,"d":"51%"}}]